{"text_format":"1","workbook":"xlsx","n_sheets":12,"sheets":["Hauptseite - main page","Bilder SH-Cover für Anzeige","Bestellhilfe SmartHandles","SmartHandle Cover","Comments","Bilder","Bilder SH-Cover sortiert","Zusammenfassung - summary","Hilfstabelle für Zus.fass.","Langtext_Cover_Übers.","Bilder für Rückw.suche","Tabelle1"],"not_rendered":{"charts":0,"images":109,"macros":1,"external_links":4,"defined_names":173,"comments":2,"pivot_tables":0},"unopened":[],"bounds":{"document_bytes":16777216,"sheet_cells":100000,"rows_first":2000,"rows_last":500,"rows_between":2000,"halvings":0,"cell_chars":16384,"cell_head_chars":4096},"cells_cut":0,"cells_raw":0,"read":"whole","date_system":"1900"}

{"sheet":"Hauptseite - main page","index":0,"n_rows":228,"n_cols":16,"rows_kept":228,"cut":false,"hidden":false,"merged":[[1,5,1,8],[2,6,2,7],[3,5,3,8],[7,2,7,6],[8,2,8,6],[10,2,10,6],[11,2,11,6],[13,2,13,6],[61,9,61,10],[61,5,61,7],[61,0,61,2],[49,12,49,13],[23,6,23,8],[23,9,23,11],[26,8,29,10],[49,0,49,2],[49,5,49,7],[49,9,49,10]]}
[]
["SmartHandle -",null,null,null,null,"Sprache / language / langue / lingua / taal / sprog"]
[{"$f":"HLOOKUP(G3,A207:F227,13,0)","v":"Bestell-Leitfaden"},null,null,null,null,null,"Deutsch"]
[null,null,null,null,null,{"$f":"K223","v":"*** Bitte Makros aktivieren ***"}]
[]
[]
[]
[{"$f":"'Bestellhilfe SmartHandles'!A12","v":"Kundennummer"},null,null,null,null,null,null,null,{"$f":"K222","v":"abweichende Lieferanschrift"}]
[{"$f":"'Bestellhilfe SmartHandles'!A14","v":"Kundenname"},null,null,null,null,null,null,null,null,null,null,null,null,null,null,{"$f":"IF(OR(I9<>\"\",I10<>\"\",I11<>\"\",I12<>\"\",I13<>\"\",I14<>\"\"),\"voll\",\"leer\")","v":"leer"}]
[]
[{"$f":"'Bestellhilfe SmartHandles'!E12","v":"Projekt-Nr.  "}]
[{"$f":"'Bestellhilfe SmartHandles'!E14","v":"Projekt-Name  "}]
[]
[{"$f":"'Bestellhilfe SmartHandles'!L12","v":"Anlage zu Bestellnummer  "}]
[]
[]
[]
[]
[]
[{"$f":"HLOOKUP(G3,A207:F227,2,0)","v":"Was möchten Sie bestellen?"}]
[]
[]
[]
[null,null,"SmartHandle"]
[]
[]
[null,null,null,null,null,null,null,null,{"$f":"HLOOKUP(G3,A207:F227,12,0)","v":"Zur Anzeige der kompletten Bestellung, bitte auf den Pfeil klicken"}]
[]
[]
[]
[]
[]
[null,"  "," "]
[]
[]
[]
[]
[]
[]
[]
[]
[]
[]
[]
[]
[{"$f":"HLOOKUP(G3,A207:F227,7,0)","v":"Benötigen Sie zusätzliche Informationen?"}]
[]
[]
[]
[{"$f":"HLOOKUP(G3,A207:F227,11,0)","v":"Welches SmartHandle Cover muss ich bestellen? "},null,null,null,null,{"$f":"HLOOKUP(G3,A207:F227,8,0)","v":"Gesamtaufstellung aller verfügbaren SmartHandle Cover"},null,null,null,{"$f":"K224","v":"SimonsVoss Website"}]
[]
[]
[]
[]
[]
[]
[]
[]
[]
[]
[]
[]
[]
[]
[]
[]
[]
[]
[]
[]
[]
[]
[]
[]
[]
[]
[]
[]
[]
[]
[]
[]
[]
[]
[]
[]
[]
[]
[]
[]
[]
[]
[]
[]
[]
[]
[]
[]
[]
[]
[]
[]
[]
[]
[]
[]
[]
[]
[]
[]
[]
[]
[]
[]
[]
[]
[]
[]
[]
[]
[]
[]
[]
[]
[]
[]
[]
[]
[]
[]
[]
[]
[]
[]
[]
[]
[]
[]
[]
[]
[]
[]
[]
[]
[]
[]
[]
[]
[]
[]
[]
[]
[]
[]
[]
[]
[]
[]
[]
[]
[]
[]
[]
[]
[]
[]
[]
[]
[]
[]
[]
[]
[]
[]
[]
[]
[]
[]
[]
[]
[]
[]
[]
[]
[]
[]
[]
[]
[]
[]
[]
[]
[]
[]
[]
[]
[]
[]
[]
[]
[]
[]
[]
[]
[]
[]
["Deutsch","English","Français","Italiano","Nederlands",null,null,1]
["Was möchten Sie bestellen?","What would you like to order?","noch zu übersetzen","noch zu übersetzen","noch zu übersetzen",null,null,2]
["Smarthandle","Smarthandle","Smarthandle","Smarthandle","Smarthandle",null,null,3]
["Zylinder","cylinder","noch zu übersetzen","noch zu übersetzen","noch zu übersetzen",null,null,4]
["Programmierequipment & GatewayNodes","programming equipment & GatewayNodes","noch zu übersetzen","noch zu übersetzen","noch zu übersetzen",null,null,5]
["SmartHandle Cover","SmartHandle Cover","noch zu übersetzen","noch zu übersetzen","noch zu übersetzen",null,null,6]
["Benötigen Sie zusätzliche Informationen?","Do you require further information?","noch zu übersetzen","noch zu übersetzen","noch zu übersetzen",null,null,7]
["Gesamtaufstellung aller verfügbaren SmartHandle Cover","overview of all available SmartHandle covers","liste de toutes les plaques disponibles pour Smart Handles","elenco di tutte le possibili cover per la SmartHandle","Overzicht alle beschikbare Smarthandle schilden",null,null,8]
["https://www.simons-voss.com/de/system-3060/schliesskomponenten/digitales-smart-handle.html","https://www.simons-voss.com/en/system-3060/locking-components/digital-smart-handle.html","http://www.simons-voss.de/Smart-Handles.825.0.html?&L=2","http://www.simons-voss.de/Smart-Handles.825.0.html?&L=4","http://www.simons-voss.de/Smart-Handles.825.0.html?&L=3",null,null,null,null,null,{"$f":"HLOOKUP($G$3,A207:F215,9,0)","v":"https://www.simons-voss.com/de/system-3060/schliesskomponenten/digitales-smart-handle.html"},null,null,null,null,"aktiven Handles"]
["SimonsVoss Website\n(aktive SmartHandles)","SimonsVoss Website\n(active SmartHandles)","SimonsVoss Website\n(actif SmartHandles)","SimonsVoss Website\n(attiva SmartHandles)","SimonsVoss Website\n(actief SmartHandles)",null,null,10]
["Welches SmartHandle Cover muss ich bestellen? ","Which SmartHandle Cover do I need to order?","noch zu übersetzen","noch zu übersetzen","noch zu übersetzen",null,null,11]
["Zur Anzeige der kompletten Bestellung, bitte auf den Pfeil klicken","To show the complete order, please click the arrow","noch zu übersetzen","noch zu übersetzen","noch zu übersetzen",null,null,12]
["Bestell-Leitfaden","order guideline","noch zu übersetzen","noch zu übersetzen","noch zu übersetzen",null,null,13]
["Identifikations-Medien","ID medium","noch zu übersetzen","noch zu übersetzen","noch zu übersetzen",null,null,14,null,null,{"$f":"HLOOKUP($G$3,A207:F220,14,0)","v":"Identifikations-Medien"}]
["SimonsVoss Website\n(SmartCard SmartHandles)","SimonsVoss Website\n(SmartCard SmartHandles)","SimonsVoss Website\n(SmartCard SmartHandles)","SimonsVoss Website\n(SmartCard SmartHandles)","SimonsVoss Website\n(SmartCard SmartHandles)",null,null,15,null,null,{"$f":"HLOOKUP($G$3,$A$207:$F$241,15,0)","v":"SimonsVoss Website\n(SmartCard SmartHandles)"}]
["abweichende Lieferanschrift","delivery address ","noch zu übersetzen","noch zu übersetzen","noch zu übersetzen",null,null,null,null,null,{"$f":"HLOOKUP($G$3,$A$207:$F$241,16,0)","v":"abweichende Lieferanschrift"}]
["*** Bitte Makros aktivieren ***","*** Please enable macros ***","*** S'il vous plaît activer les macros ***","*** Si prega di abilitare le macro ***","*** Macro’s inschakelen ***",null,null,null,null,null,{"$f":"HLOOKUP($G$3,$A$207:$F$241,17,0)","v":"*** Bitte Makros aktivieren ***"}]
["SimonsVoss Website","SimonsVoss Website","noch zu übersetzen","noch zu übersetzen","noch zu übersetzen",null,null,null,null,null,{"$f":"HLOOKUP($G$3,$A$207:$F$241,18,0)","v":"SimonsVoss Website"}]
["http://www.simons-voss.de/Smart-Handles-Hybrid.1650.0.html?&L=http%252525253A%252525252F%252525252Fwww.hitquarters.com%252525252Fimages%252525252Fcafohu%252525252Fuqato%252525252F","http://www.simons-voss.de/Smart-Handles-Hybrid.1650.0.html?&L=1","http://www.simons-voss.de/Smart-Handles-Hybrid.1650.0.html?&L=2","http://www.simons-voss.de/Smart-Handles-Hybride.1650.0.html?&L=4","http://www.simons-voss.de/Smart-Handle-Hybrid.1650.0.html?&L=3",null,null,null,null,null,{"$f":"HLOOKUP($G$3,$A$207:$F$241,19,0)","v":"http://www.simons-voss.de/Smart-Handles-Hybrid.1650.0.html?&L=http%252525253A%252525252F%252525252Fwww.hitquarters.com%252525252Fimages%252525252Fcafohu%252525252Fuqato%252525252F"},null,null,null,"hybride SmartHandles"]
["http://www.simons-voss.de/Smart-Handles-SC.1350.0.html?&L=0","http://www.simons-voss.de/Smart-Handles-SC.1350.0.html?&L=1","http://www.simons-voss.de/Smart-Handles-SC.1350.0.html?&L=2","http://www.simons-voss.de/Smart-Handles-SC.1350.0.html?&L=4&1%2F%2A%27=","http://www.simons-voss.de/Smart-Handle-SC.1350.0.html?&L=3&%26L=5%272%3D",null,null,null,null,null,{"$f":"HLOOKUP($G$3,$A$207:$F$241,20,0)","v":"http://www.simons-voss.de/Smart-Handles-SC.1350.0.html?&L=0"},null,null,null,"passive SmartHandles"]
["zurück zur Hauptseite","back to main page","noch zu übersetzen","noch zu übersetzen","noch zu übersetzen",null,null,null,null,null,{"$f":"HLOOKUP($G$3,$A$207:$F$241,21,0)","v":"zurück zur Hauptseite"}]
["keine Auswahl getroffen","no selection made","noch zu übersetzen","noch zu übersetzen","noch zu übersetzen",null,null,null,null,null,{"$f":"HLOOKUP($G$3,$A$207:$F$241,22,0)","v":"keine Auswahl getroffen"}]

{"sheet":"Bilder SH-Cover für Anzeige","index":1,"n_rows":38,"n_cols":5,"rows_kept":38,"cut":false,"hidden":true,"merged":[]}
["schmal","Außenseite",null,null,"Innenseite"]
[null,"SH.CS",null,null,"SH.CS"]
[null,"SH.CSP",null,null,"SH.CS"]
[null,"SH.CS.XX",null,null,"SH.CS.XX"]
[null,"SH.CSP.XX",null,null,"SH.CS.XX"]
[null,"SH.CS.SO",null,null,"SH.CS.SO"]
[null,"SH.CSP.SO",null,null,"SH.CS.SO"]
[null,"SH.CS.SO.105",null,null,"SH.CS.SO.105"]
[null,"SH.CSP.SO.105",null,null,"SH.CS.SO.105"]
[null,"SH.CS.SR",null,null,"SH.CS.SR"]
[null,"SH.CSP.SR",null,null,"SH.CS.SR"]
[null,"SH.CS.SR.A78",null,null,"SH.CS.SR.I78"]
[null,"SH.CSP.SR.A78",null,null,"SH.CS.SR.I78"]
[null,"SH2.CSP",null,null,"SH.CS"]
[null,"SH2.CSP.X",null,null,"SH.CS.X"]
[null,"SH2.CSP.SO",null,null,"SH.CS.SO"]
[null,"SH2.CSP.SO.105",null,null,"SH.CS.SO.105"]
[null,"SH2.CSP.SR",null,null,"SH.CS.SR"]
[null,"SH2.CSP.SR.A78",null,null,"SH.CS.SR.I78"]
["breit","SH.CB",null,null,"SH.CB"]
[null,"SH.CBP",null,null,"SH.CB"]
[null,"SH.CB.XX",null,null,"SH.CB.XX"]
[null,"SH.CBP.XX",null,null,"SH.CB.XX"]
[null,"SH.CB.SO",null,null,"SH.CB.SO"]
[null,"SH.CBP.SO",null,null,"SH.CB.SO"]
[null,"SH.CB.SO.105",null,null,"SH.CB.SO.105"]
[null,"SH.CBP.SO.105",null,null,"SH.CB.SO.105"]
[null,"SH.CB.SR",null,null,"SH.CB.SR"]
[null,"SH.CBP.SR",null,null,"SH.CB.SR"]
[null,"SH.CB.SR.A78",null,null,"SH.CB.SR.I78"]
[null,"SH.CBP.SR.A78",null,null,"SH.CB.SR.I78"]
[null,"SH2.CBP",null,null,"SH.CB"]
[null,"SH2.CBP.XX",null,null,"SH.CB.XX"]
[null,"SH2.CBP.SO",null,null,"SH.CB.SO"]
[null,"SH2.CBP.SO.105",null,null,"SH.CB.SO.105"]
[null,"SH2.CBP.SR",null,null,"SH.CB.SR"]
[null,"SH2.CBP.SR.A78",null,null,"SH.CB.SR.I78"]
[null,"XXX",null,null,"XXX"]

{"sheet":"Bestellhilfe SmartHandles","index":2,"n_rows":648,"n_cols":44,"rows_kept":648,"cut":false,"hidden":true,"merged":[[28,0,28,16],[8,11,8,15],[4,0,4,1],[13,1,13,2],[25,0,25,15],[9,11,9,15],[11,11,11,13],[13,4,13,5],[11,14,11,15],[6,1,6,2],[4,3,4,4],[13,6,13,9],[15,4,15,5],[4,17,4,18],[1,7,1,10],[7,3,7,4],[11,6,11,7],[5,13,5,15],[3,7,3,10],[4,8,4,10],[11,4,11,5],[6,8,6,10]]}
[]
[]
[{"$f":"HLOOKUP($I$3,A149:E170,22,0)","v":"Bestellhilfe Digitales SmartHandle 3062"},null,null,null,null,null,null,null,{"$f":"'Hauptseite - main page'!G3","v":"Deutsch"}]
[]
[{"$f":"HLOOKUP($I$3,A149:E171,23,0)","v":"Europrofil / Swiss Round / British Oval"},null,null,{"$f":"HLOOKUP($I$3,A149:E190,42,0)","v":"Scandinavian Oval"},null,null,null,null,{"$f":"HLOOKUP($I$3,A149:E172,24,0)","v":"Drückervariante auswählen"},null,null,null,null,null,null,null,null,"Stand: 11 / 2018"]
[null,null,null,null,null,null,null,null,null,"C."]
[{"$f":"I3","v":"Deutsch"},null,null,null,null,null,null,null,{"$f":"VLOOKUP(J6,Comments!H29:I36,2,FALSE)","v":"U-Form rund"}]
[]
[]
[]
[]
[{"$f":"HLOOKUP($I$3,A149:E170,17,0)","v":"Kundennummer"},null,null,null,{"$f":"HLOOKUP($I$3,A149:E170,19,0)","v":"Projekt-Nr.  "},null,null,null,null,null,null,{"$f":"HLOOKUP($I$3,A149:E170,21,0)","v":"Anlage zu Bestellnummer  "}]
[]
[{"$f":"HLOOKUP($I$3,A149:E170,18,0)","v":"Kundenname"},null,null,null,{"$f":"HLOOKUP($I$3,A149:E170,20,0)","v":"Projekt-Name  "}]
[]
[{"$f":"HLOOKUP(I3,A149:E170,2,0)","v":"Anzahl"},{"$f":"J205","v":"Sicherheits-Klasse"},{"$f":"HLOOKUP($I$3,A149:E195,47,0)","v":"SmartHandle Typ"},{"$f":"HLOOKUP($I$3,A149:E170,3,0)","v":"Profilname"},{"$f":"HLOOKUP($I$3,A149:E170,5,0)","v":"Türdicke (mm)"},null,{"$f":"HLOOKUP($I$3,A149:E170,6,0)","v":"Vierkant"},{"$f":"HLOOKUP($I$3,A149:E170,7,0)","v":"Befestigung"},{"$f":"HLOOKUP($I$3,A149:E170,8,0)","v":"Entfernung"},{"$f":"HLOOKUP($I$3,A149:E170,9,0)","v":"Version"},{"$f":"HLOOKUP($I$3,A149:E170,10,0)","v":"Drücker außen"},{"$f":"HLOOKUP($I$3,A149:E170,11,0)","v":"Drücker innen"},{"$f":"HLOOKUP($I$3,A149:E170,12,0)","v":"Oberfläche"},{"$f":"HLOOKUP($I$3,A149:E170,13,0)","v":"Lesetechnik"},{"$f":"HLOOKUP($I$3,A149:E170,14,0)","v":"G1/G2"},{"$f":"HLOOKUP($I$3,A149:E170,15,0)","v":"Optionen"},{"$f":"HLOOKUP($I$3,A149:E170,16,0)","v":"kpl. Artikelnummer"},{"$f":"HLOOKUP($I$3,A149:E180,32,0)","v":"Artikelnummer korrekt?"},{"$f":"HLOOKUP($I$3,A149:E196,48,0)","v":"Zusatz-Information"},"Optionen für Artikelnummer","fertig zur Übertragung","Elektronik ja/nein","SmartHandle Typ","Profilname","Sicherheitsklasse","G1/G2","Optionen","Optionen Hilfstabelle","Zusammenfassung","G1/G2 Hilfstabelle"]
[null,null,null,null,null,{"$f":"IF(E17<>\"\",R341,\"\")","v":""},null,null,null,null,null,null,null,null,null,null,{"$f":"IF($D17<>\"\",$R253,\"\")&F17&G17&H17&I17&J17&K17&L17&M17&N17&IF(O17=\"G2\",\"G2\",\"\")&(IF(AND($J17<>0,$J17<>1),\"ZK\",\"\")&T17)","v":""},{"$f":"IF(AND(A17<>\"\",B17<>\"\",C17<>\"\",D17<>\"\",F17<>\"\",G17<>\"\",H17<>\"\",I17<>\"\",J17<>\"\",K17<>\"\",L17<>\"\",M17<>\"\",N17<>\"\",O17<>\"\",P17<>\"\"),$B$197,$A$197)","v":"Î"},{"$f":"IF(OR($C17=HLOOKUP($I$3,$A$149:$E$196,44,0),$C17=HLOOKUP($I$3,$A$149:$E$196,45,0)),HLOOKUP($I$3,$A$149:$E$198,50,0),IF(AND(E17<=30,E17>=91,P17=\"ZKWPDP\"),\"bitte DP-Längen beachten\",\"\"))","v":""},{"$f":"IF(OR(P17=\"\",P17=$J$204,P17=$J$214),\"\",P17)","v":""},{"$f":"IF(AND(Q17<>\"\",R17=$A$197),1,0)","v":0},{"$f":"IF(J17=0,\", (\"&$J$212&\")\",\"\")","v":", (ohne Elektronik)"},{"$f":"IF(C17<>\"\",C17,\"\")","v":""},{"$f":"IF(D17<>\"\",\", \"&D17,\"\")","v":""},{"$f":"IF(B17<>\"\",\", \"&B16&\" \"&B17,\"\")","v":""},{"$f":"IF(AND(O17<>\"\",AD17<>\"1\"),\", \"&O17,\"\")","v":""},{"$f":"IF(AND(P17<>\"\",AB17<>\"1\"),\", \"&P17,\"\")","v":""},{"$f":"IF(OR(P17=$J$204,P17=$J$214),\"1\",\"0\")","v":"0"},{"$f":"W17&X17&Z17&AA17&Y17&V17","v":", (ohne Elektronik)"},{"$f":"IF(OR(O17=$J$204,O17=$J$214),\"1\",\"0\")","v":"0"}]
[null,null,null,null,null,{"$f":"IF(E18<>\"\",R342,\"\")","v":""},null,null,null,null,null,null,null,null,null,null,"","Î",{"$f":"IF(OR($C18=HLOOKUP($I$3,$A$149:$E$196,44,0),$C18=HLOOKUP($I$3,$A$149:$E$196,45,0)),HLOOKUP($I$3,$A$149:$E$198,50,0),\"\")","v":""},"",0,null,{"$f":"IF(C18<>\"\",C18,\"\")","v":""},{"$f":"IF(D18<>\"\",\", \"&D18,\"\")","v":""},{"$f":"IF(B18<>\"\",\", \"&B17&\" \"&B18,\"\")","v":""},{"$f":"IF(AND(O18<>\"\",AD18<>\"1\"),\", \"&O18,\"\")","v":""},{"$f":"IF(AND(P18<>\"\",AB18<>\"1\"),\", \"&P18,\"\")","v":""},"0",{"$f":"W18&X18&Z18&AA18&Y18&V18","v":""},"0"]
[null,null,null,null,null,"",null,null,null,null,null,null,null,null,null,null,"","Î","","",0,null,"","","","","","0","","0"]
[null,null,null,null,null,"",null,null,null,null,null,null,null,null,null,null,"","Î","","",0,null,"","","","","","0","","0"]
[null,null,null,null,null,"",null,null,null,null,null,null,null,null,null,null,"","Î","","",0,null,"","","","","","0","","0"]
[null,null,null,null,null,"",null,null,null,null,null,null,null,null,null,null,"","Î","","",0,null,"","","","","","0","","0"]
[null,null,null,null,null,"",null,null,null,null,null,null,null,null,null,null,"","Î","","",0,null,"","","","","","0","","0"]
[null,null,null,null,null,"",null,null,null,null,null,null,null,null,null,null,"","Î","","",0,null,"","","","","","0","","0"]
[]
[{"$f":"IF(OR(OR(C17=HLOOKUP($I$3,A149:E196,44,0),C17=HLOOKUP($I$3,A149:E196,45,0)),OR(C18=HLOOKUP($I$3,A149:E196,44,0),C18=HLOOKUP($I$3,A149:E196,45,0)),OR(C19=HLOOKUP($I$3,A149:E196,44,0),C19=HLOOKUP($I$3,A149:E196,45,0)),OR(C20=HLOOKUP($I$3,A149:E196,44,0),C20=HLOOKUP($I$3,A149:E196,45,0)),OR(C21=HLOOKUP($I$3,A149:E196,44,0),C21=HLOOKUP($I$3,A149:E196,45,0)),OR(C22=HLOOKUP($I$3,A149:E196,44,0),C22=HLOOKUP($I$3,A149:E196,45,0)),OR(C23=HLOOKUP($I$3,A149:E196,44,0),C23=HLOOKUP($I$3,A149:E196,45,0)),OR(C24=HLOOKUP($I$3,A149:E196,44,0),C24=HLOOKUP($I$3,A149:E196,45,0))),HLOOKUP($I$3,A149:E199,51,0),\"\")","v":""},null,null,null,null,null,null,null,null,null,null,null,null,null,null,null,null,null,null,null,{"$f":"SUM(U17:U24)","v":0}]
[]
[{"$f":"HLOOKUP($I$3,A149:E186,38,0)","v":"Bemerkungen"}]
[]
[]
[]
[]
[]
["Profilname","X","Y",null,null,1,2,3,4,5,6,7,8,9,10,11,12,13,14]
[{"$f":"IF($I$3=\"Deutsch\",$A$173,IF($I$3=\"English\",$B$173,IF($I$3=\"Français\",$C$173,IF($I$3=\"Italiano\",$D$173,IF($I$3=\"Nederlands\",$E$173,\"\")))))","v":"Europrofil ohne Lochung für Profilzylinder (SHA)"},1,1,null,null,70,"00","05","05",70,"00",72,"00",78,"00","05","05",72,"00"]
[{"$f":"IF($I$3=\"Deutsch\",$A$174,IF($I$3=\"English\",$B$174,IF($I$3=\"Français\",$C$174,IF($I$3=\"Italiano\",$D$174,IF($I$3=\"Nederlands\",$E$174,\"\")))))","v":"Swiss Round ohne Lochung für Profilzylinder (SHA)"},9,1,null,null,72,null,null,null,72,null,75,null,94,null,null,null,75]
[{"$f":"IF($I$3=\"Deutsch\",$A$175,IF($I$3=\"English\",$B$175,IF($I$3=\"Français\",$C$175,IF($I$3=\"Italiano\",$D$175,IF($I$3=\"Nederlands\",$E$175,\"\")))))","v":"British Oval ohne Lochung für Profilzylinder (SHA) (*)"},1,1,null,null,75,null,null,null,75,null,78,null,null,null,null,null,78]
[{"$f":"IF($I$3=\"Deutsch\",$A$176,IF($I$3=\"English\",$B$176,IF($I$3=\"Français\",$C$176,IF($I$3=\"Italiano\",$D$176,IF($I$3=\"Nederlands\",$E$176,\"\")))))","v":"Scandinavian Oval ohne Lochung für Profilzylinder (SHB)"},3,3,null,null,78,null,null,null,78,null,85,null,null,null,null,null,85]
[{"$f":"IF($I$3=\"Deutsch\",$A$177,IF($I$3=\"English\",$B$177,IF($I$3=\"Français\",$C$177,IF($I$3=\"Italiano\",$D$177,IF($I$3=\"Nederlands\",$E$177,\"\")))))","v":"Europrofil mit Lochung für Profilzylinder MO (SHC) "},6,2,null,null,85,null,null,null,85,null,88,null,null,null,null,null,88]
[{"$f":"IF($I$3=\"Deutsch\",$A$178,IF($I$3=\"English\",$B$178,IF($I$3=\"Français\",$C$178,IF($I$3=\"Italiano\",$D$178,IF($I$3=\"Nederlands\",$E$178,\"\")))))","v":"Swiss Round mit Lochung für Profilzylinder MO (SHD)"},8,2,null,null,88,null,null,null,88,null,90,null,null,null,null,null,90]
[{"$f":"IF($I$3=\"Deutsch\",$A$179,IF($I$3=\"English\",$B$179,IF($I$3=\"Français\",$C$179,IF($I$3=\"Italiano\",$D$179,IF($I$3=\"Nederlands\",$E$179,\"\")))))","v":"Scandinavian Oval mit Lochung für Profilzylinder MO (SHE)"},10,2,null,null,90,null,null,null,90,null,92,null,null,null,null,null,92]
[{"$f":"$J$201","v":"Europrofil mit MO - Rosettenmontage (SHF) "},12,4,null,null,92,null,null,null,94]
[{"$f":"$J$217","v":"Swiss Round mit MO - Rosettenmontage (SHG) "},null,4]
[{"$f":"$J$218","v":"Europrofil mit MO - für Rohrrahmentüren (SHH) "},null,8]
[{"$f":"$J$219","v":"Swiss Round mit MO - für Rohrrahmentüren (SHI) "},null,8]
[null,null,null,null,null,null,null,null,null,null,"Vierkant 09 ohne Elektronik nicht möglich"]
[null,null,null,null,null,1,2,3,4,5,6,7,8]
[null,null,null,null,null,"A","E","C","F","E","C","E","E"]
[null,null,null,null,null,"B","F","D","H","F","D","F","G"]
[null,null,null,null,null,"C","G",null,"J","G",null,"G","I"]
["Befestigung",null,null,null,null,"D","H",null,"L","H",null,"H","K"]
["A",0,0,null,null,null,"I",null,null,"I",null,"I"]
["B",0,0,null,null,null,"J",null,null,"J",null,"J"]
["C",1,0,null,null,null,"K",null,null,"K",null,"K"]
["D",1,0,null,null,null,"L",null,null,"L",null,"L"]
["E",1,1]
["F",1,1]
["G",1,1]
["H",1,1]
["I",1,1]
["J",1,1]
["K",2,2]
["L",2,2]
[]
[]
[{"$f":"J206","v":"Standard"},null,0]
[{"$f":"J207","v":"E1 / PAS 24 "},null,2]
[{"$f":"J208","v":"Bohrschutz SO"},null,3]
[{"$f":"J209","v":"SKG"},null,2]
[]
[]
[]
[]
[]
[null,null,"Abfrage nur Profilname und ja/nein"]
["Zeile 17",{"$f":"VLOOKUP($H17,$A$52:$C$63,2,FALSE)+VLOOKUP($D17,$A$35:$C$45,2,FALSE)","v":{"$error":"#N/A"}},{"$f":"VLOOKUP(D17,$A$35:$C$45,3,FALSE)+VLOOKUP(B17,$A$66:$C$69,3,FALSE)","v":{"$error":"#N/A"}}]
["Zeile 18",{"$f":"VLOOKUP($H18,$A$52:$C$63,2,FALSE)+VLOOKUP($D18,$A$35:$C$45,2,FALSE)","v":{"$error":"#N/A"}},{"$f":"VLOOKUP(D18,$A$35:$C$45,3,FALSE)+VLOOKUP(B18,$A$66:$C$69,3,FALSE)","v":{"$error":"#N/A"}}]
["Zeile 19",{"$error":"#N/A"},{"$error":"#N/A"}]
["Zeile 20",{"$error":"#N/A"},{"$error":"#N/A"}]
["Zeile 21",{"$error":"#N/A"},{"$error":"#N/A"}]
["Zeile 22",{"$error":"#N/A"},{"$error":"#N/A"}]
["Zeile 23",{"$error":"#N/A"},{"$error":"#N/A"}]
["Zeile 24",{"$error":"#N/A"},{"$error":"#N/A"}]
[null,{"$error":"#N/A"},{"$error":"#N/A"}]
[]
[]
[]
[]
[]
[]
[]
[]
[]
[]
[]
[]
[]
["Türdicke",null,"Drücker außen","Drücker innen",null,"Oberfläche",null,null,null,null,null,null,null,null,null,"Lesetechnik",null,"Optionen"]
["S",null,"A","A",null,1,null,null,null,null,null,null,null,null,null,null,null,1,2,3,4,5,6,7,8,9,10,11,12]
["M",null,"B","B",null,3,null,null,null,null,null,null,null,null,null,null,null,{"$f":"$J$204","v":"nicht verfügbar"},{"$f":"$J$214","v":"nicht benötigt"},{"$f":"$J$214","v":"nicht benötigt"},{"$f":"$J$204","v":"nicht verfügbar"},"E1","E1",{"$f":"$J$204","v":"nicht verfügbar"},"DP","DP",{"$f":"$J$204","v":"nicht verfügbar"},"DP","DP"]
["L",null,"C","C",null,null,null,null,null,null,null,null,null,null,null,null,null,null,"ZK","WP",null,"ZKE1","ZKE1",null,"WPDP","WPDP",null,"WPDP","WPDP"]
[null,null,"D","D",null,null,null,null,null,null,null,null,null,null,null,null,null,null,"ZKWP",null,null,"ZKWPE1","ZKWPE1",null,"ZKDP",null,null,"ZKDP"]
[null,null,"E","E",null,null,null,null,null,null,null,null,null,null,null,null,null,null,"WP",null,null,"WPE1","WPE1",null,"ZKWPDP",null,null,"ZKWPDP"]
[null,null,"F","F"]
[null,null,"G","G",null,null,null,null,null,null,null,null,null,null,null,"Profil"]
[null,null,"H","H",null,null,null,null,null,null,null,null,null,null,null,{"$f":"IF($I$3=\"Deutsch\",$A$173,IF($I$3=\"English\",$B$173,IF($I$3=\"Français\",$C$173,IF($I$3=\"Italiano\",$D$173,IF($I$3=\"Nederlands\",$E$173,\"\")))))","v":"Europrofil ohne Lochung für Profilzylinder (SHA)"},0]
["Übersetzung der Profile in Abkürzung",null,null,null,null,"Vierkant",null,null,null,null,null,null,null,null,null,{"$f":"IF($I$3=\"Deutsch\",$A$174,IF($I$3=\"English\",$B$174,IF($I$3=\"Français\",$C$174,IF($I$3=\"Italiano\",$D$174,IF($I$3=\"Nederlands\",$E$174,\"\")))))","v":"Swiss Round ohne Lochung für Profilzylinder (SHA)"},0]
[{"$f":"IF($I$3=\"Deutsch\",$A173,IF($I$3=\"English\",$B173,IF($I$3=\"Français\",$C173,IF($I$3=\"Italiano\",$D173,IF($I$3=\"Nederlands\",$E173,\"\")))))","v":"Europrofil ohne Lochung für Profilzylinder (SHA)"},1,"SHA",1,null,1,2,3,4,5,6,7,null,null,null,{"$f":"IF($I$3=\"Deutsch\",$A$176,IF($I$3=\"English\",$B$176,IF($I$3=\"Français\",$C$176,IF($I$3=\"Italiano\",$D$176,IF($I$3=\"Nederlands\",$E$176,\"\")))))","v":"Scandinavian Oval ohne Lochung für Profilzylinder (SHB)"},0]
["Swiss Round ohne Lochung für Profilzylinder (SHA)",1,"SHA",1,null,"07","08","08","08","07","08","08",null,null,null,{"$f":"IF($I$3=\"Deutsch\",$A$177,IF($I$3=\"English\",$B$177,IF($I$3=\"Français\",$C$177,IF($I$3=\"Italiano\",$D$177,IF($I$3=\"Nederlands\",$E$177,\"\")))))","v":"Europrofil mit Lochung für Profilzylinder MO (SHC) "},0]
["British Oval ohne Lochung für Profilzylinder (SHA) (*)",1,"SHA",1,null,"08","F8",null,null,"08","F8",null,null,null,null,{"$f":"IF($I$3=\"Deutsch\",$A$178,IF($I$3=\"English\",$B$178,IF($I$3=\"Français\",$C$178,IF($I$3=\"Italiano\",$D$178,IF($I$3=\"Nederlands\",$E$178,\"\")))))","v":"Swiss Round mit Lochung für Profilzylinder MO (SHD)"},0]
["Scandinavian Oval ohne Lochung für Profilzylinder (SHB)",2,"SHB",3,null,"F8","09",null,null,"F8","09",null,null,null,null,{"$f":"IF($I$3=\"Deutsch\",$A$179,IF($I$3=\"English\",$B$179,IF($I$3=\"Français\",$C$179,IF($I$3=\"Italiano\",$D$179,IF($I$3=\"Nederlands\",$E$179,\"\")))))","v":"Scandinavian Oval mit Lochung für Profilzylinder MO (SHE)"},0]
["Europrofil mit Lochung für Profilzylinder MO (SHC) ",3,"SHC",1,null,"09","10",null,null,"09",null,null,null,null,null,{"$f":"IF($I$3=\"Deutsch\",$A$201,IF($I$3=\"English\",$B$201,IF($I$3=\"Français\",$C$201,IF($I$3=\"Italiano\",$D$201,IF($I$3=\"Nederlands\",$E$201,\"\")))))","v":"Europrofil mit MO - Rosettenmontage (SHF) "},0]
["Swiss Round mit Lochung für Profilzylinder MO (SHD)",4,"SHD",1,null,"10",null,null,null,null,null,null,null,null,null,{"$f":"$J$217","v":"Swiss Round mit MO - Rosettenmontage (SHG) "},0]
["Scandinavian Oval mit Lochung für Profilzylinder MO (SHE)",5,"SHE",3,null,null,null,null,null,null,null,null,null,null,null,{"$f":"$J$218","v":"Europrofil mit MO - für Rohrrahmentüren (SHH) "},0]
[{"$f":"$J$201","v":"Europrofil mit MO - Rosettenmontage (SHF) "},1,"SHF",1,null,null,null,null,null,null,null,null,null,null,null,{"$f":"$J$219","v":"Swiss Round mit MO - für Rohrrahmentüren (SHI) "},0]
[{"$f":"$J$217","v":"Swiss Round mit MO - Rosettenmontage (SHG) "},1,"SHG",1]
[{"$f":"$J$218","v":"Europrofil mit MO - für Rohrrahmentüren (SHH) "},1,"SHH",1]
[{"$f":"$J$219","v":"Swiss Round mit MO - für Rohrrahmentüren (SHI) "},1,"SHI",1]
[]
[]
[]
[]
[null,null,null,null,null,null,null,null,null,null,null,null,null,null,null,"Entfernung"]
[null,null,"S",0,null,null,null,null,null,null,null,null,null,null,null,"00",0]
[null,null,"M",0,null,null,null,null,null,null,null,null,null,null,null,"05",0]
[null,null,"L",1,null,null,null,null,null,null,null,null,null,null,null,70,0]
[null,null,null,null,null,null,null,null,null,null,null,null,null,null,null,72,0]
[null,null,{"$f":"J206","v":"Standard"},0,null,null,null,null,null,null,null,null,null,null,null,75,0]
[null,null,{"$f":"J207","v":"E1 / PAS 24 "},4,null,null,null,null,null,null,null,null,null,null,null,78,0]
[null,null,"Bohrschutz SO",0,null,null,null,null,null,null,null,null,null,null,null,85,0]
[null,null,"SKG",4,null,null,null,null,null,null,null,null,null,null,null,88,0]
[null,null,null,null,null,null,null,null,null,null,null,null,null,null,null,90,0]
[null,null,null,null,null,null,null,null,null,null,null,null,null,null,null,92,0]
[null,null,null,null,null,null,null,null,null,null,null,null,null,null,null,94,0]
[null,null,null,null,null,null,null,null,null,null,null,null,null,null,null,96,0]
[]
[null,null,null,null,null,null,null,null,null,null,null,null,null,null,null,"Version",null,null,{"$f":"J205","v":"Sicherheits-Klasse"}]
["Zeile 17",null,null,{"$f":"VLOOKUP(D17,$A$108:$D$118,4,FALSE)+VLOOKUP($F17,$C$124:$D$126,2,FALSE)+VLOOKUP(B17,$C$128:$D$131,2,FALSE)","v":{"$error":"#N/A"}},null,null,null,null,null,null,null,null,null,null,null,0,1,null,{"$f":"J206","v":"Standard"},0]
["Zeile 18",null,null,{"$f":"VLOOKUP(D18,$A$108:$D$118,4,FALSE)+VLOOKUP($F18,$C$124:$D$126,2,FALSE)+VLOOKUP(B18,$C$128:$D$131,2,FALSE)","v":{"$error":"#N/A"}},null,null,null,null,null,null,null,null,null,null,null,1,2,null,{"$f":"J207","v":"E1 / PAS 24 "},3]
["Zeile 19",null,null,{"$error":"#N/A"},null,null,null,null,null,null,null,null,null,null,null,2,3,null,{"$f":"J208","v":"Bohrschutz SO"},6]
["Zeile 20",null,null,{"$error":"#N/A"},null,null,null,null,null,null,null,null,null,null,null,3,3,null,{"$f":"J209","v":"SKG"},9]
["Zeile 21",null,null,{"$error":"#N/A"},null,null,null,null,null,null,null,null,null,null,null,4,3]
["Zeile 22",null,null,{"$error":"#N/A"}]
["Zeile 23",null,null,{"$error":"#N/A"}]
["Zeile 24",null,null,{"$error":"#N/A"}]
[null,null,null,{"$error":"#N/A"},null,null,null,null,null,null,null,null,null,null,null,"Zeile 17",{"$f":"VLOOKUP($D17,$P$106:$Q$115,2,FALSE)+VLOOKUP($I17,$P$124:$Q$135,2,FALSE)+VLOOKUP($J17,$P$138:$Q$142,2,FALSE)+VLOOKUP(B17,$S$138:$T$141,2,FALSE)","v":{"$error":"#N/A"}}]
[null,null,null,null,null,null,null,null,null,null,null,null,null,null,null,"Zeile 18",{"$f":"VLOOKUP($D18,$P$106:$Q$115,2,FALSE)+VLOOKUP($I18,$P$124:$Q$135,2,FALSE)+VLOOKUP($J18,$P$138:$Q$142,2,FALSE)+VLOOKUP(B18,$S$138:$T$141,2,FALSE)","v":{"$error":"#N/A"}}]
[null,null,null,null,null,null,null,null,null,null,null,null,null,null,null,"Zeile 19",{"$error":"#N/A"}]
["Deutsch","English","Français","Italiano","Nederlands",null,null,null,1,null,null,null,null,null,null,"Zeile 20",{"$error":"#N/A"}]
["Anzahl","Quantity","Quantité","Quantità","Aantal",null,null,null,2,null,null,null,null,null,null,"Zeile 21",{"$error":"#N/A"}]
["Profilname","Lock Type","Type de profil","Tipo di profilo","Sluiting type",null,null,null,3,null,null,null,null,null,null,"Zeile 22",{"$error":"#N/A"}]
["Profil","Lock Code","Profil","Codice del profilo","Sluiting code",null,null,null,4,null,null,null,null,null,null,"Zeile 23",{"$error":"#N/A"}]
["Türdicke (mm)","Door Thickness (mm)","Epaisseur de porte (mm)","Spessore porta (mm)","Deurdikte (mm)",null,null,null,5,null,null,null,null,null,null,"Zeile 24",{"$error":"#N/A"}]
["Vierkant","Spindle Square","Carré","Quadro maniglia","Vierkant stift",null,null,null,6]
["Befestigung","Fixing / Back Plate Width","Fixation / largeur de plaque","Fissaggio","Bevestiging/ Grondplaat breed",null,null,null,7]
["Entfernung","Centre Distance","Distance","Interasse","H.O.H. maat",null,null,null,8]
["Version","Version","Version","Versione","Versie",null,null,null,9]
["Drücker außen","Handle Variants Outside","Variantes de la béquille extérieure","Maniglia esterna","Deurkruk type Buiten",null,null,null,10]
["Drücker innen","Handle Variants Inside","Variantes de la béquille intérieure","Maniglia interna","Deurkruk type Binnen",null,null,null,11,null,null,null,null,null,null,"Anzeige der möglichen Profile",null,null,null,1,2,3,4,5,6]
["Oberfläche","Surface Finish","Finition de la surface:","Superficie","Afwerking",null,null,null,12,null,null,null,null,null,null,{"$f":"IF($I$3=\"Deutsch\",$A$191,IF($I$3=\"English\",$B$191,IF($I$3=\"Français\",$C$191,IF($I$3=\"Italiano\",$D$191,IF($I$3=\"Nederlands\",$E$191,\"\")))))","v":"Standard SmartHandle (ohne Door Monitoring)"},1,null,null,{"$f":"IF($I$3=\"Deutsch\",$A$173,IF($I$3=\"English\",$B$173,IF($I$3=\"Français\",$C$173,IF($I$3=\"Italiano\",$D$173,IF($I$3=\"Nederlands\",$E$173,\"\")))))","v":"Europrofil ohne Lochung für Profilzylinder (SHA)"},{"$f":"IF($I$3=\"Deutsch\",$A$173,IF($I$3=\"English\",$B$173,IF($I$3=\"Français\",$C$173,IF($I$3=\"Italiano\",$D$173,IF($I$3=\"Nederlands\",$E$173,\"\")))))","v":"Europrofil ohne Lochung für Profilzylinder (SHA)"},{"$f":"IF($I$3=\"Deutsch\",$A$173,IF($I$3=\"English\",$B$173,IF($I$3=\"Français\",$C$173,IF($I$3=\"Italiano\",$D$173,IF($I$3=\"Nederlands\",$E$173,\"\")))))","v":"Europrofil ohne Lochung für Profilzylinder (SHA)"},{"$f":"IF($I$3=\"Deutsch\",$A$173,IF($I$3=\"English\",$B$173,IF($I$3=\"Français\",$C$173,IF($I$3=\"Italiano\",$D$173,IF($I$3=\"Nederlands\",$E$173,\"\")))))","v":"Europrofil ohne Lochung für Profilzylinder (SHA)"},{"$f":"IF($I$3=\"Deutsch\",$A$176,IF($I$3=\"English\",$B$176,IF($I$3=\"Français\",$C$176,IF($I$3=\"Italiano\",$D$176,IF($I$3=\"Nederlands\",$E$176,\"\")))))","v":"Scandinavian Oval ohne Lochung für Profilzylinder (SHB)"},{"$f":"IF($I$3=\"Deutsch\",$A$176,IF($I$3=\"English\",$B$176,IF($I$3=\"Français\",$C$176,IF($I$3=\"Italiano\",$D$176,IF($I$3=\"Nederlands\",$E$176,\"\")))))","v":"Scandinavian Oval ohne Lochung für Profilzylinder (SHB)"}]
["Lesetechnik","Reading Technology","Technique de lecture","Tecnologia di lettura","Leestechniek",null,null,null,13,null,null,null,null,null,null,{"$f":"IF($I$3=\"Deutsch\",$A$192,IF($I$3=\"English\",$B$192,IF($I$3=\"Français\",$C$192,IF($I$3=\"Italiano\",$D$192,IF($I$3=\"Nederlands\",$E$192,\"\")))))","v":"Door Monitoring (interne Sensorik)"},2,null,null,{"$f":"IF($I$3=\"Deutsch\",$A$174,IF($I$3=\"English\",$B$174,IF($I$3=\"Français\",$C$174,IF($I$3=\"Italiano\",$D$174,IF($I$3=\"Nederlands\",$E$174,\"\")))))","v":"Swiss Round ohne Lochung für Profilzylinder (SHA)"},null,null,null,null,{"$f":"IF($I$3=\"Deutsch\",$A$179,IF($I$3=\"English\",$B$179,IF($I$3=\"Français\",$C$179,IF($I$3=\"Italiano\",$D$179,IF($I$3=\"Nederlands\",$E$179,\"\")))))","v":"Scandinavian Oval mit Lochung für Profilzylinder MO (SHE)"}]
["G1/G2","G1/G2","G1 / G2","G1/G2","G1/G2",null,null,null,14,null,null,null,null,null,null,{"$f":"IF($I$3=\"Deutsch\",$A$193,IF($I$3=\"English\",$B$193,IF($I$3=\"Français\",$C$193,IF($I$3=\"Italiano\",$D$193,IF($I$3=\"Nederlands\",$E$193,\"\")))))","v":"Door Monitoring (externe Sensorik)"},1,null,null,{"$f":"IF($I$3=\"Deutsch\",$A$176,IF($I$3=\"English\",$B$176,IF($I$3=\"Français\",$C$176,IF($I$3=\"Italiano\",$D$176,IF($I$3=\"Nederlands\",$E$176,\"\")))))","v":"Scandinavian Oval ohne Lochung für Profilzylinder (SHB)"}]
["Optionen","Options","Options","Opzioni","Opties",null,null,null,15,null,null,null,null,null,null,{"$f":"IF($I$3=\"Deutsch\",$A$194,IF($I$3=\"English\",$B$194,IF($I$3=\"Français\",$C$194,IF($I$3=\"Italiano\",$D$194,IF($I$3=\"Nederlands\",$E$194,\"\")))))","v":"Door Monitoring (Drückersensorik)"},1,null,null,{"$f":"IF($I$3=\"Deutsch\",$A$177,IF($I$3=\"English\",$B$177,IF($I$3=\"Français\",$C$177,IF($I$3=\"Italiano\",$D$177,IF($I$3=\"Nederlands\",$E$177,\"\")))))","v":"Europrofil mit Lochung für Profilzylinder MO (SHC) "}]
["kpl. Artikelnummer","Complete Part Number","Code article complet","Numero articolo completo","Complete onderdeel nummer",null,null,null,16,null,null,null,null,null,null,{"$f":"IF($I$3=\"Deutsch\",$A$195,IF($I$3=\"English\",$B$195,IF($I$3=\"Français\",$C$195,IF($I$3=\"Italiano\",$D$195,IF($I$3=\"Nederlands\",$E$195,\"\")))))","v":"SmartHandle Typ"},1,null,null,{"$f":"IF($I$3=\"Deutsch\",$A$178,IF($I$3=\"English\",$B$178,IF($I$3=\"Français\",$C$178,IF($I$3=\"Italiano\",$D$178,IF($I$3=\"Nederlands\",$E$178,\"\")))))","v":"Swiss Round mit Lochung für Profilzylinder MO (SHD)"}]
["Kundennummer","Customer No.","Numéro de client","Cliente numero","Klantnr.",null,null,null,17,null,null,null,null,null,null,{"$f":"IF($I$3=\"Deutsch\",$A$200,IF($I$3=\"English\",$B$200,IF($I$3=\"Français\",$C$200,IF($I$3=\"Italiano\",$D$200,IF($I$3=\"Nederlands\",$E$200,\"\")))))","v":"Plattensystem mit MO "},1,null,null,{"$f":"IF($I$3=\"Deutsch\",$A$179,IF($I$3=\"English\",$B$179,IF($I$3=\"Français\",$C$179,IF($I$3=\"Italiano\",$D$179,IF($I$3=\"Nederlands\",$E$179,\"\")))))","v":"Scandinavian Oval mit Lochung für Profilzylinder MO (SHE)"}]
["Kundenname","Customer Name","Nom du client","Nome cliente","Klant naam",null,null,null,18,null,null,null,null,null,null,{"$f":"$J$201","v":"Europrofil mit MO - Rosettenmontage (SHF) "},1,null,null,{"$f":"IF($I$3=\"Deutsch\",$A$201,IF($I$3=\"English\",$B$201,IF($I$3=\"Français\",$C$201,IF($I$3=\"Italiano\",$D$201,IF($I$3=\"Nederlands\",$E$201,\"\")))))","v":"Europrofil mit MO - Rosettenmontage (SHF) "}]
["Projekt-Nr.  ","Project No.","Numéro de projet","Progetto numero","Projectnr.",null,null,null,19,null,null,null,null,null,null,{"$f":"$J$217","v":"Swiss Round mit MO - Rosettenmontage (SHG) "},1,null,null,{"$f":"$J$217","v":"Swiss Round mit MO - Rosettenmontage (SHG) "}]
["Projekt-Name  ","Project Name","Nom du projet","Nome progetto","Project naam",null,null,null,20,null,null,null,null,null,null,{"$f":"$J$218","v":"Europrofil mit MO - für Rohrrahmentüren (SHH) "},1,null,null,{"$f":"$J$218","v":"Europrofil mit MO - für Rohrrahmentüren (SHH) "}]
["Anlage zu Bestellnummer  ","Attachment to Order No.","Pièce(s) jointe(s) à la commande","Allegato all'ordine","Bijlage bij ordernr.",null,null,null,21,null,null,null,null,null,null,{"$f":"$J$219","v":"Swiss Round mit MO - für Rohrrahmentüren (SHI) "},1,null,null,{"$f":"$J$219","v":"Swiss Round mit MO - für Rohrrahmentüren (SHI) "}]
["Bestellhilfe Digitales SmartHandle 3062","Ordering Guide Digital SmartHandle 3062","Guide de commande pour plaques béquilles 3062","Guida all'ordinazione di Smart Handle 3062","Bestelhulp Digitale SmartHandle 3062",null,null,null,22]
["Europrofil / Swiss Round / British Oval","Europrofile / Swiss Round / British Oval","Profil européen / Profil suisse / Ovale britannique","profilo europeo / tondo svizzero / British Oval","Euro profiel / Swiss Round / British Oval",null,null,null,23]
["Drückervariante auswählen","select handle variant","Variantes poignée ","Variante maniglia","Deurkruk variant",null,null,null,24]
["Europrofil ohne Lochung für Profilzylinder (SHA)","Europrofile without MO (SHA)","profil européen sans VM (SHA)","profilo europeo senza MO (SHA)","Euro profiel zonder MO (SHA)",null,null,null,25,null,null,null,null,null,null,{"$f":"$J$206","v":"Standard"},0]
["Swiss Round ohne Lochung für Profilzylinder (SHA)","Swiss Round without MO (SHA)","profil suisse sans VM (SHA)","tondo svizzero senza MO (SHA)","Swiss Round zonder MO (SHA)",null,null,null,26,null,null,null,null,null,null,{"$f":"$J$207","v":"E1 / PAS 24 "},2]
["British Oval ohne Lochung für Profilzylinder (SHA) (*)","British Oval without MO (SHA) (*)","ovale britannique sans VM (SHA) (*)","British Oval senza MO (SHA) (*)","British Oval zonder MO (SHA) (*)",null,null,null,27,null,null,null,null,null,null,{"$f":"$J$208","v":"Bohrschutz SO"},4]
["Scandinavian Oval ohne Lochung für Profilzylinder (SHB)","Scandinavian Oval without MO (SHB)","Ovale scandinave sans VM (SHB)","Scandinavian Oval senza MO (SHB)","Scandinavian Oval zonder MO (SHB)",null,null,null,28,null,null,null,null,null,null,{"$f":"J209","v":"SKG"},2]
["Europrofil mit Lochung für Profilzylinder MO (SHC) ","Europrofile with MO (SHC)","profil européen avec VM (SHC)","profilo europeo con MO (SHC)","Euro profiel met MO (SHC)",null,null,null,29]
["Swiss Round mit Lochung für Profilzylinder MO (SHD)","Swiss Round with MO (SHD)","profil suisse avec VM (SHD)","tondo svizzero con MO (SHD)","Swiss Round met MO (SHD)",null,null,null,30,null,null,null,null,null,null,"Zeile 17",{"$f":"VLOOKUP(C17,$P$160:$Q$169,2,FALSE)+VLOOKUP(B17,$P$173:$Q$176,2,FALSE)","v":{"$error":"#N/A"}}]
["Scandinavian Oval mit Lochung für Profilzylinder MO (SHE)","Scandinavian Oval with MO (SHE)","Ovale scandinave avec VM (SHE)","Scandinavian Oval con MO (SHE)","Scandinavian Oval met MO (SHE)",null,null,null,31,null,null,null,null,null,null,"Zeile 18",{"$f":"VLOOKUP(C18,$P$160:$Q$169,2,FALSE)+VLOOKUP(B18,$P$173:$Q$176,2,FALSE)","v":{"$error":"#N/A"}}]
["Artikelnummer korrekt?","part numer correct?","Code article correct?","Numero articolo giusto?","onderdeel nummer juist?",null,null,null,32,null,null,null,null,null,null,"Zeile 19",{"$error":"#N/A"}]
["Download Bestellhilfe (Händlerbereich)","Download of the ordering guide (Value Added Resellers)","Téléchargement Guide de commande (Revendeurs)","Scaricamento del Guida all'ordinazione di Smart Handle (Rivenditori)","Download Bestelhulp Digitale SmartHandle (Handelaars)",null,null,null,33,null,null,null,null,null,null,"Zeile 20",{"$f":"VLOOKUP(C20,$P$160:$Q$169,2,FALSE)+VLOOKUP(B20,$P$173:$Q$176,2,FALSE)","v":{"$error":"#N/A"}}]
["*** Bitte Makros aktivieren ***","*** Please enable macros ***","*** S'il vous plaît activer les macros ***","*** Si prega di abilitare le macro ***","*** Macro’s inschakelen ***",null,null,null,34,null,null,null,null,null,null,"Zeile 21",{"$error":"#N/A"}]
["zum Produkt: Smart Handle aktiv","about the product: Smart Handle active","voir le produit: Smart Handle active","vai al prodotto Smart Handle attiva","product bekijken: Smart Handle actieve",null,null,null,35,null,null,null,null,null,null,"Zeile 22",{"$error":"#N/A"}]
["zum Produkt: Smart Handle passiv","about the product: Smart Handle passive","voir le produit: Smart Handle passive","vai al prodotto Smart Handle passiva","product bekijken: Smart Handle passieve",null,null,null,36,null,null,null,null,null,null,"Zeile 23",{"$error":"#N/A"}]
["(*) Bitte beachten Sie, dass je British Oval SmartHandle ein Adapter „SH.BO.ADAPT“ separat bestellt werden muss.","(*) Please note that adapter \"SH.BO.ADAPT\" must be ordered separately for each British Oval SmartHandle.","(*) Veuillez S.V.P. observer que par SmartHandle du type „ British Oval“, il est nécessaire de commander séparément un adaptateur « SH.BO.ADAPT ».","(*) Si informa che per ogni maniglia con profilo ovale britannico è anche necessario ordinare separatamente un adattatore “SH.BO.ADAPT”.","(*) Let op, bij een Britsh Oval SmartHandle moet een „SH.BO.ADAPT“ apart besteld worden.",null,null,null,37,null,null,null,null,null,null,"Zeile 24",{"$error":"#N/A"}]
["Bemerkungen","Comments","Remarque","Note","Beperkingen",null,null,null,38]
["http://www.simons-voss.com/Haendler-Bereich.14.0.html?&no_cache=1&L=0","http://www.simons-voss.com/Haendler-Bereich.14.0.html?&no_cache=1&L=1&no_cache=1","http://www.simons-voss.com/Value-Added-Resellers.14.0.html?&no_cache=1&L=2&no_cache=1","http://www.simons-voss.com/REVENDEURS.14.0.html?&no_cache=1&L=4&no_cache=1","http://www.simons-voss.com/RIVENDITORI.14.0.html?&no_cache=1&L=3&no_cache=1",null,null,null,39]
["http://www.simons-voss.com/Smart-Handles.825.0.html?&L=0","http://www.simons-voss.com/SmartHandle.825.0.html?&L=1&amp%3BL=0%20%3C","http://www.simons-voss.com/Smart-Handles.825.0.html?&L=2","http://www.simons-voss.com/Smart-Handles.825.0.html?&L=4&id=825","http://www.simons-voss.de/Smart-Handles.825.0.html?&L=3",null,null,null,40,null,null,null,null,null,null,{"$f":"$J$206","v":"Standard"},0]
["http://www.simons-voss.com/Smart-Handles-Hybrid.1350.0.html?&L=0","http://www.simons-voss.com/Smart-Handles-Hybrid.1350.0.html?&L=1","http://www.simons-voss.com/Smart-Handles-Hybrid.1350.0.html?&L=2&amp=","http://www.simons-voss.com/Smart-Handles-Hybride.1350.0.html?&L=4","http://www.simons-voss.com/Smart-Handle-Hybrid.1350.0.html?&L=3&amp=",null,null,null,41,null,null,null,null,null,null,{"$f":"$J$207","v":"E1 / PAS 24 "},8]
["Scandinavian Oval","Scandinavian Oval","Ovale scandinave","Scandinavian Oval","Scandinavian Oval",null,null,null,42,null,null,null,null,null,null,{"$f":"$J$208","v":"Bohrschutz SO"},8]
["Standard SmartHandle (ohne Door Monitoring)","Standard SmartHandle (without Door Monitoring)","SmartHandle standard (sans Door Monitoring)","SmartHandle standard (Senza DoorMonitoring)","Standaard SmartHandle (zonder deurstand signalering)",null,null,null,43,{"$f":"HLOOKUP($I$3,$A$149:$F$204,43,0)","v":"Standard SmartHandle (ohne Door Monitoring)"},null,null,null,null,null,{"$f":"$J$209","v":"SKG"},8]
["Door Monitoring (interne Sensorik)","Door Monitoring  (internal sensors)","Door Monitoring (capteurs internes)","Door Monitoring (sensore interno)","Deurstand signalering (interne sensors)",null,null,null,44,{"$f":"HLOOKUP($I$3,$A$149:$F$204,44,0)","v":"Door Monitoring (interne Sensorik)"}]
["Door Monitoring (externe Sensorik)","Door Monitoring (external sensors)","Door Monitoring (capteurs externes)","Door Monitoring (sensore esterno)","Deurstand signalering (externe sensors)",null,null,null,45,{"$f":"HLOOKUP($I$3,$A$149:$F$204,45,0)","v":"Door Monitoring (externe Sensorik)"},null,null,null,null,null,null,null,null,null,null,null,null,null,null,null,null,null,null,null,null,null,null,null,13,14,15,16]
["Door Monitoring (Drückersensorik)","Door Monitoring (handle sensor)","Door monitoring (capteur poignée)","Door Monitoring (sensore sulla leva)","Deurstand signalering (kruk sensor)",null,null,null,46,{"$f":"HLOOKUP($I$3,$A$149:$F$204,46,0)","v":"Door Monitoring (Drückersensorik)"},null,null,null,null,null,"Anzeige der möglichen Version","Version",null,null,null,null,null,null,null,null,null,null,null,null,null,10,11,12,3,3,4,4]
["SmartHandle Typ","type of SmartHandle","type de SmartHandle","Tipo di SmartHandle","SmartHandle uitvoering",null,null,null,47,null,null,null,null,null,null,{"$f":"IF($I$3=\"Deutsch\",$A$191,IF($I$3=\"English\",$B$191,IF($I$3=\"Français\",$C$191,IF($I$3=\"Italiano\",$D$191,IF($I$3=\"Nederlands\",$E$191,\"\")))))","v":"Standard SmartHandle (ohne Door Monitoring)"},1,null,null,null,null,null,null,null,null,null,null,null,null,null,1,2,2]
["Zusatz-Information","additional information","informations complémentaires","Informazioni aggiuntive","Extra informatie",null,null,null,48,{"$f":"HLOOKUP($I$3,$A$149:$F$204,48,0)","v":"Zusatz-Information"},null,null,null,null,null,{"$f":"IF($I$3=\"Deutsch\",$A$192,IF($I$3=\"English\",$B$192,IF($I$3=\"Français\",$C$192,IF($I$3=\"Italiano\",$D$192,IF($I$3=\"Nederlands\",$E$192,\"\")))))","v":"Door Monitoring (interne Sensorik)"},3,null,null,null,null,"Version"]
["Î","P",null,null,null,null,null,null,49,null,null,null,null,null,null,{"$f":"IF($I$3=\"Deutsch\",$A$193,IF($I$3=\"English\",$B$193,IF($I$3=\"Français\",$C$193,IF($I$3=\"Italiano\",$D$193,IF($I$3=\"Nederlands\",$E$193,\"\")))))","v":"Door Monitoring (externe Sensorik)"},5,null,null,null,null,1,2,3,4,5,6,7,8,9]
["siehe Bemerkung unten","see comment below","voir remarques ci-après","Vedere i commenti in calce","Zie onderstaande opmerking",null,null,null,50,null,null,null,null,null,null,{"$f":"IF($I$3=\"Deutsch\",$A$194,IF($I$3=\"English\",$B$194,IF($I$3=\"Français\",$C$194,IF($I$3=\"Italiano\",$D$194,IF($I$3=\"Nederlands\",$E$194,\"\")))))","v":"Door Monitoring (Drückersensorik)"},7,null,null,null,null,0,1,2,2,3,3,4,4,1]
["ACHTUNG bei Bestellungen von Door Monitoring SmartHandles mit interner oder externer Sensorik: \nDas WaveNet LockNode ist fest integriert und kann nicht gewechselt werden!","Please note for orders with internal or external sensors:\nThe Lock Node is already included and cannot be changed.","Please note for orders with internal or external sensors:\nThe Lock Node is already included and cannot be changed.","Please note for orders with internal or external sensors:\nThe Lock Node is already included and cannot be changed.","Please note for orders with internal or external sensors:\nThe Lock Node is already included and cannot be changed.",null,null,null,51,null,null,null,null,null,null,null,null,null,null,null,null,1]
["Plattensystem mit MO ","plate system w. MO ",null,null,null,null,null,null,52]
["Europrofil mit MO - Rosettenmontage (SHF) ","Europrofile with MO - plate system (SHF)","noch zu übersetzen","noch zu übersetzen","noch zu übersetzen",null,null,null,53,{"$f":"HLOOKUP($I$3,$A$149:$F$204,53,0)","v":"Europrofil mit MO - Rosettenmontage (SHF) "},null,null,null,null,null,"Vierkant"]
["ja","yes","oui","si","ja",{"$f":"HLOOKUP($I$3,$A$149:$E$203,54)","v":"ja"},null,null,54,null,null,null,null,null,null,"07",0]
["nein","no","non","no","nee",{"$f":"HLOOKUP($I$3,$A$149:$E$203,55)","v":"nein"},null,null,55,null,null,null,null,null,null,"08",0]
["nicht verfügbar","not available","noch zu übersetzen","noch zu übersetzen","noch zu übersetzen","noch zu übersetzen",null,null,56,{"$f":"HLOOKUP(I3,$A$149:$F$204,56,0)","v":"nicht verfügbar"},null,null,null,null,null,"F8",1]
["Sicherheits-Klasse","safety class","noch zu übersetzen","noch zu übersetzen","noch zu übersetzen","noch zu übersetzen",null,null,57,{"$f":"HLOOKUP($I$3,$A$149:$F$213,57,0)","v":"Sicherheits-Klasse"},null,null,null,null,null,"09",1]
["Standard","standard","noch zu übersetzen","noch zu übersetzen","noch zu übersetzen","noch zu übersetzen",null,null,58,{"$f":"HLOOKUP($I$3,$A$149:$F$213,58,0)","v":"Standard"},null,null,null,null,null,"10",0]
["E1 / PAS 24 ","E1 / PAS 24 ","E1 / PAS 24 ","E1 / PAS 24 ","E1 / PAS 24 ","E1 / PAS 24 ",null,null,59,{"$f":"HLOOKUP($I$3,$A$149:$F$213,59,0)","v":"E1 / PAS 24 "}]
["Bohrschutz SO","drilling protection SO","noch zu übersetzen","noch zu übersetzen","noch zu übersetzen","noch zu übersetzen",null,null,60,{"$f":"HLOOKUP($I$3,$A$149:$F$213,60,0)","v":"Bohrschutz SO"}]
["SKG","SKG","SKG","SKG","SKG","SKG",null,null,61,{"$f":"HLOOKUP($I$3,$A$149:$F$213,61,0)","v":"SKG"},null,null,null,null,null,"Zeile 17",{"$f":"VLOOKUP($C17,$P$195:$Q$198,2,FALSE)+VLOOKUP($G17,$P$202:$Q$206,2,FALSE)+VLOOKUP($B17,$P$188:$Q$191,2,FALSE)","v":{"$error":"#N/A"}}]
["Bitte verwenden Sie zum Drucken den Druckbutton in der Bestell-Zusammenfassung\n\nMöchten Sie zur Bestell-Zusammenfassung weitergeleitet werden?","To print the order, please use the print button in the order summary\n\nWould you like to be forwarded to the order summary?","noch zu übersetzen","noch zu übersetzen","noch zu übersetzen",null,null,null,62,{"$f":"HLOOKUP($I$3,$A$149:$F$213,62,0)","v":"Bitte verwenden Sie zum Drucken den Druckbutton in der Bestell-Zusammenfassung\n\nMöchten Sie zur Bestell-Zusammenfassung weitergeleitet werden?"},null,null,null,null,null,"Zeile 18",{"$error":"#N/A"}]
["zur Zusammenfassung","go to summary","noch zu übersetzen","noch zu übersetzen","noch zu übersetzen",null,null,null,63,{"$f":"HLOOKUP($I$3,$A$149:$F$213,63,0)","v":"zur Zusammenfassung"},null,null,null,null,null,"Zeile 19",{"$error":"#N/A"}]
["ohne Elektronik","without electronics","sans electronique","senza elletronica","zonder electronica",null,null,null,64,{"$f":"HLOOKUP($I$3,$A$149:$F$213,64,0)","v":"ohne Elektronik"},null,null,null,null,null,"Zeile 20",{"$error":"#N/A"}]
["Mindestens eine der angegebenen Artikelnummern ist nicht korrekt.\n\nBitte korrigieren.","At least one of the part numbers selected is not correct.\n\nPlease correct your entries.","noch zu übersetzen","noch zu übersetzen","noch zu übersetzen",null,null,null,65,{"$f":"HLOOKUP($I$3,$A$149:$F$213,65,0)","v":"Mindestens eine der angegebenen Artikelnummern ist nicht korrekt.\n\nBitte korrigieren."},null,null,null,null,null,"Zeile 21",{"$error":"#N/A"}]
["nicht benötigt","not required","noch zu übersetzen","noch zu übersetzen","noch zu übersetzen",null,null,null,66,{"$f":"HLOOKUP($I$3,$A$149:$F$223,66,0)","v":"nicht benötigt"},null,null,null,null,null,"Zeile 22",{"$error":"#N/A"}]
["Beschreibung","description","noch zu übersetzen","noch zu übersetzen","noch zu übersetzen",null,null,null,67,{"$f":"HLOOKUP($I$3,$A$149:$F$224,67,0)","v":"Beschreibung"},null,null,null,null,null,"Zeile 23",{"$error":"#N/A"}]
["Zusammenfassung der Bestellung","order summary","noch zu übersetzen","noch zu übersetzen","noch zu übersetzen",null,null,null,68,{"$f":"HLOOKUP($I$3,$A$149:$F$224,68,0)","v":"Zusammenfassung der Bestellung"},null,null,null,null,null,"Zeile 24",{"$error":"#N/A"}]
["Swiss Round mit MO - Rosettenmontage (SHG) ","Swiss Round with MO - plate system (SHG)","noch zu übersetzen","noch zu übersetzen","noch zu übersetzen",null,null,null,69,{"$f":"HLOOKUP($I$3,$A$149:$F$224,69,0)","v":"Swiss Round mit MO - Rosettenmontage (SHG) "}]
["Europrofil mit MO - für Rohrrahmentüren (SHH) ","Europrofile with MO - for tabular frame doors (SHH)","noch zu übersetzen","noch zu übersetzen","noch zu übersetzen",null,null,null,70,{"$f":"HLOOKUP($I$3,$A$149:$F$224,70,0)","v":"Europrofil mit MO - für Rohrrahmentüren (SHH) "}]
["Swiss Round mit MO - für Rohrrahmentüren (SHI) ","Swiss Round with MO - for tabular frame doors (SHI)","noch zu übersetzen","noch zu übersetzen","noch zu übersetzen",null,null,null,71,{"$f":"HLOOKUP($I$3,$A$149:$F$224,71,0)","v":"Swiss Round mit MO - für Rohrrahmentüren (SHI) "}]
["keine Auswahl getroffen","no selection made","noch zu übersetzen","noch zu übersetzen","noch zu übersetzen",null,null,null,72,{"$f":"HLOOKUP($I$3,$A$149:$F$224,72,0)","v":"keine Auswahl getroffen"}]
[null,null,null,null,null,null,null,null,73]
[null,null,null,null,null,null,null,null,74]
[null,null,null,null,null,null,null,null,75]
[null,null,null,null,null,null,null,null,76]
[null,null,null,null,null,null,null,null,77]
[null,null,null,null,null,null,null,null,78]
[null,null,null,null,null,null,null,null,79]
[null,null,null,null,null,null,null,null,80]
[null,null,null,null,null,null,null,null,81,null,null,null,null,null,null,"Anzeige der möglichen Lesetechnik",null,null,"Lesetchnik","G1/G2",null,"Eintrag Lesetechnik anhang der Version",null,null,null,"G1/G2"]
[null,null,null,null,null,null,null,null,82,null,null,null,null,null,null,"Version","Lesetchnik",null,0,1,null,1,2,3,null,1,2,3,4]
[null,null,null,null,null,null,null,null,83,null,null,null,null,null,null,0,1,null,1,2,null,0,1,1,null,null,"G1","G2","G2"]
[null,null,null,null,null,null,null,null,84,null,null,null,null,null,null,1,2,null,2,3,null,null,2,3,null,null,"G2"]
[null,null,null,null,null,null,null,null,85,null,null,null,null,null,null,2,3,null,3,3,null,null,3]
[null,null,null,null,null,null,null,null,86,null,null,null,null,null,null,3,3,null,4,3]
[null,null,null,null,null,null,null,null,87,null,null,null,null,null,null,4,3]
[null,null,null,null,null,null,null,null,88]
[null,null,null,null,null,null,null,null,89,null,null,null,null,null,null,"Profilbezeichnung",null,null,null,null,null,null,null,null,null,null,null,null,null,null,7,8,9]
[null,null,null,null,null,null,null,null,90,null,null,null,null,null,null,{"$f":"IF($I$3=\"Deutsch\",$A$173,IF($I$3=\"English\",$B$173,IF($I$3=\"Français\",$C$173,IF($I$3=\"Italiano\",$D$173,IF($I$3=\"Nederlands\",$E$173,\"\")))))","v":"Europrofil ohne Lochung für Profilzylinder (SHA)"},0,"SHA",null,null,{"$f":"J191","v":"Standard SmartHandle (ohne Door Monitoring)"},1,0,null,null,null,null,null,null,null,"G2","G2","G2"]
[null,null,null,null,null,null,null,null,91,null,null,null,null,null,null,{"$f":"IF($I$3=\"Deutsch\",$A$174,IF($I$3=\"English\",$B$174,IF($I$3=\"Français\",$C$174,IF($I$3=\"Italiano\",$D$174,IF($I$3=\"Nederlands\",$E$174,\"\")))))","v":"Swiss Round ohne Lochung für Profilzylinder (SHA)"},0,"SHA",null,null,{"$f":"J192","v":"Door Monitoring (interne Sensorik)"},3,1,null,"G1/G2"]
[null,null,null,null,null,null,null,null,92,null,null,null,null,null,null,{"$f":"IF($I$3=\"Deutsch\",$A$175,IF($I$3=\"English\",$B$175,IF($I$3=\"Français\",$C$175,IF($I$3=\"Italiano\",$D$175,IF($I$3=\"Nederlands\",$E$175,\"\")))))","v":"British Oval ohne Lochung für Profilzylinder (SHA) (*)"},0,"SHA",null,null,{"$f":"J193","v":"Door Monitoring (externe Sensorik)"},3,1,null,1,2,3,4,5,6]
[null,null,null,null,null,null,null,null,93,null,null,null,null,null,null,{"$f":"IF($I$3=\"Deutsch\",$A$176,IF($I$3=\"English\",$B$176,IF($I$3=\"Français\",$C$176,IF($I$3=\"Italiano\",$D$176,IF($I$3=\"Nederlands\",$E$176,\"\")))))","v":"Scandinavian Oval ohne Lochung für Profilzylinder (SHB)"},0,"SHB",null,null,{"$f":"J194","v":"Door Monitoring (Drückersensorik)"},3,1,null,{"$f":"$J$204","v":"nicht verfügbar"},"G1","G2","G2","G2","G2"]
[null,null,null,null,null,null,null,null,94,null,null,null,null,null,null,{"$f":"IF($I$3=\"Deutsch\",$A$177,IF($I$3=\"English\",$B$177,IF($I$3=\"Français\",$C$177,IF($I$3=\"Italiano\",$D$177,IF($I$3=\"Nederlands\",$E$177,\"\")))))","v":"Europrofil mit Lochung für Profilzylinder MO (SHC) "},0,"SHC",null,null,null,null,null,null,null,"G2"]
[null,null,null,null,null,null,null,null,95,null,null,null,null,null,null,{"$f":"IF($I$3=\"Deutsch\",$A$178,IF($I$3=\"English\",$B$178,IF($I$3=\"Français\",$C$178,IF($I$3=\"Italiano\",$D$178,IF($I$3=\"Nederlands\",$E$178,\"\")))))","v":"Swiss Round mit Lochung für Profilzylinder MO (SHD)"},0,"SHD"]
[null,null,null,null,null,null,null,null,96,null,null,null,null,null,null,{"$f":"IF($I$3=\"Deutsch\",$A$179,IF($I$3=\"English\",$B$179,IF($I$3=\"Français\",$C$179,IF($I$3=\"Italiano\",$D$179,IF($I$3=\"Nederlands\",$E$179,\"\")))))","v":"Scandinavian Oval mit Lochung für Profilzylinder MO (SHE)"},0,"SHE",null,null,"Lesetchnik"]
[null,null,null,null,null,null,null,null,97,null,null,null,null,null,null,{"$f":"IF($I$3=\"Deutsch\",$A$201,IF($I$3=\"English\",$B$201,IF($I$3=\"Français\",$C$201,IF($I$3=\"Italiano\",$D$201,IF($I$3=\"Nederlands\",$E$201,\"\")))))","v":"Europrofil mit MO - Rosettenmontage (SHF) "},0,"SHF",null,null,0,0]
[null,null,null,null,null,null,null,null,98,null,null,null,null,null,null,{"$f":"$J$217","v":"Swiss Round mit MO - Rosettenmontage (SHG) "},0,"SHG",null,null,1,1]
[null,null,null,null,null,null,null,null,99,null,null,null,null,null,null,{"$f":"$J$218","v":"Europrofil mit MO - für Rohrrahmentüren (SHH) "},0,"SHH",null,null,2,2]
[null,null,null,null,null,null,null,null,100,null,null,null,null,null,null,{"$f":"$J$219","v":"Swiss Round mit MO - für Rohrrahmentüren (SHI) "},0,"SHI",null,null,3,2]
[null,null,null,null,null,null,null,null,101,null,null,null,null,null,null,null,null,null,null,null,null,null,null,null,"Oberfläche:"]
[null,null,null,null,null,null,null,null,102,null,null,null,null,null,null,null,null,null,null,null,null,null,"Oberfläche:",null,1,2,3,4,5]
[null,null,null,null,null,null,null,null,103,null,null,null,null,null,null,null,null,null,null,null,{"$f":"$J206","v":"Standard"},0,1,null,1,1,1,1,1]
[null,null,null,null,null,null,null,null,104,null,null,null,null,null,null,null,null,"SHA/SHB…..",null,null,{"$f":"$J207","v":"E1 / PAS 24 "},4,2,null,3]
[null,null,null,null,null,null,null,null,105,null,null,null,null,null,null,"Zeile 17",{"$f":"VLOOKUP($D17,$P$238:$Q$245,2,FALSE)+VLOOKUP($J17,$S$230:$T$234,2,FALSE)","v":{"$error":"#N/A"}},{"$f":"VLOOKUP($D17,$P$238:$R$248,3,FALSE)","v":{"$error":"#N/A"}},null,null,{"$f":"$J208","v":"Bohrschutz SO"},0,2]
[null,null,null,null,null,null,null,null,106,null,null,null,null,null,null,"Zeile 18",{"$error":"#N/A"},{"$f":"VLOOKUP($D18,$P$238:$R$248,3,FALSE)","v":{"$error":"#N/A"}},null,null,{"$f":"$J209","v":"SKG"},0,2]
[null,null,null,null,null,null,null,null,107,null,null,null,null,null,null,"Zeile 19",{"$error":"#N/A"},{"$error":"#N/A"}]
[null,null,null,null,null,null,null,null,108,null,null,null,null,null,null,"Zeile 20",{"$error":"#N/A"},{"$error":"#N/A"}]
[null,null,null,null,null,null,null,null,109,null,null,null,null,null,null,"Zeile 21",{"$error":"#N/A"},{"$error":"#N/A"}]
[null,null,null,null,null,null,null,null,110,null,null,null,null,null,null,"Zeile 22",{"$error":"#N/A"},{"$error":"#N/A"},null,null,{"$f":"IF($I$3=\"Deutsch\",$A173,IF($I$3=\"English\",$B173,IF($I$3=\"Français\",$C173,IF($I$3=\"Italiano\",$D173,IF($I$3=\"Nederlands\",$E173,\"\")))))","v":"Europrofil ohne Lochung für Profilzylinder (SHA)"},0,0]
[null,null,null,null,null,null,null,null,111,null,null,null,null,null,null,"Zeile 23",{"$error":"#N/A"},{"$error":"#N/A"},null,null,"Swiss Round ohne Lochung für Profilzylinder (SHA)",0,0]
[null,null,null,null,null,null,null,null,112,null,null,null,null,null,null,"Zeile 24",{"$error":"#N/A"},{"$error":"#N/A"},null,null,"British Oval ohne Lochung für Profilzylinder (SHA) (*)",0,0]
[null,null,null,null,null,null,null,null,113,null,null,null,null,null,null,null,null,null,null,null,"Scandinavian Oval ohne Lochung für Profilzylinder (SHB)",0,0]
[null,null,null,null,null,null,null,null,114,null,null,null,null,null,null,null,null,null,"1 = Standard / Europrofil, Swiss Round und British Oval Zylinder",null,"Europrofil mit Lochung für Profilzylinder MO (SHC) ",0,0]
[null,null,null,null,null,null,null,null,115,null,null,null,null,null,null,null,null,null,"2 = Standard / Scandinavian Oval ",null,"Swiss Round mit Lochung für Profilzylinder MO (SHD)",0,0]
[null,null,null,null,null,null,null,null,116,null,null,null,null,null,null,null,null,null,"3 = PAS24 / Europrofil (nur ohne Mechanical Override)",null,"Scandinavian Oval mit Lochung für Profilzylinder MO (SHE)",0,0]
[null,null,null,null,null,null,null,null,117,null,null,null,null,null,null,null,null,null,"4 = Bohrschutz SO / nur SO (ohne Mechanical Override)",null,{"$f":"$J$201","v":"Europrofil mit MO - Rosettenmontage (SHF) "},1,2]
[null,null,null,null,null,null,null,null,118,null,null,null,null,null,null,{"$f":"IF($I$3=\"Deutsch\",$A$173,IF($I$3=\"English\",$B$173,IF($I$3=\"Français\",$C$173,IF($I$3=\"Italiano\",$D$173,IF($I$3=\"Nederlands\",$E$173,\"\")))))","v":"Europrofil ohne Lochung für Profilzylinder (SHA)"},1,null,"5 = SKG / nur Europrofil (ohne Mechanical Override)",null,{"$f":"$J$217","v":"Swiss Round mit MO - Rosettenmontage (SHG) "},1,2]
[null,null,null,null,null,null,null,null,119,null,null,null,null,null,null,{"$f":"IF($I$3=\"Deutsch\",$A$174,IF($I$3=\"English\",$B$174,IF($I$3=\"Français\",$C$174,IF($I$3=\"Italiano\",$D$174,IF($I$3=\"Nederlands\",$E$174,\"\")))))","v":"Swiss Round ohne Lochung für Profilzylinder (SHA)"},1,null,null,null,{"$f":"$J$218","v":"Europrofil mit MO - für Rohrrahmentüren (SHH) "},1,2]
[null,null,null,null,null,null,null,null,120,null,null,null,null,null,null,{"$f":"IF($I$3=\"Deutsch\",$A$175,IF($I$3=\"English\",$B$175,IF($I$3=\"Français\",$C$175,IF($I$3=\"Italiano\",$D$175,IF($I$3=\"Nederlands\",$E$175,\"\")))))","v":"British Oval ohne Lochung für Profilzylinder (SHA) (*)"},1,null,null,null,{"$f":"$J$219","v":"Swiss Round mit MO - für Rohrrahmentüren (SHI) "},1,2]
[null,null,null,null,null,null,null,null,121,null,null,null,null,null,null,{"$f":"IF($I$3=\"Deutsch\",$A$176,IF($I$3=\"English\",$B$176,IF($I$3=\"Français\",$C$176,IF($I$3=\"Italiano\",$D$176,IF($I$3=\"Nederlands\",$E$176,\"\")))))","v":"Scandinavian Oval ohne Lochung für Profilzylinder (SHB)"},2]
[null,null,null,null,null,null,null,null,122,null,null,null,null,null,null,{"$f":"IF($I$3=\"Deutsch\",$A$177,IF($I$3=\"English\",$B$177,IF($I$3=\"Français\",$C$177,IF($I$3=\"Italiano\",$D$177,IF($I$3=\"Nederlands\",$E$177,\"\")))))","v":"Europrofil mit Lochung für Profilzylinder MO (SHC) "},1]
[null,null,null,null,null,null,null,null,123,null,null,null,null,null,null,{"$f":"IF($I$3=\"Deutsch\",$A$178,IF($I$3=\"English\",$B$178,IF($I$3=\"Français\",$C$178,IF($I$3=\"Italiano\",$D$178,IF($I$3=\"Nederlands\",$E$178,\"\")))))","v":"Swiss Round mit Lochung für Profilzylinder MO (SHD)"},1]
[null,null,null,null,null,null,null,null,124,null,null,null,null,null,null,{"$f":"IF($I$3=\"Deutsch\",$A$179,IF($I$3=\"English\",$B$179,IF($I$3=\"Français\",$C$179,IF($I$3=\"Italiano\",$D$179,IF($I$3=\"Nederlands\",$E$179,\"\")))))","v":"Scandinavian Oval mit Lochung für Profilzylinder MO (SHE)"},2]
[null,null,null,null,null,null,null,null,125,null,null,null,null,null,null,{"$f":"IF($I$3=\"Deutsch\",$A$201,IF($I$3=\"English\",$B$201,IF($I$3=\"Français\",$C$201,IF($I$3=\"Italiano\",$D$201,IF($I$3=\"Nederlands\",$E$201,\"\")))))","v":"Europrofil mit MO - Rosettenmontage (SHF) "},1]
[null,null,null,null,null,null,null,null,126,null,null,null,null,null,null,null,null,null,null,null,"Zeile 17",{"$f":"VLOOKUP(C17,$U$238:$V$241,2,FALSE)+VLOOKUP(N17,$U$245:$V$248,2,FALSE)+VLOOKUP(B17,$U$251:$V$254,2,FALSE)+VLOOKUP(D17,$U$258:$V$268,2,FALSE)","v":{"$error":"#N/A"}},{"$f":"VLOOKUP(B17,$U$251:$W$254,3,FALSE)+VLOOKUP(D17,$U$258:$W$268,3,FALSE)+VLOOKUP(C17,$U$238:$W$241,3,FALSE)","v":{"$error":"#N/A"}}]
[null,null,null,null,null,null,null,null,127,null,null,null,null,null,null,null,null,null,null,null,"Zeile 18",{"$f":"VLOOKUP(C18,$U$238:$V$241,2,FALSE)+VLOOKUP(N18,$U$245:$V$248,2,FALSE)+VLOOKUP(B18,$U$251:$V$254,2,FALSE)+VLOOKUP(D18,$U$258:$V$268,2,FALSE)","v":{"$error":"#N/A"}},{"$f":"VLOOKUP(B18,$U$251:$W$254,3,FALSE)+VLOOKUP(D18,$U$258:$W$268,3,FALSE)+VLOOKUP(C18,$U$238:$W$241,3,FALSE)","v":{"$error":"#N/A"}}]
[null,null,null,null,null,null,null,null,128,null,null,null,null,null,null,{"$f":"$J$206","v":"Standard"},0,null,null,null,"Zeile 19",{"$error":"#N/A"},{"$error":"#N/A"}]
[null,null,null,null,null,null,null,null,129,null,null,null,null,null,null,{"$f":"J207","v":"E1 / PAS 24 "},2,null,null,{"$f":"IF(AND(Q281=1,R281>=39,R281<=59),\"S\",IF(AND(Q281=1,R281>=60,R281<=79),\"M\",IF(AND(Q281=1,R281>=80,R281<=100),\"L\",IF(AND(Q281=2,R281>=33,R281<=53),\"S\",IF(AND(Q281=2,R281>=54,R281<=73),\"M\",IF(AND(Q281=2,R281>=74,R281<=94),\"L\",IF(AND(Q281=3,R281>=32,R281<=49),\"S\",IF(AND(Q281=3,R281>=50,R281<=69),\"M\",IF(AND(Q281=3,R281>=70,R281<=90),\"L\",IF(AND(Q281=4,R281>=30,R281<=50),\"S\",IF(AND(Q281=4,R281>=51,R281<=70),\"M\",IF(AND(Q281=4,R281>=71,R281<=91),\"L\",IF(AND(Q281=5,R281>=32,R281<=49),\"S\",IF(AND(Q281=5,R281>=50,R281<=69),\"M\",IF(AND(Q281=5,R281>=70,R281<=90),\"L\",$J$204)))))))))))))))","v":{"$error":"#N/A"}},"Zeile 20",{"$error":"#N/A"},{"$error":"#N/A"}]
[null,null,null,null,null,null,null,null,130,null,null,null,null,null,null,{"$f":"J208","v":"Bohrschutz SO"},2,null,null,{"$error":"#N/A"},"Zeile 21",{"$error":"#N/A"},{"$error":"#N/A"}]
[null,null,null,null,null,null,null,null,131,null,null,null,null,null,null,{"$f":"J209","v":"SKG"},4,null,null,{"$error":"#N/A"},"Zeile 22",{"$error":"#N/A"},{"$error":"#N/A"}]
[null,null,null,null,null,null,null,null,132,null,null,null,null,null,null,null,null,null,null,{"$error":"#N/A"},"Zeile 23",{"$error":"#N/A"},{"$error":"#N/A"}]
[null,null,null,null,null,null,null,null,133,null,null,null,null,null,null,"Zeile 17",{"$f":"VLOOKUP(D17,$P$266:$Q$273,2,FALSE)+VLOOKUP(B17,$P$276:$Q$279,2,FALSE)","v":{"$error":"#N/A"}},{"$f":"E17","v":0},null,{"$error":"#N/A"},"Zeile 24",{"$error":"#N/A"},{"$error":"#N/A"}]
[null,null,null,null,null,null,null,null,134,null,null,null,null,null,null,"Zeile 18",{"$error":"#N/A"},0,null,{"$error":"#N/A"}]
[null,null,null,null,null,null,null,null,135,null,null,null,null,null,null,"Zeile 19",{"$error":"#N/A"},0,null,{"$error":"#N/A"}]
[null,null,null,null,null,null,null,null,136,null,null,null,null,null,null,"Zeile 20",{"$error":"#N/A"},0,null,{"$error":"#N/A"}]
[null,null,null,null,null,null,null,null,137,null,null,null,null,null,null,"Zeile 21",{"$error":"#N/A"},0]
[null,null,null,null,null,null,null,null,138,null,null,null,null,null,null,"Zeile 22",{"$error":"#N/A"},0]
[null,null,null,null,null,null,null,null,139,null,null,null,null,null,null,"Zeile 23",{"$error":"#N/A"},0]
[null,null,null,null,null,null,null,null,140,null,null,null,null,null,null,"Zeile 24",{"$error":"#N/A"},0]
[null,null,null,null,null,null,null,null,141]
[null,null,null,null,null,null,null,null,142]
[null,null,null,null,null,null,null,null,143,null,null,null,null,null,null,null,null,null,null,"Drücker innen"]
[null,null,null,null,null,null,null,null,144,null,null,null,null,null,null,null,null,null,null,1,2]
[null,null,null,null,null,null,null,null,145,null,null,null,null,null,null,null,null,null,null,"A","K"]
[null,null,null,null,null,null,null,null,146,null,null,null,null,null,null,null,null,null,null,"B"]
[null,null,null,null,null,null,null,null,147,null,null,null,null,null,null,null,null,null,null,"C"]
[null,null,null,null,null,null,null,null,148,null,null,null,null,null,null,null,null,null,null,"D"]
[null,null,null,null,null,null,null,null,149,null,null,null,null,null,null,{"$f":"J206","v":"Standard"},1,null,null,"E"]
[null,null,null,null,null,null,null,null,150,null,null,null,null,null,null,{"$f":"J207","v":"E1 / PAS 24 "},1,null,null,"F"]
[null,null,null,null,null,null,null,null,151,null,null,null,null,null,null,{"$f":"J208","v":"Bohrschutz SO"},1,null,null,"G"]
[null,null,null,null,null,null,null,null,152,null,null,null,null,null,null,{"$f":"J209","v":"SKG"},2,null,null,"H"]
[null,null,null,null,null,null,null,null,153]
[null,null,null,null,null,null,null,null,154]
[null,null,null,null,null,null,null,null,155]
[null,null,null,null,null,null,null,null,156,null,null,null,null,null,null,"Zeile 17",{"$f":"VLOOKUP(B17,$P$297:$Q$300,2,FALSE)","v":{"$error":"#N/A"}}]
[null,null,null,null,null,null,null,null,157,null,null,null,null,null,null,"Zeile 18",{"$error":"#N/A"}]
[null,null,null,null,null,null,null,null,158,null,null,null,null,null,null,"Zeile 19",{"$error":"#N/A"}]
[null,null,null,null,null,null,null,null,159,null,null,null,null,null,null,"Zeile 20",{"$error":"#N/A"}]
[null,null,null,null,null,null,null,null,160,null,null,null,null,null,null,"Zeile 21",{"$error":"#N/A"}]
[null,null,null,null,null,null,null,null,161,null,null,null,null,null,null,"Zeile 22",{"$error":"#N/A"}]
[null,null,null,null,null,null,null,null,162,null,null,null,null,null,null,"Zeile 23",{"$error":"#N/A"}]
[null,null,null,null,null,null,null,null,163,null,null,null,null,null,null,"Zeile 24",{"$error":"#N/A"}]
[null,null,null,null,null,null,null,null,164]
[null,null,null,null,null,null,null,null,165]
[null,null,null,null,null,null,null,null,166]
[null,null,null,null,null,null,null,null,167,null,null,null,null,null,null,{"$f":"J205","v":"Sicherheits-Klasse"},null,null,null,1,2,3,4,5,6,7]
[null,null,null,null,null,null,null,null,168,null,null,null,null,null,null,{"$f":"J206","v":"Standard"},1,null,null,"39-60 mm","33-50 mm","32-50 mm","30-47 mm","32-50 mm","40-53 mm","40-53 mm"]
[null,null,null,null,null,null,null,null,169,null,null,null,null,null,null,"E1 / PAS 24 ",3,null,null,"59-80 mm","49-70 mm","50-70 mm","46-67 mm","50-70 mm","52-73 mm","52-72 mm"]
[null,null,null,null,null,null,null,null,170,null,null,null,null,null,null,"Bohrschutz SO",3,null,null,"79-100 mm","69-94 mm","70-90 mm","66-91 mm","70-90 mm","72-93 mm","71-91 mm"]
[null,null,null,null,null,null,null,null,171,null,null,null,null,null,null,"SKG",5]
[null,null,null,null,null,null,null,null,172]
[null,null,null,null,null,null,null,null,173]
[null,null,null,null,null,null,null,null,174,null,null,null,null,null,null,null,null,null,null,"39-60 mm","S","Standard"]
[null,null,null,null,null,null,null,null,175,null,null,null,null,null,null,{"$f":"IF($I$3=\"Deutsch\",$A$173,IF($I$3=\"English\",$B$173,IF($I$3=\"Français\",$C$173,IF($I$3=\"Italiano\",$D$173,IF($I$3=\"Nederlands\",$E$173,\"\")))))","v":"Europrofil ohne Lochung für Profilzylinder (SHA)"},0,null,null,"59-80 mm","M","Standard"]
[null,null,null,null,null,null,null,null,176,null,null,null,null,null,null,{"$f":"IF($I$3=\"Deutsch\",$A$174,IF($I$3=\"English\",$B$174,IF($I$3=\"Français\",$C$174,IF($I$3=\"Italiano\",$D$174,IF($I$3=\"Nederlands\",$E$174,\"\")))))","v":"Swiss Round ohne Lochung für Profilzylinder (SHA)"},0,null,null,"79-100 mm","L","Standard"]
[null,null,null,null,null,null,null,null,177,null,null,null,null,null,null,{"$f":"IF($I$3=\"Deutsch\",$A$175,IF($I$3=\"English\",$B$175,IF($I$3=\"Français\",$C$175,IF($I$3=\"Italiano\",$D$175,IF($I$3=\"Nederlands\",$E$175,\"\")))))","v":"British Oval ohne Lochung für Profilzylinder (SHA) (*)"},0,null,null,"33-50 mm","S","SO"]
[null,null,null,null,null,null,null,null,178,null,null,null,null,null,null,{"$f":"IF($I$3=\"Deutsch\",$A$176,IF($I$3=\"English\",$B$176,IF($I$3=\"Français\",$C$176,IF($I$3=\"Italiano\",$D$176,IF($I$3=\"Nederlands\",$E$176,\"\")))))","v":"Scandinavian Oval ohne Lochung für Profilzylinder (SHB)"},1,null,null,"49-70 mm","M","SO"]
[null,null,null,null,null,null,null,null,179,null,null,null,null,null,null,{"$f":"IF($I$3=\"Deutsch\",$A$177,IF($I$3=\"English\",$B$177,IF($I$3=\"Français\",$C$177,IF($I$3=\"Italiano\",$D$177,IF($I$3=\"Nederlands\",$E$177,\"\")))))","v":"Europrofil mit Lochung für Profilzylinder MO (SHC) "},0,null,null,"69-94 mm","L","SO"]
[null,null,null,null,null,null,null,null,180,null,null,null,null,null,null,{"$f":"IF($I$3=\"Deutsch\",$A$178,IF($I$3=\"English\",$B$178,IF($I$3=\"Français\",$C$178,IF($I$3=\"Italiano\",$D$178,IF($I$3=\"Nederlands\",$E$178,\"\")))))","v":"Swiss Round mit Lochung für Profilzylinder MO (SHD)"},0,null,null,"32-50 mm","S","SKG & PAS24"]
[null,null,null,null,null,null,null,null,181,null,null,null,null,null,null,{"$f":"IF($I$3=\"Deutsch\",$A$179,IF($I$3=\"English\",$B$179,IF($I$3=\"Français\",$C$179,IF($I$3=\"Italiano\",$D$179,IF($I$3=\"Nederlands\",$E$179,\"\")))))","v":"Scandinavian Oval mit Lochung für Profilzylinder MO (SHE)"},1,null,null,"50-70 mm","M","SKG & PAS24"]
[null,null,null,null,null,null,null,null,182,null,null,null,null,null,null,{"$f":"$J$201","v":"Europrofil mit MO - Rosettenmontage (SHF) "},5,null,null,"70-90 mm","L","SKG & PAS24"]
[null,null,null,null,null,null,null,null,183,null,null,null,null,null,null,{"$f":"$J$217","v":"Swiss Round mit MO - Rosettenmontage (SHG) "},5,null,null,"30-47 mm","S","SO mit DP"]
[null,null,null,null,null,null,null,null,184,null,null,null,null,null,null,{"$f":"$J$218","v":"Europrofil mit MO - für Rohrrahmentüren (SHH) "},6,null,null,"46-67 mm","M","SO mit DP"]
[null,null,null,null,null,null,null,null,185,null,null,null,null,null,null,{"$f":"$J$219","v":"Swiss Round mit MO - für Rohrrahmentüren (SHI) "},6,null,null,"66-91 mm","L","SO mit DP"]
[null,null,null,null,null,null,null,null,186,null,null,null,null,null,null,null,null,null,null,"40-53 mm","S","PZ und SR mit MO - Rosettenmontage"]
[null,null,null,null,null,null,null,null,187,null,null,null,null,null,null,null,null,null,null,"52-73 mm","M","PZ und SR mit MO - Rosettenmontage"]
[null,null,null,null,null,null,null,null,188,null,null,null,null,null,null,null,null,null,null,"72-93 mm","L","PZ und SR mit MO - Rosettenmontage"]
[null,null,null,null,null,null,null,null,189,null,null,null,null,null,null,null,null,null,null,"40-53 mm","S","PZ und SR mit MO - Rohrrahmentüren"]
[null,null,null,null,null,null,null,null,190,null,null,null,null,null,null,null,null,null,null,"52-72 mm","M","PZ und SR mit MO - Rohrrahmentüren"]
[null,null,null,null,null,null,null,null,191,null,null,null,null,null,null,null,null,null,null,"71-91 mm","L","PZ und SR mit MO - Rohrrahmentüren"]
[null,null,null,null,null,null,null,null,192,null,null,null,null,null,null,null,"für mm Angaben","für S/M/L"]
[null,null,null,null,null,null,null,null,193,null,null,null,null,null,null,"Zeile 17",{"$f":"VLOOKUP(B17,$P$316:$Q$319,2,FALSE)+VLOOKUP(D17,$P$323:$Q$333,2,FALSE)","v":{"$error":"#N/A"}},{"$f":"VLOOKUP(E17,$T$322:$U$339,2,FALSE)","v":{"$error":"#N/A"}}]
[null,null,null,null,null,null,null,null,194,null,null,null,null,null,null,"Zeile 18",{"$f":"VLOOKUP(B18,$P$316:$Q$319,2,FALSE)+VLOOKUP(D18,$P$323:$Q$333,2,FALSE)","v":{"$error":"#N/A"}},{"$f":"VLOOKUP(E18,$T$322:$U$339,2,FALSE)","v":{"$error":"#N/A"}}]
[null,null,null,null,null,null,null,null,195,null,null,null,null,null,null,"Zeile 19",{"$error":"#N/A"},{"$error":"#N/A"}]
[null,null,null,null,null,null,null,null,196,null,null,null,null,null,null,"Zeile 20",{"$error":"#N/A"},{"$error":"#N/A"}]
[null,null,null,null,null,null,null,null,197,null,null,null,null,null,null,"Zeile 21",{"$error":"#N/A"},{"$error":"#N/A"}]
[null,null,null,null,null,null,null,null,198,null,null,null,null,null,null,"Zeile 22",{"$error":"#N/A"},{"$error":"#N/A"}]
[null,null,null,null,null,null,null,null,199,null,null,null,null,null,null,"Zeile 23",{"$error":"#N/A"},{"$error":"#N/A"}]
[null,null,null,null,null,null,null,null,200,null,null,null,null,null,null,"Zeile 24",{"$error":"#N/A"},{"$error":"#N/A"}]
[null,null,null,null,null,null,null,null,201]
[null,null,null,null,null,null,null,null,202]
[null,null,null,null,null,null,null,null,203]
[null,null,null,null,null,null,null,null,204]
[null,null,null,null,null,null,null,null,205]
[null,null,null,null,null,null,null,null,206]
[null,null,null,null,null,null,null,null,207,null,null,null,null,null,null,null,null,null,null,null,null,null,null,null,null,null,null,null,null,null,null,null,null,null,null,null,null,null,null,null,null,null,1,2]
[null,null,null,null,null,null,null,null,208,null,null,null,null,null,null,{"$f":"J206","v":"Standard"},1,null,null,null,null,null,null,null,null,null,null,null,null,null,null,null,null,null,null,null,null,null,null,null,null,null,{"$f":"HLOOKUP($I$3,$A$149:$F$204,43,0)","v":"Standard SmartHandle (ohne Door Monitoring)"},{"$f":"HLOOKUP($I$3,$A$149:$F$204,43,0)","v":"Standard SmartHandle (ohne Door Monitoring)"}]
[null,null,null,null,null,null,null,null,209,null,null,null,null,null,null,"E1 / PAS 24 ",1,null,null,null,null,null,null,null,null,null,null,null,null,null,null,null,null,null,null,null,null,null,null,null,null,null,{"$f":"HLOOKUP($I$3,$A$149:$F$204,44,0)","v":"Door Monitoring (interne Sensorik)"},{"$f":"HLOOKUP($I$3,$A$149:$F$204,45,0)","v":"Door Monitoring (externe Sensorik)"}]
[null,null,null,null,null,null,null,null,210,null,null,null,null,null,null,"Bohrschutz SO",2,null,null,null,null,null,null,null,null,null,null,null,null,null,null,null,null,null,null,null,null,null,null,null,null,null,{"$f":"HLOOKUP($I$3,$A$149:$F$204,45,0)","v":"Door Monitoring (externe Sensorik)"},{"$f":"HLOOKUP($I$3,$A$149:$F$204,46,0)","v":"Door Monitoring (Drückersensorik)"}]
[null,null,null,null,null,null,null,null,211,null,null,null,null,null,null,"SKG",1,null,null,null,null,null,null,null,null,null,null,null,null,null,null,null,null,null,null,null,null,null,null,null,null,null,{"$f":"HLOOKUP($I$3,$A$149:$F$204,46,0)","v":"Door Monitoring (Drückersensorik)"}]
[null,null,null,null,null,null,null,null,212]
[null,null,null,null,null,null,null,null,213]
[null,null,null,null,null,null,null,null,214]
[null,null,null,null,null,null,null,null,215]
[null,null,null,null,null,null,null,null,216]
[null,null,null,null,null,null,null,null,217]
[null,null,null,null,null,null,null,null,218,null,null,null,null,null,null,"Zeile 17",{"$f":"VLOOKUP(B17,$P$356:$Q$359,2,FALSE)","v":{"$error":"#N/A"}}]
[null,null,null,null,null,null,null,null,219,null,null,null,null,null,null,"Zeile 18",{"$f":"VLOOKUP(B18,$P$356:$Q$359,2,FALSE)","v":{"$error":"#N/A"}}]
[null,null,null,null,null,null,null,null,220,null,null,null,null,null,null,"Zeile 19",{"$error":"#N/A"}]
[null,null,null,null,null,null,null,null,221,null,null,null,null,null,null,"Zeile 20",{"$error":"#N/A"}]
[null,null,null,null,null,null,null,null,222,null,null,null,null,null,null,"Zeile 21",{"$error":"#N/A"}]
[null,null,null,null,null,null,null,null,223,null,null,null,null,null,null,"Zeile 22",{"$error":"#N/A"}]
[null,null,null,null,null,null,null,null,224,null,null,null,null,null,null,"Zeile 23",{"$error":"#N/A"}]
[null,null,null,null,null,null,null,null,225,null,null,null,null,null,null,"Zeile 24",{"$error":"#N/A"}]
[null,null,null,null,null,null,null,null,226]
[null,null,null,null,null,null,null,null,227]
[null,null,null,null,null,null,null,null,228]
[null,null,null,null,null,null,null,null,229]
[null,null,null,null,null,null,null,null,230]
[null,null,null,null,null,null,null,null,231]
[null,null,null,null,null,null,null,null,232]
[null,null,null,null,null,null,null,null,233]
[null,null,null,null,null,null,null,null,234]
[null,null,null,null,null,null,null,null,235]
[null,null,null,null,null,null,null,null,236]
[null,null,null,null,null,null,null,null,237]
[null,null,null,null,null,null,null,null,238]
[null,null,null,null,null,null,null,null,239]
[null,null,null,null,null,null,null,null,240]
[null,null,null,null,null,null,null,null,241]
[null,null,null,null,null,null,null,null,242]
[null,null,null,null,null,null,null,null,243]
[null,null,null,null,null,null,null,null,244]
[null,null,null,null,null,null,null,null,245]
[null,null,null,null,null,null,null,null,246]
[null,null,null,null,null,null,null,null,247]
[null,null,null,null,null,null,null,null,248]
[null,null,null,null,null,null,null,null,249]
[null,null,null,null,null,null,null,null,250]
[null,null,null,null,null,null,null,null,251]
[null,null,null,null,null,null,null,null,252]
[null,null,null,null,null,null,null,null,253]
[null,null,null,null,null,null,null,null,254]
[null,null,null,null,null,null,null,null,255]
[null,null,null,null,null,null,null,null,256]
[null,null,null,null,null,null,null,null,257]
[null,null,null,null,null,null,null,null,258]
[null,null,null,null,null,null,null,null,259]
[null,null,null,null,null,null,null,null,260]
[null,null,null,null,null,null,null,null,261]
[null,null,null,null,null,null,null,null,262]
[null,null,null,null,null,null,null,null,263]
[null,null,null,null,null,null,null,null,264]
[null,null,null,null,null,null,null,null,265]
[null,null,null,null,null,null,null,null,266]
[null,null,null,null,null,null,null,null,267]
[null,null,null,null,null,null,null,null,268]
[null,null,null,null,null,null,null,null,269]
[null,null,null,null,null,null,null,null,270]
[null,null,null,null,null,null,null,null,271]
[null,null,null,null,null,null,null,null,272]
[null,null,null,null,null,null,null,null,273]
[null,null,null,null,null,null,null,null,274]
[null,null,null,null,null,null,null,null,275]
[null,null,null,null,null,null,null,null,276]
[null,null,null,null,null,null,null,null,277]
[null,null,null,null,null,null,null,null,278]
[null,null,null,null,null,null,null,null,279]
[null,null,null,null,null,null,null,null,280]
[null,null,null,null,null,null,null,null,281]
[null,null,null,null,null,null,null,null,282]
[null,null,null,null,null,null,null,null,283]
[null,null,null,null,null,null,null,null,284]
[null,null,null,null,null,null,null,null,285]
[null,null,null,null,null,null,null,null,286]
[null,null,null,null,null,null,null,null,287]
[null,null,null,null,null,null,null,null,288]
[null,null,null,null,null,null,null,null,289]
[null,null,null,null,null,null,null,null,290]
[null,null,null,null,null,null,null,null,291]
[null,null,null,null,null,null,null,null,292]
[null,null,null,null,null,null,null,null,293]
[null,null,null,null,null,null,null,null,294]
[null,null,null,null,null,null,null,null,295]
[null,null,null,null,null,null,null,null,296]
[null,null,null,null,null,null,null,null,297]
[null,null,null,null,null,null,null,null,298]
[null,null,null,null,null,null,null,null,299]
[null,null,null,null,null,null,null,null,300]
[null,null,null,null,null,null,null,null,301]
[null,null,null,null,null,null,null,null,302]
[null,null,null,null,null,null,null,null,303]
[null,null,null,null,null,null,null,null,304]
[null,null,null,null,null,null,null,null,305]
[null,null,null,null,null,null,null,null,306]
[null,null,null,null,null,null,null,null,307]
[null,null,null,null,null,null,null,null,308]
[null,null,null,null,null,null,null,null,309]
[null,null,null,null,null,null,null,null,310]
[null,null,null,null,null,null,null,null,311]
[null,null,null,null,null,null,null,null,312]
[null,null,null,null,null,null,null,null,313]
[null,null,null,null,null,null,null,null,314]
[null,null,null,null,null,null,null,null,315]
[null,null,null,null,null,null,null,null,316]
[null,null,null,null,null,null,null,null,317]
[null,null,null,null,null,null,null,null,318]
[null,null,null,null,null,null,null,null,319]
[null,null,null,null,null,null,null,null,320]
[null,null,null,null,null,null,null,null,321]
[null,null,null,null,null,null,null,null,322]
[null,null,null,null,null,null,null,null,323]
[null,null,null,null,null,null,null,null,324]
[null,null,null,null,null,null,null,null,325]
[null,null,null,null,null,null,null,null,326]
[null,null,null,null,null,null,null,null,327]
[null,null,null,null,null,null,null,null,328]
[null,null,null,null,null,null,null,null,329]
[null,null,null,null,null,null,null,null,330]
[null,null,null,null,null,null,null,null,331]
[null,null,null,null,null,null,null,null,332]
[null,null,null,null,null,null,null,null,333]
[null,null,null,null,null,null,null,null,334]
[null,null,null,null,null,null,null,null,335]
[null,null,null,null,null,null,null,null,336]
[null,null,null,null,null,null,null,null,337]
[null,null,null,null,null,null,null,null,338]
[null,null,null,null,null,null,null,null,339]
[null,null,null,null,null,null,null,null,340]
[null,null,null,null,null,null,null,null,341]
[null,null,null,null,null,null,null,null,342]
[null,null,null,null,null,null,null,null,343]
[null,null,null,null,null,null,null,null,344]
[null,null,null,null,null,null,null,null,345]
[null,null,null,null,null,null,null,null,346]
[null,null,null,null,null,null,null,null,347]
[null,null,null,null,null,null,null,null,348]
[null,null,null,null,null,null,null,null,349]
[null,null,null,null,null,null,null,null,350]
[null,null,null,null,null,null,null,null,351]
[null,null,null,null,null,null,null,null,352]
[null,null,null,null,null,null,null,null,353]
[null,null,null,null,null,null,null,null,354]
[null,null,null,null,null,null,null,null,355]
[null,null,null,null,null,null,null,null,356]
[null,null,null,null,null,null,null,null,357]
[null,null,null,null,null,null,null,null,358]
[null,null,null,null,null,null,null,null,359]
[null,null,null,null,null,null,null,null,360]
[null,null,null,null,null,null,null,null,361]
[null,null,null,null,null,null,null,null,362]
[null,null,null,null,null,null,null,null,363]
[null,null,null,null,null,null,null,null,364]
[null,null,null,null,null,null,null,null,365]
[null,null,null,null,null,null,null,null,366]
[null,null,null,null,null,null,null,null,367]
[null,null,null,null,null,null,null,null,368]
[null,null,null,null,null,null,null,null,369]
[null,null,null,null,null,null,null,null,370]
[null,null,null,null,null,null,null,null,371]
[null,null,null,null,null,null,null,null,372]
[null,null,null,null,null,null,null,null,373]
[null,null,null,null,null,null,null,null,374]
[null,null,null,null,null,null,null,null,375]
[null,null,null,null,null,null,null,null,376]
[null,null,null,null,null,null,null,null,377]
[null,null,null,null,null,null,null,null,378]
[null,null,null,null,null,null,null,null,379]
[null,null,null,null,null,null,null,null,380]
[null,null,null,null,null,null,null,null,381]
[null,null,null,null,null,null,null,null,382]
[null,null,null,null,null,null,null,null,383]
[null,null,null,null,null,null,null,null,384]
[null,null,null,null,null,null,null,null,385]
[null,null,null,null,null,null,null,null,386]
[null,null,null,null,null,null,null,null,387]
[null,null,null,null,null,null,null,null,388]
[null,null,null,null,null,null,null,null,389]
[null,null,null,null,null,null,null,null,390]
[null,null,null,null,null,null,null,null,391]
[null,null,null,null,null,null,null,null,392]
[null,null,null,null,null,null,null,null,393]
[null,null,null,null,null,null,null,null,394]
[null,null,null,null,null,null,null,null,395]
[null,null,null,null,null,null,null,null,396]
[null,null,null,null,null,null,null,null,397]
[null,null,null,null,null,null,null,null,398]
[null,null,null,null,null,null,null,null,399]
[null,null,null,null,null,null,null,null,400]
[null,null,null,null,null,null,null,null,401]
[null,null,null,null,null,null,null,null,402]
[null,null,null,null,null,null,null,null,403]
[null,null,null,null,null,null,null,null,404]
[null,null,null,null,null,null,null,null,405]
[null,null,null,null,null,null,null,null,406]
[null,null,null,null,null,null,null,null,407]
[null,null,null,null,null,null,null,null,408]
[null,null,null,null,null,null,null,null,409]
[null,null,null,null,null,null,null,null,410]
[null,null,null,null,null,null,null,null,411]
[null,null,null,null,null,null,null,null,412]
[null,null,null,null,null,null,null,null,413]
[null,null,null,null,null,null,null,null,414]
[null,null,null,null,null,null,null,null,415]
[null,null,null,null,null,null,null,null,416]
[null,null,null,null,null,null,null,null,417]
[null,null,null,null,null,null,null,null,418]
[null,null,null,null,null,null,null,null,419]
[null,null,null,null,null,null,null,null,420]
[null,null,null,null,null,null,null,null,421]
[null,null,null,null,null,null,null,null,422]
[null,null,null,null,null,null,null,null,423]
[null,null,null,null,null,null,null,null,424]
[null,null,null,null,null,null,null,null,425]
[null,null,null,null,null,null,null,null,426]
[null,null,null,null,null,null,null,null,427]
[null,null,null,null,null,null,null,null,428]
[null,null,null,null,null,null,null,null,429]
[null,null,null,null,null,null,null,null,430]
[null,null,null,null,null,null,null,null,431]
[null,null,null,null,null,null,null,null,432]
[null,null,null,null,null,null,null,null,433]
[null,null,null,null,null,null,null,null,434]
[null,null,null,null,null,null,null,null,435]
[null,null,null,null,null,null,null,null,436]
[null,null,null,null,null,null,null,null,437]
[null,null,null,null,null,null,null,null,438]
[null,null,null,null,null,null,null,null,439]
[null,null,null,null,null,null,null,null,440]
[null,null,null,null,null,null,null,null,441]
[null,null,null,null,null,null,null,null,442]
[null,null,null,null,null,null,null,null,443]
[null,null,null,null,null,null,null,null,444]
[null,null,null,null,null,null,null,null,445]
[null,null,null,null,null,null,null,null,446]
[null,null,null,null,null,null,null,null,447]
[null,null,null,null,null,null,null,null,448]
[null,null,null,null,null,null,null,null,449]
[null,null,null,null,null,null,null,null,450]
[null,null,null,null,null,null,null,null,451]
[null,null,null,null,null,null,null,null,452]
[null,null,null,null,null,null,null,null,453]
[null,null,null,null,null,null,null,null,454]
[null,null,null,null,null,null,null,null,455]
[null,null,null,null,null,null,null,null,456]
[null,null,null,null,null,null,null,null,457]
[null,null,null,null,null,null,null,null,458]
[null,null,null,null,null,null,null,null,459]
[null,null,null,null,null,null,null,null,460]
[null,null,null,null,null,null,null,null,461]
[null,null,null,null,null,null,null,null,462]
[null,null,null,null,null,null,null,null,463]
[null,null,null,null,null,null,null,null,464]
[null,null,null,null,null,null,null,null,465]
[null,null,null,null,null,null,null,null,466]
[null,null,null,null,null,null,null,null,467]
[null,null,null,null,null,null,null,null,468]
[null,null,null,null,null,null,null,null,469]
[null,null,null,null,null,null,null,null,470]
[null,null,null,null,null,null,null,null,471]
[null,null,null,null,null,null,null,null,472]
[null,null,null,null,null,null,null,null,473]
[null,null,null,null,null,null,null,null,474]
[null,null,null,null,null,null,null,null,475]
[null,null,null,null,null,null,null,null,476]
[null,null,null,null,null,null,null,null,477]
[null,null,null,null,null,null,null,null,478]
[null,null,null,null,null,null,null,null,479]
[null,null,null,null,null,null,null,null,480]
[null,null,null,null,null,null,null,null,481]
[null,null,null,null,null,null,null,null,482]
[null,null,null,null,null,null,null,null,483]
[null,null,null,null,null,null,null,null,484]
[null,null,null,null,null,null,null,null,485]
[null,null,null,null,null,null,null,null,486]
[null,null,null,null,null,null,null,null,487]
[null,null,null,null,null,null,null,null,488]
[null,null,null,null,null,null,null,null,489]
[null,null,null,null,null,null,null,null,490]
[null,null,null,null,null,null,null,null,491]
[null,null,null,null,null,null,null,null,492]
[null,null,null,null,null,null,null,null,493]
[null,null,null,null,null,null,null,null,494]
[null,null,null,null,null,null,null,null,495]
[null,null,null,null,null,null,null,null,496]
[null,null,null,null,null,null,null,null,497]
[null,null,null,null,null,null,null,null,498]
[null,null,null,null,null,null,null,null,499]
[null,null,null,null,null,null,null,null,500]

{"sheet":"SmartHandle Cover","index":3,"n_rows":111,"n_cols":48,"rows_kept":111,"cut":false,"hidden":true,"merged":[[15,3,15,4],[14,4,14,5],[1,3,1,5],[12,0,12,5],[6,0,7,0],[6,1,7,1],[6,2,7,2],[6,3,7,3],[6,4,6,5],[9,4,9,5],[3,3,3,5]]}
[]
[]
[{"$f":"HLOOKUP($E$3,$A$58:$F$110,2,0)","v":"Bestellhilfe für SmartHandle Cover"},null,null,null,{"$f":"'Hauptseite - main page'!G3","v":"Deutsch"}]
[]
[]
[]
[{"$f":"HLOOKUP($E$3,$A$58:$F$110,3,0)","v":"Profil"},{"$f":"HLOOKUP($E$3,$A$58:$F$110,4,0)","v":"Aktiv / Passiv (Hybrid)"},{"$f":"HLOOKUP($E$3,$A$58:$F$110,5,0)","v":"Mechanical Override Ja/Nein"},{"$f":"HLOOKUP($E$3,$A$58:$F$110,6,0)","v":"schmal / breit"},{"$f":"HLOOKUP($E$3,$A$58:$F$110,7,0)","v":"Verkaufs-Artikelnummer"}]
[null,null,null,null,{"$f":"HLOOKUP($E$3,$A$58:$F$110,8,0)","v":"für Außenseite"},{"$f":"HLOOKUP($E$3,$A$58:$F$110,9,0)","v":"für Innenseite"}]
[null,null,null,null,{"$f":"IF(OR(A9=\"\",B9=\"\",C9=\"\",D9=\"\"),\"XXX\",CHOOSE(F46,B28,C28,D28,E28,F28,G28,H28,I28,J28,K28,L28,M28,N28,O28,P28,Q28,R28,S28,T28,U28,V28,W28,X28,Y28,Z28,AA28,AB28,AC28,AD28,AE28,AF28,AG28,AH28,AI28,AJ28,AK28,AL28,AM28,AN28,AO28,AP28,AQ28,AR28,AS28,AT28,AU28,AV28))","v":"XXX"},{"$f":"IF(OR(A9=\"\",B9=\"\",C9=\"\",D9=\"\"),\"XXX\",CHOOSE(F46,B29,C29,D29,E29,F29,G29,H29,I29,J29,K29,L29,M29,N29,O29,P29,Q29,R29,S29,T29,U29,V29,W29,X29,Y29,Z29,AA29,AB29,AC29,AD29,AE29,AF29,AG29,AH29,AI29,AJ29,AK29,AL29,AM29,AN29,AO29,AP29,AQ29,AR29,AS29,AT29,AU29,AV29))","v":"XXX"}]
[null,null,null,null,{"$f":"IF(E9<>\"\",HLOOKUP($E$3,$A$58:$F$110,14,0),\"\")","v":"Beispielfotos"}]
[null,null,{"$f":"IF(OR(E9=\"SH.CB.XX\",F9=\"SH.CB.XX\",E9=\"SH.CBP.XX\",F9=\"SH.CBP.XX\",E9=\"SH.CS.XX\",F9=\"SH.CS.XX\",E9=\"SH.CSP.XX\",F9=\"SH.CSP.XX\",E9=\"SH2.CBP.XX\",E9=\"SH2.CSP.XX\"),HLOOKUP($E$3,$A$58:$F$110,11,0),\"\")","v":""}]
[null,null,null,null,{"$f":"IF(AND(B9=HLOOKUP($E$3,$A$58:$F$110,20,0),E9<>\"XXX\"),HLOOKUP($E$3,$A$58:$F$110,30,0),IF(AND(B9=HLOOKUP($E$3,$A$58:$F$110,19,0),E9<>\"XXX\"),HLOOKUP($E$3,$A$58:$F$110,31,0),\"\"))","v":""}]
[]
[{"$f":"HLOOKUP($E$3,$A$58:$F$110,25,0)","v":"Rückwärtssuche"},{"$f":"IF(B16=\"XXX\",\"XXX\",A16)","v":"XXX"}]
[{"$f":"HLOOKUP($E$3,$A$58:$F$110,27,0)","v":"Verkaufs-Artikelnummer (bitte auswählen)"},{"$f":"HLOOKUP($E$3,$A$58:$F$110,10,0)","v":"sprechende Übersetzung der Verkaufsartikelnummer"},{"$f":"HLOOKUP($E$3,$A$58:$F$110,26,0)","v":"Beispielfoto"},null,{"$f":"HLOOKUP($E$3,$A$58:$F$110,28,0)","v":"Gesamtübersicht aller verfügbaren SmartHandle Cover"}]
[null,{"$f":"IF(A16<>\"\",VLOOKUP(A16,Langtext_Cover_Übers.!A2:B39,2,FALSE),\"XXX\")","v":"XXX"},null,{"$f":"IF(OR(A16=\"SH.CBP\",A16=\"SH.CBP.SO\",A16=\"SH.CBP.SO.105\",A16=\"SH.CBP.SR\",A16=\"SH.CBP.SR.A78\",A16=\"SH.CBP.X\",A16=\"SH.CSP\",A16=\"SH.CSP.SO\",A16=\"SH.CSP.SO.105\",A16=\"SH.CSP.SR\",A16=\"SH.CSP.SR.A78\",A16=\"SH.CSP.X\"),HLOOKUP($E$3,$A$58:$F$110,31,0),IF(OR(A16=\"SH2.CBP\",A16=\"SH2.CBP.SO\",A16=\"SH2.CBP.SO.105\",A16=\"SH2.CBP.SR\",A16=\"SH2.CBP.SR.A78\",A16=\"SH2.CBP.X\",A16=\"SH2.CSP\",A16=\"SH2.CSP.SO\",A16=\"SH2.CSP.SO.105\",A16=\"SH2.CSP.SR\",A16=\"SH2.CSP.SR.A78\",A16=\"SH2.CSP.X\"),HLOOKUP($E$3,$A$58:$F$110,30,0),\"\"))","v":""}]
[]
[]
[]
[]
[]
[]
[]
[]
[{"$f":"IF(B16=\"XXX\",\"XXX\",A16)","v":"XXX"}]
[]
[null,1,2,3,4,5,6,7,8,9,10,11,12,13,14,15,16,17,18,19,20,21,22,23,24,25,26,27,28,29,30,31,32,33,34,35,36,37,38,39,40,41,42,43,44,45,46,47]
["für Außenseite","SH.CS","SH.CSP","SH.CS.XX","SH.CSP.XX","SH.CB","SH.CBP","SH.CB.XX","SH.CBP.XX","SH.CS.SO","SH.CSP.SO","SH.CS.SO.105","SH.CSP.SO.105","SH.CB.SO","SH.CBP.SO","SH.CB.SO.105","SH.CBP.SO.105","SH.CS.SR","SH.CSP.SR","SH.CS.SR.A78","SH.CSP.SR.A78","SH.CB.SR","SH.CBP.SR","SH.CB.SR.A78","SH.CBP.SR.A78","SH2.CSP","nicht vorhanden","SH2.CSP.XX","nicht vorhanden","SH2.CBP","nicht vorhanden","SH2.CBP.XX","nicht vorhanden","SH2.CSP.SO","nicht vorhanden","SH2.CSP.SO.105","nicht vorhanden","SH2.CBP.SO","nicht vorhanden","SH2.CBP.SO.105","nicht vorhanden","SH2.CSP.SR","nicht vorhanden","SH2.CSP.SR.A78","nicht vorhanden","SH2.CBP.SR","nicht vorhanden","SH2.CBP.SR.A78"]
["für Innenseite","SH.CS","SH.CS","SH.CS.XX","SH.CS.XX","SH.CB","SH.CB","SH.CB.XX","SH.CB.XX","SH.CS.SO","SH.CS.SO","SH.CS.SO.105","SH.CS.SO.105","SH.CB.SO","SH.CB.SO","SH.CB.SO.105","SH.CB.SO.105","SH.CS.SR","SH.CS.SR","SH.CS.SR.I78","SH.CS.SR.I78","SH.CB.SR","SH.CB.SR","SH.CB.SR.I78","SH.CB.SR.I78","SH.CS","nicht vorhanden","SH.CS.XX","nicht vorhanden","SH.CB","nicht vorhanden","SH.CB.XX","nicht vorhanden","SH.CS.SO","nicht vorhanden","SH.CS.SO.105","nicht vorhanden","SH.CB.SO","nicht vorhanden","SH.CB.SO.105","nicht vorhanden","SH.CS.SR","nicht vorhanden","SH.CS.SR.I78","nicht vorhanden","SH.CB.SR","nicht vorhanden","SH.CB.SR.I78"]
[]
[]
[null,null,null,null,{"$f":"IF($E$3=\"Deutsch\",$B$72,IF($E$3=\"English\",$C$72,IF($E$3=\"Français\",$D$72,IF($E$3=\"Italiano\",$E$72,IF($E$3=\"Nederlands\",$F$72,\"\")))))","v":"Euro-PZ"},0]
["Nr.","Beschreibung",null,null,{"$f":"IF($E$3=\"Deutsch\",$B$73,IF($E$3=\"English\",$C$73,IF($E$3=\"Français\",$D$73,IF($E$3=\"Italiano\",$E$73,IF($E$3=\"Nederlands\",$F$73,\"\")))))","v":"Swiss Round"},16]
["SH.CB","Smart Handle Cover breit",null,null,{"$f":"IF($E$3=\"Deutsch\",$B$74,IF($E$3=\"English\",$C$74,IF($E$3=\"Français\",$D$74,IF($E$3=\"Italiano\",$E$74,IF($E$3=\"Nederlands\",$F$74,\"\")))))","v":"Scandinavian Oval"},8]
["SH.CB.X","Smart Handle Cover breit 72"]
["SH.CB.SO.105","Smart Handle Cover SO breit 105",null,null,{"$f":"IF($E$3=\"Deutsch\",$B$75,IF($E$3=\"English\",$C$75,IF($E$3=\"Français\",$D$75,IF($E$3=\"Italiano\",$E$75,IF($E$3=\"Nederlands\",$F$75,\"\")))))","v":"Aktiv"},0]
["SH.CBP","Smart Handle Cover breit SC",null,null,{"$f":"IF($E$3=\"Deutsch\",$B$76,IF($E$3=\"English\",$C$76,IF($E$3=\"Français\",$D$76,IF($E$3=\"Italiano\",$E$76,IF($E$3=\"Nederlands\",$F$76,\"\")))))","v":"Passiv / Hybrid"},1]
["SH.CBP.X","Smart Handle Cover breit SC 72",null,null,{"$f":"IF($E$3=\"Deutsch\",$B$77,IF($E$3=\"English\",$C$77,IF($E$3=\"Français\",$D$77,IF($E$3=\"Italiano\",$E$77,IF($E$3=\"Nederlands\",$F$77,\"\")))))","v":"Passiv / Hybrid (reichweitenoptimiert)"},24]
["SH.CBP.SO.105","Smart Handle Cover SO breit SC 105"]
["SH.CS","Smart Handle Cover schmal",null,"Mechanical Override",{"$f":"IF($E$3=\"Deutsch\",$B$78,IF($E$3=\"English\",$C$78,IF($E$3=\"Français\",$D$78,IF($E$3=\"Italiano\",$E$78,IF($E$3=\"Nederlands\",$F$78,\"\")))))","v":"Ja"},2]
["SH.CS.X","Smart Handle Cover schmal 72",null,"Mechanical Override",{"$f":"IF($E$3=\"Deutsch\",$B$79,IF($E$3=\"English\",$C$79,IF($E$3=\"Français\",$D$79,IF($E$3=\"Italiano\",$E$79,IF($E$3=\"Nederlands\",$F$79,\"\")))))","v":"Nein"},0]
["SH.CS.SO","Smart Handle Cover SO schmal"]
["SH.CS.SO.105","Smart Handle Cover SO schmal 105",null,null,{"$f":"IF($E$3=\"Deutsch\",$B$80,IF($E$3=\"English\",$C$80,IF($E$3=\"Français\",$D$80,IF($E$3=\"Italiano\",$E$80,IF($E$3=\"Nederlands\",$F$80,\"\")))))","v":"schmal"},1]
["SH.CSP","Smart Handle Cover schmal SC",null,null,{"$f":"IF($E$3=\"Deutsch\",$B$81,IF($E$3=\"English\",$C$81,IF($E$3=\"Français\",$D$81,IF($E$3=\"Italiano\",$E$81,IF($E$3=\"Nederlands\",$F$81,\"\")))))","v":"breit"},5]
["SH.CSP.X","Smart Handle Cover schmal SC 92"]
["SH.CSP.SO","Smart Handle Cover schmal SC SO",null,null,"Summe",{"$f":"VLOOKUP(A9,E32:F34,2,FALSE)+VLOOKUP(B9,E36:F38,2,FALSE)+VLOOKUP(C9,E40:F41,2,FALSE)+VLOOKUP(D9,E43:F44,2,FALSE)","v":{"$error":"#N/A"}}]
["SH.CSP.SO.105","Smart Handle Cover SO schmal SC 105"]
[]
[]
[]
[]
[]
[]
[]
[]
[]
[]
["Artikelnummer","Deutsch","English","Français","Italiano","Nederlands",1]
["Bestellhilfe für SmartHandle Cover","Bestellhilfe für SmartHandle Cover","ordering guide for SmartHandle cover","guide pour commander les plaques de Smart Handles","Guida all'ordine per le Cover delle SmartHandle","Bestelhulp voor SmartHandle schild",2]
["Profil","Profil","Profile","Profils","Profilo","Profiel",3]
["Aktiv / Passiv (Hybrid)","Aktiv / Passiv (Hybrid)","Active / Passive (Hybrid)","actif / Passif (hybride)","Attivo/Passivo ( Ibrido )","Aktief / Passief ( hybride )",4]
["Mechanical Override Ja/Nein","Mechanical Override Ja/Nein","mechanical override Yes/No","verrouillage mécanique Oui/Non","Override meccanico Si/No","Mechanical override Ja/Nee",5]
["schmal / breit","schmal / breit","narrow /wide","étroit / large","Stretta/larga","smal / breed",6]
["Verkaufs-Artikelnummer","Verkaufs-Artikelnummer","part number","code article de commande","Codice prodotto","Artikelnummer",7]
["für Außenseite","für Außenseite","for outer side","pour côté extérieur","Per il lato esterno","voor buitenzijde",8]
["für Innenseite","für Innenseite","for inner side","pour côté intérieur","Per il lato interno","voor binnenzijde",9]
["sprechende Übersetzung der Verkaufsartikelnummer","sprechende Übersetzung der Verkaufsartikelnummer","detailed description of the part number","description du code article de commande","descrizione dettagliata del codice prodotto","omschrijving artikelnummer",10]
["Bitte beachten Sie, dass das \"XX\" in der Artikelnummer durch die benötigte Entfernung ersetzt werden muss.","Bitte beachten Sie, dass das \"XX\" in der Artikelnummer durch die benötigte Entfernung ersetzt werden muss.","Please note that the \"XX\" in the part number is to be replaced by the distance required.","attention: le \"XX\" est remplacé dans le code article par l'entraxe souhaité","Nota bene: la \"XX\" nel codice va sostituita con la misura richiesta","Let op: \"XX\" moet worden gewijzigd in de gewenste afstand",11]
["Nicht alle der angezeigten Varianten sind auch bereits im Navision angelegt, können aber bei Bedarf angelegt werden!","Nicht alle der angezeigten Varianten sind auch bereits im Navision angelegt, können aber bei Bedarf angelegt werden!",null,null,null,null,12]
["*** Bitte Makros aktivieren ***","*** Bitte Makros aktivieren ***","*** Please enable macros ***","activer les macros","*** Per favore attivate le macro ***","*** Macro’s inschakelen ***",13]
["Beispielfotos","Beispielfotos","illustrations","exemple d'illustration","illustrazioni","voorbeeldfoto’s",14]
["Euro-PZ","Euro-PZ","Euro profile","profil européen","Profilo europeo","Euro profiel ",15]
["Swiss Round","Swiss Round","Swiss Round","profil suisse rond","Tondo svizzero","Swiss Round",16]
["Scandinavian Oval","Scandinavian Oval","Scandinavian Oval","profil scandinave ovale","Ovale scandinavo","Scandinavian Oval",17]
["Aktiv","Aktiv","Active","actif","Attivo","Aktief",18]
["Passiv / Hybrid","Passiv / Hybrid","Passive / Hybrid","passif / hybride","Passivo / Ibrido","Passief / Hybride",19]
["Passiv / Hybrid (reichweitenoptimiert)","Passiv / Hybrid (reichweitenoptimiert)","Passive / Hybrid (improved card reading distance)","passif / hybride","Passivo / Ibrido ( Distanza di lettura della tessera migliorata )","Passief / Hybride (verbeterde leesafstand)",20]
["Ja","Ja","Yes","Oui","Si","Ja",21]
["Nein","Nein","No","Non","No","Nee",22]
["schmal","schmal","narrow","étroit","stretta","smal  ",23]
["breit","breit","wide","large","larga","breed",24]
["Rückwärtssuche","Rückwärtssuche","reverse search","recherche arrière","ricerca inversa","omgekeerde zoekfunctie",25]
["Beispielfoto","Beispielfoto","illustration","exemple d'illustration","illustrazione","voorbeeldfoto’s",26]
["Verkaufs-Artikelnummer (bitte auswählen)","Verkaufs-Artikelnummer (bitte auswählen)","part number (to be selected)","code article (à sélectionner)","codice prodotto ( da selezionare )","Artikelnummer (a.u.b. keuze maken)",27]
["Gesamtübersicht aller verfügbaren SmartHandle Cover","Gesamtübersicht aller verfügbaren SmartHandle Cover","overview of all available covers for SmartHandles","liste de toutes les plaques disponibles pour Smart Handles","elenco di tutte le possibili cover per la SmartHandle","Overzicht alle beschikbare Smarthandle schilden",28]
["zurück zur Bestellhilfe für SmartHandle-Cover","zurück zur Bestellhilfe für SmartHandle-Cover","back to ordering guide for SmartHandle covers","retour au guide pour commander les plaques","ritorna alla guida per l'ordine delle cover per SmartHandle","Terug naar bestelhulp SmartHandle schilden",29]
["Kartenleseeinsatz steht 2mm hervor. \nAchtung, nicht kompatibel mit alter Version (bündiger Kartenlesereinsatz).","Kartenleseeinsatz steht 2mm hervor. \nAchtung, nicht kompatibel mit alter Version (bündiger Kartenlesereinsatz).","the card reader insert protrudes 2mm. \nPlease note that this version is not compatible with the flush-mounted version.","lecteur carte dépassant de 2 mm - cette version n'est pas compatible avec l'ancienne","L'inserto per la lettura delle tessere sporge per 2 mm. Nota bene: questa versione non è compatibile con la versione con montaggio a filo","de opbouw kaartlezer steekt 2mm uit. Let op deze versie is niet compatibel met de inbouw versie.",30]
["Kartenleseeinsatz ist bündig. \nAchtung, nicht kompatibel mit neuem Cover (hervorstehender Kartenlesereinsatz).","Kartenleseeinsatz ist bündig. \nAchtung, nicht kompatibel mit neuem Cover (hervorstehender Kartenlesereinsatz).","The card reader insert is flush-mounted. \nPlease note that this version is not compatible with the new version (protruded card reader insert).","lecteur carte ancienne version - cette version n'est pas compatible avec la nouvelle (lecteur carte dépassant de 2 mm)","L'inserto per la lettura delle tessere e montato a filo. Nota bene: questa versione non è compatibile con la nuova versione ( inserto per la lettura sporgente )","Inbouw kaartlezer. Let op deze versie is niet compatibel met de nieuwe opbouw lezer versie",31]
[null,null,null,null,null,null,32]
[null,null,null,null,null,null,33]
[null,null,null,null,null,null,34]
[null,null,null,null,null,null,35]
[null,null,null,null,null,null,36]
[null,null,null,null,null,null,37]
[null,null,null,null,null,null,38]
[null,null,null,null,null,null,39]
[null,null,null,null,null,null,40]
[null,null,null,null,null,null,41]
[null,null,null,null,null,null,42]
[null,null,null,null,null,null,43]
[null,null,null,null,null,null,44]
[null,null,null,null,null,null,45]
[null,null,null,null,null,null,46]
[null,null,null,null,null,null,47]
[null,null,null,null,null,null,48]
[null,null,null,null,null,null,49]
[null,null,null,null,null,null,50]
[null,null,null,null,null,null,51]
[null,null,null,null,null,null,52]
[null,null,null,null,null,null,53]
[null,null,null,null,null,null,54]

{"sheet":"Comments","index":4,"n_rows":36,"n_cols":11,"rows_kept":36,"cut":false,"hidden":true,"merged":[]}
["Sprache","Deutsch","English","Français","Italiano","Nederlands",null,null,{"$f":"'Bestellhilfe SmartHandles'!I3","v":"Deutsch"}]
["SmartHandle Typ","Standard SmartHandle (ohne Door Monitoring)\nDoor Monitoring (interne Sensorik)\nDoor Monitoring  (Schlosssensorik)","Standard SmartHandle (without Door Monitoring)\nDoor Monitoring (internal sensors)\nDoor Monitoring (sensor locks)","SmartHandle standard (sans Door Monitoring)\nDoor Monitoring (capteurs internes)\nDoor Monitoring (capteurs externes)","SmartHandle standard (Senza DoorMonitoring)\nDoor Monitoring (sensore interno)\nDoor Monitoring (sensore esterno)","Standaard SmartHandle (zonder deurstand signalering)\nDeurstand signalering (interne sensors)\nDeurstand signalering (externe sensors)"]
["Profilname","Europrofil ohne Lochung für Profilzylinder (SHA)\nSwiss Round ohne Lochung für Profilzylinder (SHA)\nBritish Oval ohne Lochung für Profilzylinder (SHA)\nScandinavian Oval ohne Lochung für Profilzylinder (SHB)\nEuroprofil mit Lochung für Profilzylinder - MO (SHC)\nSwiss Round mit Lochung für Profilzylinder - MO (SHD)\nScandinavian Oval mit Lochung für Profilzylinder - MO (SHE)\nEuroprofil mit MO - Rosettenmontage (SHF)\nSwiss Round mit MO - Rosettenmontage (SHG)\nEuroprofil mit MO - für Rohrrahmentüren (SHH)\nSwiss Round mit MO - für Rohrrahmentüren (SHI)\n","Europrofile without Mechanical Override (SHA)\nSwiss Round without Mechanical Override (SHA)\nBritish Oval without Mechanical Override (SHA)\nScandinavian Oval without Mechanical Override (SHB)\nEuroprofil with Mechanical Override - MO (SHC)\nSwiss Round with Mechanical Override - MO (SHD)\nScandinavian Oval with Mechanical Override - MO (SHE)\nEuro profile with Mechanical Override (MO) - rosette mounting (SHF)\nSwiss Round with Mechanical Override (MO) - rosette mounting (SHG)\nEuro profile with Mechanical Override (MO) - for tabular frame doors (SHH)\nSwiss Round with Mechanical Override (MO) - for tabular frame doors (SHI)","Profil européen sans verrouillage mécanique (SHA)\nProfil suisse sans verrouillage mécanique (SHA)\nOvale britannique sans verrouillage mécanique (SHA)\nOvale scandinave sans verrouillage mécanique (SHB)\nprofil européen avec Verrouillage mécanique - VM (SHC)     \nprofil suisse avec Verrouillage mécanique - VM (SHD)\nOvale scandinave avec Verrouillage mécanique - VM (SHE)","profilo europeo senza Mechanical Override (SHA)\ntondo svizzero senza Mechanical Override (SHA)\nBritish Oval senza Mechanical Override (SHA)\nScandinavian Oval senza Mechanical Override (SHB)\nprofilo europeo con mechanical override - MO (SHC)\ntondo svizzero con mechanical override - MO (SHD)\nScandinavian Oval con Mechanical Override - MO (SHE)","Euro profiel zonder Mechanical Override (SHA)\nSwiss Round zonder Mechanical Override (SHA)\nBritish Oval zonder Mechanical Override (SHA)\nScandinavian Oval zonder Mechanical Override (SHB)\nEuro profiel met mechanical Override - MO (SHC)\nSwiss round met mechanical Override - MO (SHD)\nScandinavian Oval met Mechanical Override - MO (SHE)"]
["Profil","A = \nEuroprofil, \nSwiss Round,\nBritish Oval\n\nB =\nScandinavian Oval\n\nC =\nEuroprofil mit Mechanical Override (MO)\n\nD =\nSwiss Round mit Mechanical Override (MO)\n\nE =\nScandinavian Oval mit Mechanical Override (MO)","A = \nEuroprofile, \nSwiss Round,\nBritish Oval\n\nB =\nScandinavian Oval\n\nC =\nEuroprofile with Mechanical Override (MO)\n\nD =\nSwiss Round with Mechanical Override (MO)\n\nE =\nScandinavian Oval with Mechanical Override (MO)","A = \nprofil européen, \nprofil suisse,\novale britannique\n\nB =\nOvale scandinave\n\nC =\nprofil européen avec Verrouillage mécanique (VM)\n\nD =\nprofil suisse avec Verrouillage mécanique (VM)\n\nE =\nOvale scandinave avec verrouillage mécanique (VM)","Door Monitoring (sensore esterno)","A = \nEuro profiel, \nSwiss Round,\nBritish Oval\n\nB =\nScandinavian Oval\n\nC =\nEuro profiel met mechanical Override (MO)\n\nD =\nSwiss Round met mechanical Override (MO)\n\nE =\nScandinavian Oval met Mechanical Override (MO)"]
["Türdicke","für Profile (außer SO) / Standard:\nS = 39-60 mm\nM = 59-80 mm\nL = 79-100 mm\n\nfür Scandinavian Oval Profil / Standard:\nS = 33-50 mm\nM = 49-70 mm\nL = 69-94 mm\n\nfür Scandinavian Oval Profil mit Option DP (Bohrschutz):\nS = 30-47 mm\nM = 46-67 mm\nL = 66-91 mm\n\nSKG & PAS24:\nS = 32-50 mm\nM = 50-70 mm\nL = 70-90 mm\n\nRosettenmontage:\nS = 40-53 mm\nM = 52-73 mm\nL = 72-93 mm\n\nRohrrahmen-Montage:\nS = 40-53 mm\nM = 52-72 mm\nL = 71-91 mm","for profiles (except SO) / Standard:\nS = 39-60 mm\nM = 59-80 mm\nL = 79-100 mm\n\nfor SO lock type: / Standard:\nS = 33-50 mm\nM = 49-70 mm\nL = 69-94 mm\n\nfor SO lock type with option DP (drilling protection):\nS = 30-47 mm\nM = 46-67 mm\nL = 66-91 mm\n\nSKG & PAS24:\nS = 32-50 mm\nM = 50-70 mm\nL = 70-90 mm\n\nRosette mounting:\nS = 40-53 mm\nM = 52-73 mm\nL = 72-93 mm\n\nMounting on tabular frame doors:\nS = 40-53 mm\nM = 52-72 mm\nL = 71-91 mm","pour type de profil (sans SO) /Standard:\nS = 39-60 mm\nM = 59-80 mm\nL = 79-100 mm\n\npour type de serrure SO (Ovale scandinave) / Standard:\nS = 33-50 mm\nM = 49-70 mm\nL = 69-94 mm\n\npour type de serrure SO (Ovale scandinave) avec option DP (protection anti-perçage):\nS = 30-47 mm\nM = 46-67 mm\nL = 66-91 mm\n\nSKG & PAS24:\nS = 32-50 mm\nM = 50-70 mm\nL = 70-90 mm","for profilo (escluso SO) / Standard:\nS = 39-60 mm\nM = 59-80 mm\nL = 79-100 mm\n\nfor Scandinavian Oval profilo / Standard:\nS = 33-50 mm\nM = 49-70 mm\nL = 69-94 mm\n\nfor Scandinavian Oval profilo con option DP (protezione trapanatura):\nS = 30-47 mm\nM = 46-67 mm\nL = 66-91 mm\n\nSKG & PAS24:\nS = 32-50 mm\nM = 50-70 mm\nL = 70-90 mm","voor profiel (behalve SO) / Standard:\nS = 39-60 mm\nM = 59-80 mm\nL = 79-100 mm\n\nvoor Scandinavian Oval profiel: / Standard:\nS = 33-50 mm\nM = 49-70 mm\nL = 69-94 mm\n\nvoor Scandinavian Oval profiel met option DP (drilling protection):\nS = 30-47 mm\nM = 46-67 mm\nL = 66-91 mm\n\nSKG & PAS24:\nS = 32-50 mm\nM = 50-70 mm\nL = 70-90 mm",null,null,{"$f":"HLOOKUP(I1,B1:F5,5,0)","v":"für Profile (außer SO) / Standard:\nS = 39-60 mm\nM = 59-80 mm\nL = 79-100 mm\n\nfür Scandinavian Oval Profil / Standard:\nS = 33-50 mm\nM = 49-70 mm\nL = 69-94 mm\n\nfür Scandinavian Oval Profil mit Option DP (Bohrschutz):\nS = 30-47 mm\nM = 46-67 mm\nL = 66-91 mm\n\nSKG & PAS24:\nS = 32-50 mm\nM = 50-70 mm\nL = 70-90 mm\n\nRosettenmontage:\nS = 40-53 mm\nM = 52-73 mm\nL = 72-93 mm\n\nRohrrahmen-Montage:\nS = 40-53 mm\nM = 52-72 mm\nL = 71-91 mm"},null,"alle Profile / all profiles (außer SO / except SO) --> Standard:\nS = 39-59 mm\nM = 60-79 mm\nL = 80-100 mm\n\nScandinavian Oval Profil(e) --> Standard:\nS = 33-53 mm\nM = 54-73 mm\nL = 74-94 mm\n\nScandinavian Oval Profil(e) mit/with Option DP (Bohrschutz / drilling protection):\nS = 30-50 mm\nM = 51-70 mm\nL = 71-91 mm\n\nSKG & PAS24:\nS = 32-49 mm\nM = 50-69 mm\nL = 70-90 mm"]
["Vierkant","07 = 7 mm\n08 = 8 mm\nF8 = 8 mm (feuerhemmend, nur für Europrofil)\n09 = 9 mm\n10 = 10 mm","07 = 7 mm\n08 = 8 mm\nF8 = 8 mm (Fire-retardant,for Europrofile only)\n09 = 9 mm\n10 = 10 mm","07 = 7 mm\n08 = 8 mm\nF8 = 8 mm (coupe-feu, seulement pour profil européen)\n09 = 9 mm\n10 = 10 mm","07 = 7 mm\n08 = 8 mm\nF8 = 8 mm (Versione ignifuga, solo per profilo europeo)\n09 = 9 mm\n10 = 10 mm","07 = 7 mm\n08 = 8 mm\nF8 = 8 mm (Brandwerende versie, alleen voor Euro profiel)\n09 = 9 mm\n10 = 10 mm"]
["Befestigung","A = SnapIn schmal (41mm)\nB = SnapIn breit (53mm)\nC = Konvent. Befestigung schmal (41mm)\nD = Konvent. Befestigung breit (53mm)\nE = Konvent. Befestigung MO - innen und außen Ausschnitt - schmal (41mm)\nF = Konvent. Befestigung MO - innen und außen Ausschnitt - breit (53mm)\nG = Konvent. Befestigung MO - innen blind, außen Ausschnitt - schmal (41mm)\nH = Konvent. Befestigung MO - innen blind, außen Ausschnitt - breit (53mm)\nI = Konvent. Befestigung MO - innen Ausschnitt, außen blind - schmal (41mm)\nJ = Konvent. Befestigung MO - innen Ausschnitt, außen blind - breit (53mm)\nK = Konvent. Befestigung MO - innen und außen blind - schmal (41mm)\nL = Konvent. Befestigung MO - innen und außen blind - breit (53mm)","A = SnapIn narrow (41mm)\nB = SnapIn wide (53mm)\nC = Conventional Fastening Narrow (41mm)\nD = Conventional Fastening Wide (53mm)\nE = Conventional Fastening MO - inside and outside cylinder recess - narrow (41mm)\nF = Conventional Fastening MO - inside and outside cylinder recess - wide (53mm)\nG = Conventional Fastening MO - inside blind, outside cylinder recess - narrow (41mm)\nH = Conventional Fastening MO - inside blind, outside cylinder recess - wide (53mm)\nI = Conventional Fastening MO - inside cylinder recess, outside blind - narrow (41mm)\nJ = Conventional Fastening MO - inside cylinder recess, outside blind - wide (53mm)\nK = Conventional Fastening MO - inside and outside blind - narrow (41mm)\nL = Conventional Fastening MO - inside and outside blind - wide (53mm)","A = SnapIn / étroit (41 mm)\nB = SnapIn / large (53 mm)\nC = Fixation conventionnelle / étroit (41 mm)\nD = Fixation conventionnelle / large (53 mm)\nE = Fixation conventionnelle VM – perçage à l’intérieur et à l’extérieur / étroit (41 mm)\nF = Fixation conventionnelle VM – perçage à l’intérieur et à l’extérieur / large (53 mm)\nG = Fixation conventionnelle VM – aucun perçage à l’intérieur/perçage à l’extérieur / étroit (41 mm)  \nH = Fixation conventionnelle VM – aucun perçage à l’intérieur/perçage à l’extérieur / large (53 mm)\nI = Fixation conventionnelle VM – perçage à l’intérieur/aucun perçage à l’extérieur / étroit (41 mm) \nJ = Fixation conventionnelle VM – perçage à l’intérieur/aucun perçage à l’extérieur / large (53 mm)\nK = Fixation conventionnelle VM – aucun perçage à l’intérieur et à l’extérieur / étroit (41 mm)  \nL = Fixation conventionnelle VM – aucun perçage à l’intérieur et à l’extérieur / large (53 mm)","A=SnapIn coprimaniglia stretto (41 mm)\nB=SnapIn coprimaniglia largo (53 mm)\nC = Fissaggio convenzionale coprimaniglia stretto (41 mm)\nD = Fissaggio convenzionale coprimaniglia largo (53 mm)\nE = Fissaggio convenzionale mO – interno ed esterno con incavo coprimaniglia stretto (41 mm)\nF = Fissaggio convenzionale mO – interno ed esterno con incavo coprimaniglia largo (53 mm)\nG = Fissaggio convenzionale mO – interno senza incavo/esterno con incavo coprimaniglia stretto (41 mm)   \nH = Fissaggio convenzionale mO – interno senza incavo/esterno con incavo coprimaniglia largo (53 mm)\nI = Fissaggio convenzionale mO – interno con incavo/esterno senza incavo coprimaniglia stretto (41 mm) \nJ = Fissaggio convenzionale mO – interno con incavo/esterno senza incavo coprimaniglia largo (53 mm)\nK = Fissaggio convenzionale mO –interno ed esterno senza incavo coprimaniglia stretto (41 mm)  \nL = Fissaggio convenzionale mO –interno ed esterno senza incavo coprimaniglia largo (53 mm)","A = SnapIn smal (41 mm)\nB = SnapIn breed (53 mm)\nC = Conventionele bevestiging smal (41 mm)\nD = Conventional bevestiging breed (53mm)\nE = Conventionele bevestiging MO – binnen en buiten uitsparing smal (41 mm)\nF = Conventionele bevestiging MO – binnen en buiten uitsparing breed (53 mm)\nG = Conventionele bevestiging MO – binnen blind/buiten uitsparing smal (41 mm)  \nH = Conventionele bevestiging MO – binnen blind/buiten uitsparing breed (53 mm)\nI = Conventionele bevestiging MO – binnen uitsparing/buiten blind smal (41 mm) \nJ = Conventionele bevestiging MO – binnen uitsparing/buiten blind breed (53 mm)\nK = Conventionele bevestiging MO – binnen en buiten blind smal (41 mm)  \nL = Conventionele bevestiging MO – binnen en buiten blind breed (53 mm)"]
["Entfernung","00 = Konventionelle Befestigung (Version: C, D, K, L)\n70 = 70 mm\n72 = 72 mm\n75 = 75 mm\n78 = 78 mm\n85 = 85 mm\n88 = 88 mm\n90 = 90 mm\n92 = 92 mm\n94 = 94 mm (nur für Swiss Round)\n96 = 96 mm (nur für Scandinavian Oval)\n05 = 105 mm (nur für Scandinavian Oval)","00 = Conventional Fastening (Version: C, D, K, L)\n70 = 70 mm\n72 = 72 mm\n75 = 75 mm\n78 = 78 mm\n85 = 85 mm\n88 = 88 mm\n90 = 90 mm\n92 = 92 mm\n94 = 94 mm (only for Swiss Round)\n96 = 96 mm (only for Scandinavian Oval) \n05 = 105 mm (only for Scandinavian Oval)","00 = Fixation conventionnelle  (Variante C, D, K, L)\n70 = 70 mm\n72 = 72 mm\n75 = 75 mm\n78 = 78 mm\n85 = 85 mm\n88 = 88 mm\n90 = 90 mm\n92 = 92 mm\n94 = 94 mm (seulement pour profil suisse)\n96 = 96 mm (seulement pour ovale scandinave)\n05 = 105 mm (seulement pour ovale scandinave)","00 =  fissaggio convenzionale versione C, D, K, L)\n70 = 70 mm\n72 = 72 mm\n75 = 75 mm\n78 = 78 mm\n85 = 85 mm\n88 = 88 mm\n90 = 90 mm\n92 = 92 mm\n94 = 94 mm (solo per tondo svizzero)\n96 = 96 mm (solo per Scandinavian Oval)\n05 = 105 mm (solo per Scandinavian Oval)","00 = conventionele bevestiging (versie C, D, K, L)\n70 = 70 mm\n72 = 72 mm\n75 = 75 mm\n78 = 78 mm\n85 = 85 mm\n88 = 88 mm\n90 = 90 mm\n92 = 92 mm\n94 = 94 mm (alleen voor Swiss round)\n96 = 96 mm (alleen voor Scandinavian Oval)\n05 = 105 mm (alleen voor Scandinavian Oval)"]
["Version","0 = gekuppelt (ohne Elektronik)\n1 = einseitig kuppelnd (ohne Door Monitoring)\n2 = einseitig kuppelnd DM (Door Monitoring / interne Sensorik)\n3 = einseitig kuppelnd DM S (Door Monitoring / externe Sensorik)\n4 = einseitig kuppelnd DS (Door Monitoring / Drückersensor)","0 = Engaged (for Smart Handles without electronics only)\n1 = Engaging on one side (without Door Monitoring)\n2 = Engaging on one side DM (Door Monitoring / SV-sensor)\n3 = Engaging on one side  DM S (Door Monitoring / sensor locks)\n4 = Engaging on one side  DS (Door Monitoring / handle sensor)","0 = embrayé (uniquement pour plaques béquilles sans électronique)\n1 = embrayage d'un seul côté (sans Door Monitoring)\n2 = embrayage d'un seul côté (Door Monitoring / capteur SV)\n3 = embrayage d'un seul côté (Door Monitoring / capteur externe)\n4 = embrayage d'un seul côté (Door Monitoring / capteur poignée)\n\n","0 = Sempre innestata (Solo per smartHandle senza elettronica)\n1 = Innesto sul solo lato esterno (Senza DoorMonitoring)\n2 = Innesto sul solo lato esterno (Door Monitoring / Sensore interno)\n3 = Innesto sul solo lato esterno (Door Monitoring / Sensore esterno)\n4 = Innesto sul solo lato esterno (Door Monitoring / Sensore sulla leva)","0 = gekoppeld (zonder electronica)                                        \n1 = eenzijdig gekoppeld zonder deurstand signalering)\n2 = eenzijdig gekoppeld (Deurstand signalering/ interne Sensor)\n3 = eenzijdig gekoppeld (Deurstand signalering / externe Sensor)\n4 = eenzijdig gekoppeld (Deurstand signalering / Kruk sensor)"]
["Drücker außen","A = L-Form rund\nB = L-Form Gehrung\nC = U-Form rund\nD = U-Form Gehrung\nE = U-Form rund gekröpft\nF = U-Form Gehrung gekröpft\nG = Ulmer Klinke\nH = Ulmer Klinke gekröpft","A = L-shape curved\nB = L-shape mitre\nC = U-shape curved\nD = U-shape mitre\nE = U-shape curved and cranked\nF = U-shape mitre and cranked\nG = Ulm design handle\nH = Ulm design handle and cranked","A = forme en L arrondie\nB =  forme en L rectangulaire\nC = forme en U arrondie\nD = forme en U rectangulaire\nE = forme en U arrondie & coudée\nF = forme en U rectangulaire & coudée\nG = poignée Ulmer\nH = poignée Ulmer & coudée","A = forma a L curvata tondeggiante\nB = forma a L piegata ad angolo retto\nC = forma a U curvata tondeggiante\nD = forma a U piegata ad angolo retto\nE = forma a U con rientro teondeggiante\nF = forma a U con rientro ad angolo retto\nG = Leva Ulmer\nH = Leva Ulmer ad angolo retto","A = L-vorm rond gebogen\nB =  L-vorm verstek\nC = U-vorm rond gebogen\nD = U-vorm verstek\nE = U-vorm rond gebogen & verkropt\nF = U-vorm verstek & verkropt\nG = Ulm Kruk\nH = Ulm Kruk & verkropt"]
["Drücker innen","A = L-Form rund\nB = L-Form Gehrung\nC = U-Form rund\nD = U-Form Gehrung\nE = U-Form rund gekröpft\nF = U-Form Gehrung gekröpft\nG = Ulmer Klinke\nH = Ulmer Klinke gekröpft\n\nK = Knauf (SKG)","A = L-shape curved\nB = L-shape mitre\nC = U-shape curved\nD = U-shape mitre\nE = U-shape curved and cranked\nF = U-shape mitre and cranked\nG = Ulm design handle\nH = Ulm design handle and cranked\n\nK= knob (SKG)","A = forme en L arrondie\nB =  forme en L rectangulaire\nC = forme en U arrondie\nD = forme en U rectangulaire\nE = forme en U arrondie & coudée\nF = forme en U rectangulaire & coudée\nG = poignée Ulmer\nH = poignée Ulmer & coudée\n\nK = noch zu übersetzen","A = forma a L curvata tondeggiante\nB = forma a L piegata ad angolo retto\nC = forma a U curvata tondeggiante\nD = forma a U piegata ad angolo retto\nE = forma a U con rientro teondeggiante\nF = forma a U con rientro ad angolo retto\nG = Leva Ulmer\nH = Leva Ulmer ad angolo retto\n\nK = noch zu übersetzen","A = L-vorm rond gebogen\nB =  L-vorm verstek\nC = U-vorm rond gebogen\nD = U-vorm verstek\nE = U-vorm rond gebogen & verkropt\nF = U-vorm verstek & verkropt\nG = Ulm Kruk\nH = Ulm Kruk & verkropt\n\nK = noch zu übersetzen"]
["Oberfläche","1 = Edelstahl gebürstet\n3 = Messing","1 = brushed stainless steel\n3 = brass","1 = Inox brossé\n3 = Laiton","1 = acciaio inox spazzolato\n3 = ottone","1 = Geborsteld RVS\n3 = Messing"]
["Lesetechnik","0 = ohne Elektronik\n1 = aktiv\n2 = SmartCard/Transponder (nicht für G1)\n3 = SmartCard Mifare","0 = Without electronics\n1 = Active only (transponder operated)\n2 = Smart Card (transponder override facility included) \n3 = SmartCard Mifare","0 = Sans électronique\n1 = Actif\n2 = SmartCard/Transpondeur (pas pour g1)\n3 = SmartCard Mifare","0 = senza elettronica\n1 = Attiva \n2 = SmartCard/Transponder (non disponibile per G1)\n3 = SmartCard Mifare","0 = zonder elektronica\n1 = Actief\n2 = Smartcard/Transponder (niet voor G1)\n3 = SmartCard Mifare"]
["G1/G2","G1\nG2","G1\nG2","G1\nG2","G1\nG2","G1\nG2"]
["Optionen","ZK = Zutrittskontrolle\nWP = waterproof\nDP = drilling protection (Bohrschutz)","ZK = Access control / time zone control\nWP = Waterproof (IP 65)\nDP = Drilling protection","ZK = contrôle des accès / contrôle des \nzones horaires\nWP =  version étanche\nDP =  protection anti-perçage","ZK = controllo degli accessi / gestione delle fasce orarie\nWP = versione resistente alle intemperie\nDP = protezione trapanatura","ZK = Versie met toegangscontrole / tijdzonesturing \nWP = Weerbestendige versie\nDP = Boor beveiliging"]
[]
["Änderung Profilname","Bei Änderung dieser Zelle werden die Eingaben in der Zeile gelöscht.","Changes to this text field result in a resetting of the complete line.","En cas de modifications dans cette cellule, les données de la ligne seront supprimées.","in caso di cambio del testo di questa cella, il contenuto di questa riga viene cancellato","In geval van wijzigingen in dit tekstveld zal de inhoud worden gewist."]
["Änderung Besfestigung","Bei Änderung dieser Zelle werden die Eingaben zur \"Entfernung\" gelöscht.","Changes to this text field result in a resetting of \"Centre Distance\".","En cas de modifications dans cette cellule, les données concernant la \"distance\" seront supprimées.","In caso di cambio del testo di questa cella, il contenuto della cella \"interasse\" verrà cancellato","In geval van wijzigingen in dit tekstveld zal de \"h.o.h maat\" worden gewist."]
["Änderung Version","Bei Änderung dieser Zelle werden die Eingaben zur \"Lesetechnik\", \"G1/G2\" sowie \"Optionen\" gelöscht.","Changes to this text field will result in a resetting of \"Reading Technology\", \"G1/G2\" and \"Options\".","En cas de modifications dans cette cellule, les données concernant la \"technique de lecture\", \"l'option \"G1/G2\" et \"options\" seront supprimées.","In caso di cambio del testo di questa cella, il contenuto della cella \"tecnologia di lettura\", \"G1/G2\" e \"opzioni\" verrà cancellato","In geval van wijzigingen in dit tekstveld zal de \"leestechniek\", \"G1/G2\" en \"opties\" worden gewist."]
["Änderung Lesetechnik","Bei Änderung dieser Zelle werden die Eingaben zu \"G1/G2\" und \"Optionen\" gelöscht.","Changes to this text field will result in a resetting of \"G1/G2\" and \"Options\".","En cas de modifications dans cette cellule, les données concernant l'option \"G1/G2\" et \"options\" seront supprimées.","In caso di cambio del testo di questa cella, il contenuto della cella \"G1/G2\" e \"opzioni\" verrà cancellato","In geval van wijzigingen in dit tekstveld zal \"G1/G2\" en \"opties\" worden gewist."]
["Änderung  Türdicke","Bei Änderung dieser Zelle werden die Eingaben zu \"Vierkant\" gelöscht.","Changes to this text field will result in a resetting of \"Spindle Square\".","En cas de modifications dans cette cellule, les données concernant l'option \"Carré\" seront supprimées.","In caso di modifica del testo in questo campo, il contenuto del campo “Quadro maniglia” verrà cancellato. ","In geval van wijzigingen in dit tekstveld zal \"Vierkant stift\" worden gewist."]
["Änderung Entfernung","Bei Änderung dieser Zelle werden die Eingaben zu \"Optionen\" gelöscht.","Changes to this text field will result in a resetting of \"Options\".","En cas de modifications dans cette cellule, les données concernant l'option \"options\" seront supprimées.","In caso di modifica del testo in questo campo, il contenuto del campo “opzioni” verrà cancellato. ","In geval van wijzigingen in dit tekstveld zal \"opties\" worden gewist."]
["Änderung Vierkant","Bei Änderung dieser Zelle werden die Eingaben zu \"Version\" gelöscht.","Changes to this text field will result in a resetting of \"version\".","En cas de modifications dans cette cellule, les données concernant l'option \"version\" seront supprimées.","In caso di modifica del testo in questo campo, il contenuto del campo “versione” verrà cancellato. ","In geval van wijzigingen in dit tekstveld zal \"versie\" worden gewist."]
[]
["Sicherheits-Klasse","Standard\nE1 / PAS24\nSO mit Bohrschutz\nSKG","Standard\nE1 / PAS24\nSO with drilling protection\nSKG","Standard\nE1 / PAS24\nSO avec protection anti-perçage\nSKG","Standard\nE1 / PAS24\nSO con protezione trapanatura\nSKG","Standard\nE1 / PAS24\nSO met drilling protection\nSKG"]
[]
[]
[]
[null,"L-Form rund","L-shape curved","forme en L arrondie","forma a L curvata tondeggiante","L-vorm rond gebogen",null,"A.",{"$f":"HLOOKUP('Hauptseite - main page'!$G$3,Comments!$B$1:$F$36,29,0)","v":"L-Form rund"}]
[null,"L-Form Gehrung","L-shape mitre","forme en L rectangulaire","forma a L piegata ad angolo retto","L-vorm verstek",null,"B.",{"$f":"HLOOKUP('Hauptseite - main page'!$G$3,Comments!$B$1:$F$36,30,0)","v":"L-Form Gehrung"}]
[null,"U-Form rund","U-shape curved","forme en U arrondie","forma a U curvata tondeggiante","U-vorm rond gebogen",null,"C.",{"$f":"HLOOKUP('Hauptseite - main page'!$G$3,Comments!$B$1:$F$36,31,0)","v":"U-Form rund"}]
[null,"U-Form Gehrung","U-shape mitre","forme en U rectangulaire","forma a U piegata ad angolo retto","U-vorm verstek",null,"D.",{"$f":"HLOOKUP('Hauptseite - main page'!$G$3,Comments!$B$1:$F$36,32,0)","v":"U-Form Gehrung"}]
[null,"U-Form rund gekröpft","U-shape curved and cranked","forme en U arrondie & coudée","forma a U con rientro teondeggiante","U-vorm rond gebogen & verkropt",null,"E.",{"$f":"HLOOKUP('Hauptseite - main page'!$G$3,Comments!$B$1:$F$36,33,0)","v":"U-Form rund gekröpft"}]
[null,"U-Form Gehrung gekröpft","U-shape mitre and cranked","forme en U rectangulaire & coudée","forma a U con rientro ad angolo retto","U-vorm verstek & verkropt",null,"F.",{"$f":"HLOOKUP('Hauptseite - main page'!$G$3,Comments!$B$1:$F$36,34,0)","v":"U-Form Gehrung gekröpft"}]
[null,"Ulmer Klinke","Ulm design handle","poignée Ulmer","Leva Ulmer","Ulm Kruk",null,"G.",{"$f":"HLOOKUP('Hauptseite - main page'!$G$3,Comments!$B$1:$F$36,35,0)","v":"Ulmer Klinke"}]
[null,"Ulmer Klinke gekröpft","Ulm design handle and cranked","poignée Ulmer & coudée","Leva Ulmer ad angolo retto","Ulm Kruk & verkropt",null,"H.",{"$f":"HLOOKUP('Hauptseite - main page'!$G$3,Comments!$B$1:$F$36,36,0)","v":"Ulmer Klinke gekröpft"}]

{"sheet":"Bilder","index":5,"n_rows":29,"n_cols":14,"rows_kept":29,"cut":false,"hidden":true,"merged":[]}
["Bemaßung","Deutsch","English","Français","Italiano","Nederlands"]
[]
[]
[]
[]
["Drücker","A.","B.","C.","D.","E.","F."]
[]
[]
[]
[]
[]
[]
[]
["Einbinden von Fotos:","Fotos in Zelle unten einfügen mit \"einfügen als Bitmap"]
[null,"Markieren von A24 bis H24 --> STRG + Shift + F3 --> Namen erstellen aus den Werten aus \"linker Spalte\""]
[null,"Markieren von B24 bis H25 --> STRG + Shift + F3 --> Namen erstellen aus den Werten aus \"oberster Zeile\""]
[]
[]
[]
[]
[]
[]
[]
["Drücker_neu","A.","B.","C.","D.","E.","F.","G.","H."]
[]
[]
[null,null,null,null,null,null,null,null,"Bemaßung","Deutsch","English","Français","Italiano","Nederlands"]
[]
[null,null,null,null,null,null,null,null,"Bemaßung2"]

{"sheet":"Bilder SH-Cover sortiert","index":6,"n_rows":20,"n_cols":12,"rows_kept":20,"cut":false,"hidden":true,"merged":[[0,0,1,0],[1,8,1,9],[1,11,1,12],[1,1,1,2],[1,4,1,5],[0,1,0,5],[0,8,0,12]]}
[null,{"$f":"HLOOKUP('SmartHandle Cover'!$E$3,'SmartHandle Cover'!$B$58:$F$87,23,0)","v":"schmal"},null,null,null,null,null,null,{"$f":"HLOOKUP('SmartHandle Cover'!$E$3,'SmartHandle Cover'!$B$58:$F$87,24,0)","v":"breit"}]
[null,{"$f":"HLOOKUP('SmartHandle Cover'!$E$3,'SmartHandle Cover'!$B$58:$F$87,8,0)","v":"für Außenseite"},null,null,{"$f":"HLOOKUP('SmartHandle Cover'!$E$3,'SmartHandle Cover'!$B$58:$F$87,9,0)","v":"für Innenseite"},null,null,null,{"$f":"HLOOKUP('SmartHandle Cover'!$E$3,'SmartHandle Cover'!$B$58:$F$87,8,0)","v":"für Außenseite"},null,null,{"$f":"HLOOKUP('SmartHandle Cover'!$E$3,'SmartHandle Cover'!$B$58:$F$87,9,0)","v":"für Innenseite"}]
[null,"SH.CS",null,null,"SH.CS",null,null,null,"SH.CB",null,null,"SH.CB"]
[null,"SH.CSP",null,null,"SH.CS",null,null,null,"SH.CBP",null,null,"SH.CB"]
[null,"SH.CS.X",null,null,"SH.CS.X",null,null,null,"SH.CB.X",null,null,"SH.CB.X"]
[null,"SH.CSP.X",null,null,"SH.CS.X",null,null,null,"SH.CBP.X",null,null,"SH.CB.X"]
[null,"SH.CS.SO",null,null,"SH.CS.SO",null,null,null,"SH.CB.SO",null,null,"SH.CB.SO"]
[null,"SH.CSP.SO",null,null,"SH.CS.SO",null,null,null,"SH.CBP.SO",null,null,"SH.CB.SO"]
[null,"SH.CS.SO.105",null,null,"SH.CS.SO.105",null,null,null,"SH.CB.SO.105",null,null,"SH.CB.SO.105"]
[null,"SH.CSP.SO.105",null,null,"SH.CS.SO.105",null,null,null,"SH.CBP.SO.105",null,null,"SH.CB.SO.105"]
[null,"SH.CS.SR",null,null,"SH.CS.SR",null,null,null,"SH.CB.SR",null,null,"SH.CB.SR"]
[null,"SH.CSP.SR",null,null,"SH.CS.SR",null,null,null,"SH.CBP.SR",null,null,"SH.CB.SR"]
[null,"SH.CS.SR.A78",null,null,"SH.CS.SR.I78",null,null,null,"SH.CB.SR.A78",null,null,"SH.CB.SR.I78"]
[null,"SH.CSP.SR.A78",null,null,"SH.CS.SR.I78",null,null,null,"SH.CBP.SR.A78",null,null,"SH.CB.SR.I78"]
[null,"SH2.CSP",null,null,"SH.CS",null,null,null,"SH2.CBP",null,null,"SH.CB"]
[null,"SH2.CSP.X",null,null,"SH.CS.X",null,null,null,"SH2.CBP.X",null,null,"SH.CB.X"]
[null,"SH2.CSP.SO",null,null,"SH.CS.SO",null,null,null,"SH2.CBP.SO",null,null,"SH.CB.SO"]
[null,"SH2.CSP.SO.105",null,null,"SH.CS.SO.105",null,null,null,"SH2.CBP.SO.105",null,null,"SH.CB.SO.105"]
[null,"SH2.CSP.SR",null,null,"SH.CS.SR",null,null,null,"SH2.CBP.SR",null,null,"SH.CB.SR"]
[null,"SH2.CSP.SR.A78",null,null,"SH.CS.SR.I78",null,null,null,"SH2.CBP.SR.A78",null,null,"SH.CB.SR.I78"]

{"sheet":"Zusammenfassung - summary","index":7,"n_rows":74,"n_cols":40,"rows_kept":74,"cut":false,"hidden":true,"merged":[[22,0,22,2],[1,0,1,2],[6,0,6,1],[7,0,7,1],[9,0,9,1],[10,0,10,1],[12,0,12,1]]}
[]
[{"$f":"'Bestellhilfe SmartHandles'!J216","v":"Zusammenfassung der Bestellung"},null,null,null,null,{"$f":"'Hauptseite - main page'!G3","v":"Deutsch"}]
[]
[]
[]
[]
[{"$f":"'Hauptseite - main page'!A8","v":"Kundennummer"},null,{"$f":"IF('Hauptseite - main page'!C8<>\"\",'Hauptseite - main page'!C8,\"\")","v":""}]
[{"$f":"'Hauptseite - main page'!A9","v":"Kundenname"},null,{"$f":"IF('Hauptseite - main page'!C9<>\"\",'Hauptseite - main page'!C9,\"\")","v":""}]
[]
[{"$f":"'Hauptseite - main page'!A11","v":"Projekt-Nr.  "},null,{"$f":"IF('Hauptseite - main page'!C11<>\"\",'Hauptseite - main page'!C11,\"\")","v":""}]
[{"$f":"'Hauptseite - main page'!A12","v":"Projekt-Name  "},null,{"$f":"IF('Hauptseite - main page'!C12<>\"\",'Hauptseite - main page'!C12,\"\")","v":""}]
[]
[{"$f":"'Hauptseite - main page'!A14","v":"Anlage zu Bestellnummer  "},null,{"$f":"IF('Hauptseite - main page'!C14<>\"\",'Hauptseite - main page'!C14,\"\")","v":""}]
[]
[{"$f":"'Hauptseite - main page'!I8","v":"abweichende Lieferanschrift"},null,{"$f":"IF('Hauptseite - main page'!P9=\"voll\",'Hauptseite - main page'!I9&CHAR(10)&'Hauptseite - main page'!I10&CHAR(10)&'Hauptseite - main page'!I11&CHAR(10)&'Hauptseite - main page'!I12&CHAR(10)&'Hauptseite - main page'!I13&CHAR(10)&'Hauptseite - main page'!I14,\"\")","v":""}]
[]
[]
[]
[]
[]
[]
[{"$f":"'Bestellhilfe SmartHandles'!J196","v":"Zusatz-Information"},null," ",null,null,null,null,null,null,null,null,null," "]
[]
[]
[{"$f":"'Bestellhilfe SmartHandles'!A16","v":"Anzahl"},{"$f":"'Bestellhilfe SmartHandles'!Q16","v":"kpl. Artikelnummer"},{"$f":"'Bestellhilfe SmartHandles'!J215","v":"Beschreibung"}]
[{"$f":"IFERROR(INDEX('Hilfstabelle für Zus.fass.'!A:A,SMALL(IF('Hilfstabelle für Zus.fass.'!$B$1:$B$56<>\"\",ROW($1:$56)),ROW(A2))),\"\")","v":""},{"$f":"IFERROR(INDEX('Hilfstabelle für Zus.fass.'!B:B,SMALL(IF('Hilfstabelle für Zus.fass.'!$B$1:$B$56<>\"\",ROW($1:$56)),ROW(B2))),\"\")","v":""},{"$f":"IFERROR(INDEX('Hilfstabelle für Zus.fass.'!C:C,SMALL(IF('Hilfstabelle für Zus.fass.'!$B$1:$B$56<>\"\",ROW($1:$56)),ROW(C2))),\"\")","v":""},null,{"$f":"IF(A26:A30=\"\",\"leer\",\"voll\")","v":"leer"}]
[{"$f":"IFERROR(INDEX('Hilfstabelle für Zus.fass.'!A:A,SMALL(IF('Hilfstabelle für Zus.fass.'!$B$1:$B$56<>\"\",ROW($1:$56)),ROW(A3))),\"\")","v":""},{"$f":"IFERROR(INDEX('Hilfstabelle für Zus.fass.'!B:B,SMALL(IF('Hilfstabelle für Zus.fass.'!$B$1:$B$56<>\"\",ROW($1:$56)),ROW(B3))),\"\")","v":""},{"$f":"IFERROR(INDEX('Hilfstabelle für Zus.fass.'!C:C,SMALL(IF('Hilfstabelle für Zus.fass.'!$B$1:$B$56<>\"\",ROW($1:$56)),ROW(C3))),\"\")","v":""},null,null,null,null,null,null,null,null,null,null,null,null,null,null,null,null,null,null,null,null,null,null,null,null,null,null,null,null,null,null,null,null,null,null,null,null,"  "]
[{"$f":"IFERROR(INDEX('Hilfstabelle für Zus.fass.'!A:A,SMALL(IF('Hilfstabelle für Zus.fass.'!$B$1:$B$56<>\"\",ROW($1:$56)),ROW(A4))),\"\")","v":""},{"$f":"IFERROR(INDEX('Hilfstabelle für Zus.fass.'!B:B,SMALL(IF('Hilfstabelle für Zus.fass.'!$B$1:$B$56<>\"\",ROW($1:$56)),ROW(B4))),\"\")","v":""},{"$f":"IFERROR(INDEX('Hilfstabelle für Zus.fass.'!C:C,SMALL(IF('Hilfstabelle für Zus.fass.'!$B$1:$B$56<>\"\",ROW($1:$56)),ROW(C4))),\"\")","v":""}]
[{"$f":"IFERROR(INDEX('Hilfstabelle für Zus.fass.'!A:A,SMALL(IF('Hilfstabelle für Zus.fass.'!$B$1:$B$56<>\"\",ROW($1:$56)),ROW(A5))),\"\")","v":""},{"$f":"IFERROR(INDEX('Hilfstabelle für Zus.fass.'!B:B,SMALL(IF('Hilfstabelle für Zus.fass.'!$B$1:$B$56<>\"\",ROW($1:$56)),ROW(B5))),\"\")","v":""},{"$f":"IFERROR(INDEX('Hilfstabelle für Zus.fass.'!C:C,SMALL(IF('Hilfstabelle für Zus.fass.'!$B$1:$B$56<>\"\",ROW($1:$56)),ROW(C5))),\"\")","v":""}]
[{"$f":"IFERROR(INDEX('Hilfstabelle für Zus.fass.'!A:A,SMALL(IF('Hilfstabelle für Zus.fass.'!$B$1:$B$56<>\"\",ROW($1:$56)),ROW(A6))),\"\")","v":""},{"$f":"IFERROR(INDEX('Hilfstabelle für Zus.fass.'!B:B,SMALL(IF('Hilfstabelle für Zus.fass.'!$B$1:$B$56<>\"\",ROW($1:$56)),ROW(B6))),\"\")","v":""},{"$f":"IFERROR(INDEX('Hilfstabelle für Zus.fass.'!C:C,SMALL(IF('Hilfstabelle für Zus.fass.'!$B$1:$B$56<>\"\",ROW($1:$56)),ROW(C6))),\"\")","v":""}]
[{"$f":"IFERROR(INDEX('Hilfstabelle für Zus.fass.'!A:A,SMALL(IF('Hilfstabelle für Zus.fass.'!$B$1:$B$56<>\"\",ROW($1:$56)),ROW(A7))),\"\")","v":""},{"$f":"IFERROR(INDEX('Hilfstabelle für Zus.fass.'!B:B,SMALL(IF('Hilfstabelle für Zus.fass.'!$B$1:$B$56<>\"\",ROW($1:$56)),ROW(B7))),\"\")","v":""},{"$f":"IFERROR(INDEX('Hilfstabelle für Zus.fass.'!C:C,SMALL(IF('Hilfstabelle für Zus.fass.'!$B$1:$B$56<>\"\",ROW($1:$56)),ROW(C7))),\"\")","v":""}]
[{"$f":"IFERROR(INDEX('Hilfstabelle für Zus.fass.'!A:A,SMALL(IF('Hilfstabelle für Zus.fass.'!$B$1:$B$56<>\"\",ROW($1:$56)),ROW(A8))),\"\")","v":""},{"$f":"IFERROR(INDEX('Hilfstabelle für Zus.fass.'!B:B,SMALL(IF('Hilfstabelle für Zus.fass.'!$B$1:$B$56<>\"\",ROW($1:$56)),ROW(B8))),\"\")","v":""},{"$f":"IFERROR(INDEX('Hilfstabelle für Zus.fass.'!C:C,SMALL(IF('Hilfstabelle für Zus.fass.'!$B$1:$B$56<>\"\",ROW($1:$56)),ROW(C8))),\"\")","v":""}]
[{"$f":"IFERROR(INDEX('Hilfstabelle für Zus.fass.'!A:A,SMALL(IF('Hilfstabelle für Zus.fass.'!$B$1:$B$50<>\"\",ROW($1:$56)),ROW(A9))),\"\")","v":""},"",""]
[]
[]
[]
[]
[]
[]
[]
[]
[]
[]
[]
[]
[]
[]
[]
[]
[]
[]
[]
[]
[]
[]
[]
[]
[]
[]
[]
[]
[]
[]
[]
[]
[]
[]
[]
[]
[]
[]
[]
["","",""]
["","",""]

{"sheet":"Hilfstabelle für Zus.fass.","index":8,"n_rows":33,"n_cols":12,"rows_kept":33,"cut":false,"hidden":true,"merged":[]}
["Hilftabelle für Zusammenfassung"]
[]
["Menge","Artikelnummer","Beschreibung",null,null,null,null,null,null,null,"Artikeltyp","Zeile"]
[{"$f":"IF('Bestellhilfe SmartHandles'!A17<>\"\",'Bestellhilfe SmartHandles'!A17,\"\")","v":""},{"$f":"IF('Bestellhilfe SmartHandles'!Q17<>\"\",'Bestellhilfe SmartHandles'!Q17,\"\")","v":""},{"$f":"IF('Bestellhilfe SmartHandles'!AC17<>\"\",'Bestellhilfe SmartHandles'!AC17,\"\")","v":", (ohne Elektronik)"},null,null,null,null,null,null,{"$f":"IF(B4<>\"\",\"x\",\"\")","v":""},"SmartHandle",18]
[{"$f":"IF('Bestellhilfe SmartHandles'!A18<>\"\",'Bestellhilfe SmartHandles'!A18,\"\")","v":""},{"$f":"IF('Bestellhilfe SmartHandles'!Q18<>\"\",'Bestellhilfe SmartHandles'!Q18,\"\")","v":""},{"$f":"IF('Bestellhilfe SmartHandles'!AC18<>\"\",'Bestellhilfe SmartHandles'!AC18,\"\")","v":""},null,null,null,null,null,null,"","SmartHandle",19]
[{"$f":"IF('Bestellhilfe SmartHandles'!A19<>\"\",'Bestellhilfe SmartHandles'!A19,\"\")","v":""},{"$f":"IF('Bestellhilfe SmartHandles'!Q19<>\"\",'Bestellhilfe SmartHandles'!Q19,\"\")","v":""},{"$f":"IF('Bestellhilfe SmartHandles'!AC19<>\"\",'Bestellhilfe SmartHandles'!AC19,\"\")","v":""},null,null,null,null,null,null,"","SmartHandle",20]
[{"$f":"IF('Bestellhilfe SmartHandles'!A20<>\"\",'Bestellhilfe SmartHandles'!A20,\"\")","v":""},{"$f":"IF('Bestellhilfe SmartHandles'!Q20<>\"\",'Bestellhilfe SmartHandles'!Q20,\"\")","v":""},{"$f":"IF('Bestellhilfe SmartHandles'!AC20<>\"\",'Bestellhilfe SmartHandles'!AC20,\"\")","v":""},null,null,null,null,null,null,"","SmartHandle",21]
[{"$f":"IF('Bestellhilfe SmartHandles'!A21<>\"\",'Bestellhilfe SmartHandles'!A21,\"\")","v":""},{"$f":"IF('Bestellhilfe SmartHandles'!Q21<>\"\",'Bestellhilfe SmartHandles'!Q21,\"\")","v":""},{"$f":"IF('Bestellhilfe SmartHandles'!AC21<>\"\",'Bestellhilfe SmartHandles'!AC21,\"\")","v":""},null,null,null,null,null,null,"","SmartHandle",22]
[{"$f":"IF('Bestellhilfe SmartHandles'!A22<>\"\",'Bestellhilfe SmartHandles'!A22,\"\")","v":""},{"$f":"IF('Bestellhilfe SmartHandles'!Q22<>\"\",'Bestellhilfe SmartHandles'!Q22,\"\")","v":""},{"$f":"IF('Bestellhilfe SmartHandles'!AC22<>\"\",'Bestellhilfe SmartHandles'!AC22,\"\")","v":""},null,null,null,null,null,null,"","SmartHandle",23]
[{"$f":"IF('Bestellhilfe SmartHandles'!A23<>\"\",'Bestellhilfe SmartHandles'!A23,\"\")","v":""},{"$f":"IF('Bestellhilfe SmartHandles'!Q23<>\"\",'Bestellhilfe SmartHandles'!Q23,\"\")","v":""},{"$f":"IF('Bestellhilfe SmartHandles'!AC23<>\"\",'Bestellhilfe SmartHandles'!AC23,\"\")","v":""},null,null,null,null,null,null,"","SmartHandle",24]
[{"$f":"IF('Bestellhilfe SmartHandles'!A24<>\"\",'Bestellhilfe SmartHandles'!A24,\"\")","v":""},{"$f":"IF('Bestellhilfe SmartHandles'!Q24<>\"\",'Bestellhilfe SmartHandles'!Q24,\"\")","v":""},{"$f":"IF('Bestellhilfe SmartHandles'!AC24<>\"\",'Bestellhilfe SmartHandles'!AC24,\"\")","v":""},null,null,null,null,null,null,"","SmartHandle",25]
[]
[]
[]
[]
[]
[]
[]
[]
[]
[]
[]
[]
[]
[]
[]
[]
[]
[]
[]
[]
[]
[null,null," "]

{"sheet":"Langtext_Cover_Übers.","index":9,"n_rows":40,"n_cols":9,"rows_kept":40,"cut":false,"hidden":true,"merged":[]}
["Artikelnummer",null,null,"Artikelnummer","Deutsch","English","Français","Italiano","Nederlands"]
["SH.CB",{"$f":"HLOOKUP('SmartHandle Cover'!$E$3,$D$1:$I$38,2)","v":"breites Cover / \nEuro-PZ"},null,"SH.CB","breites Cover / \nEuro-PZ","wide cover / \nEuro profile","plaque large  / profil européen","Cover larga /\nProfilo europeo","breed schild /\nEuro profiel"]
["SH.CB.SO",{"$f":"HLOOKUP('SmartHandle Cover'!$E$3,$D$1:$I$38,3)","v":"breites Cover / \nScandinavian Oval"},null,"SH.CB.SO","breites Cover / \nScandinavian Oval","wide cover / \nScandinavian Oval","plaque large  / profil scandinave ovale","Cover larga /\nOvale scandinavo","breed schild /\nScandinavian Oval"]
["SH.CB.SO.105",{"$f":"HLOOKUP('SmartHandle Cover'!$E$3,$D$1:$I$38,4)","v":"breites Cover / \nScandinavian Oval /\nmit Mechanical Override"},null,"SH.CB.SO.105","breites Cover / \nScandinavian Oval /\nmit Mechanical Override","wide cover / \nScandinavian Oval / \nwith mechanical override","plaque large / ovale scandinave / avec verrouillage mécanique","Cover larga /\nOvale Scnadinavo /\ncon override meccanico","breed schild /\nScandinavian Oval /\nmet Mechanical Override"]
["SH.CB.SR",{"$f":"HLOOKUP('SmartHandle Cover'!$E$3,$D$1:$I$38,5)","v":"breites Cover / \nSwiss Round"},null,"SH.CB.SR","breites Cover / \nSwiss Round","wide cover / \nSwiss Round","plaque large /suisse rond","Cover larga / \nTondo svizzero","breed schild /\nSwiss Round"]
["SH.CB.SR.A78",{"$f":"HLOOKUP('SmartHandle Cover'!$E$3,$D$1:$I$38,6)","v":"breites Cover / \nSwiss Round (Außenseite) /\nmit Mechanical Override"},null,"SH.CB.SR.A78","breites Cover / \nSwiss Round (Außenseite) /\nmit Mechanical Override","wide cover / \nSwiss Round (outside) / \nwith mechanical override","plaque large / suisse rond / avec verrouillage ménanique (extérieur)","Cover larga /\nTondo svizzero /\ncon override mecanico ( lato esterno )","breed schild /\nSwiss Round (buitenzijde) /\nmet Mechanical Override"]
["SH.CB.SR.I78",{"$f":"HLOOKUP('SmartHandle Cover'!$E$3,$D$1:$I$38,7)","v":"breites Cover / \nSwiss Round (Innenseite) /\nmit Mechanical Override"},null,"SH.CB.SR.I78","breites Cover / \nSwiss Round (Innenseite) /\nmit Mechanical Override","wide cover / \nSwiss Round (inside) / \nwith mechanical override ","plaque large / suisse rond / avec verrouillage ménanique (intérieur)","Cover larga /\nTondo svizzero /\ncon override mecanico ( lato interno )","breed schild /\nSwiss Round (binnenzijde) /\nmet Mechanical Override"]
["SH.CB.X",{"$f":"HLOOKUP('SmartHandle Cover'!$E$3,$D$1:$I$38,8)","v":"breites Cover / \nEuro-PZ / \nmit Mechanical Override"},null,"SH.CB.X","breites Cover / \nEuro-PZ / \nmit Mechanical Override","wide cover / \nEuro profile / \nwith mechanical override","plaque large / profil européen / avec verrouillage mécanique","Cover larga /\nProfilo europeo /\ncon override meccanico","breed schild /\nEuro profiel /\nmet Mechanical Override"]
["SH.CBP",{"$f":"HLOOKUP('SmartHandle Cover'!$E$3,$D$1:$I$38,9)","v":"breites Cover / \nEuro-PZ / \nmit Kartenausschnitt"},null,"SH.CBP","breites Cover / \nEuro-PZ / \nmit Kartenausschnitt","wide cover / \nEuro profile / \nwith card reader insert","plaque large / profil européen / pour lecture  carte","Cover larga / \nProfilo europeo /\ncon inserto per lettura tessere","breed schild / \nEuro profiel / \nmet opbouw kaartlezer"]
["SH.CBP.SO",{"$f":"HLOOKUP('SmartHandle Cover'!$E$3,$D$1:$I$38,10)","v":"breites Cover / \nScandinavian Oval / \nmit Kartenausschnitt"},null,"SH.CBP.SO","breites Cover / \nScandinavian Oval / \nmit Kartenausschnitt","wide cover / \nScandinavian Oval / \nwith card reader insert","plaque large / ovale scandinave / pour lecture carte","Cover larga / \nOvale Scandinavo /\ncon inserto per lettura tessere","breed schild / \nScandinavian Oval / \nmet opbouw kaartlezer"]
["SH.CBP.SO.105",{"$f":"HLOOKUP('SmartHandle Cover'!$E$3,$D$1:$I$38,11)","v":"breites Cover / \nScandinavian Oval / \nmit Kartenausschnitt / \nmit Mechanical Override"},null,"SH.CBP.SO.105","breites Cover / \nScandinavian Oval / \nmit Kartenausschnitt / \nmit Mechanical Override","wide cover / \nScandinavian Oval / \nwith card reader insert / \nwith mechanical override","plaque large / ovale scandinave / pour lecture carte / avec verrouillage mécanique","Cover larga / \nOvale Scandinavo /\ncon inserto per lettura tessere /\ncon override meccanico","breed schild / \nScandinavian Oval / \nmet opbouw kaartlezer / \nmet mechanical override"]
["SH.CBP.SR",{"$f":"HLOOKUP('SmartHandle Cover'!$E$3,$D$1:$I$38,12)","v":"breites Cover / \nSwiss Round / \nmit Kartenausschnitt"},null,"SH.CBP.SR","breites Cover / \nSwiss Round / \nmit Kartenausschnitt","wide cover / \nSwiss Round / \nwith card reader insert","plaque large / suisse rond / pour lecture carte","Cover larga /\nProfilo Svizzero /\ncon inserto per lettura tessere","breed schild / \nSwiss Round / \nmet opbouw kaartlezer"]
["SH.CBP.SR.A78",{"$f":"HLOOKUP('SmartHandle Cover'!$E$3,$D$1:$I$38,13)","v":"breites Cover / \nSwiss Round (Außenseite) /\nmit Kartenausschnitt /\nmit Mechanical Override"},null,"SH.CBP.SR.A78","breites Cover / \nSwiss Round (Außenseite) /\nmit Kartenausschnitt /\nmit Mechanical Override","wide cover / \nSwiss Round (outside) / \nwith card reader insert / \nwith mechanical override ","plaque large / suisse rond / pour lecture carte / avec verrouillage mécanique (extérieur)","Cover larga /\nProfilo Svizzero /\ncon inserto per lettura tessere /\ncon ovverride meccanico ( lato esterno )","breed schild / \nSwiss Round (buitenzijde) / \nmet opbouw kaartlezer / \nmet mechanical override "]
["SH.CBP.X",{"$f":"HLOOKUP('SmartHandle Cover'!$E$3,$D$1:$I$38,14)","v":"breites Cover / \nEuro-PZ / \nmit Kartenausschnitt / \nmit Mechanical Override"},null,"SH.CBP.X","breites Cover / \nEuro-PZ / \nmit Kartenausschnitt / \nmit Mechanical Override","wide cover / \nEuro profile / \nwith card reader insert / \nwith mechanical override","plaque large / profil européen / pour lecture  carte / avec verrouillage mécanique","Cover larga /\nProfilo Europeo /\ncon inserto per lettura tessere /\ncon override meccanico","breed schild / \nEuro profiel / \nmet opbouw kaartlezer / \nmet mechanical override"]
["SH.CS",{"$f":"HLOOKUP('SmartHandle Cover'!$E$3,$D$1:$I$38,15)","v":"schmales Cover / \nEuro-PZ"},null,"SH.CS","schmales Cover / \nEuro-PZ","narrow cover / \nEuro profile","plaque étroite / profil européen","Cover stretta /\nProfilo Europeo","smal schild /\nEuro profiel"]
["SH.CS.SO",{"$f":"HLOOKUP('SmartHandle Cover'!$E$3,$D$1:$I$38,16)","v":"schmales Cover / \nScandinavian Oval"},null,"SH.CS.SO","schmales Cover / \nScandinavian Oval","narrow cover / \nScandinavian Oval","plaque étroite / ovale scandinave","Cover stretta /\nOvale Scandinavo","smal schild /\nScandinavian Oval"]
["SH.CS.SO.105",{"$f":"HLOOKUP('SmartHandle Cover'!$E$3,$D$1:$I$38,17)","v":"schmales Cover / \nScandinavian Oval /\nmit Mechanical Override"},null,"SH.CS.SO.105","schmales Cover / \nScandinavian Oval /\nmit Mechanical Override","narrow cover / \nScandinavian Oval / \nwith mechanical override","plaque étroite / ovale scandinave / avec verrouillage mécanique","Cover stretta /\nOvale Scandinavo /\ncon override meccanico","smal schild /\nScandinavian Oval /\nmet Mechanical Override"]
["SH.CS.SR",{"$f":"HLOOKUP('SmartHandle Cover'!$E$3,$D$1:$I$38,18)","v":"schmales Cover / \nSwiss Round"},null,"SH.CS.SR","schmales Cover / \nSwiss Round","narrow cover / \nSwiss Round","plaque étroite / suisse rond","Cover stretta /\nTondo Svizzero","smal schild /\nSwiss Round"]
["SH.CS.SR.A78",{"$f":"HLOOKUP('SmartHandle Cover'!$E$3,$D$1:$I$38,19)","v":"schmales Cover / \nSwiss Round (Außenseite) /\nmit Mechanical Override"},null,"SH.CS.SR.A78","schmales Cover / \nSwiss Round (Außenseite) /\nmit Mechanical Override","narrow cover / \nSwiss Round (outside) / \nwith mechanical override ","plaque étroite / suisse rond / avec verrouillage mécanique (extérieur)","Cover stretta /\nTondo Svizzero /\ncon override meccanico ( lato esterno )","smal schild /\nSwiss Round (buitenzijde) /\nmet Mechanical Override"]
["SH.CS.SR.I78",{"$f":"HLOOKUP('SmartHandle Cover'!$E$3,$D$1:$I$38,20)","v":"schmales Cover / \nSwiss Round (Innenseite) /\nmit Mechanical Override"},null,"SH.CS.SR.I78","schmales Cover / \nSwiss Round (Innenseite) /\nmit Mechanical Override","narrow cover / \nSwiss Round (inside) / \nwith mechanical override ","plaque étroite / suisse rond / avec verrouillage mécanique (intérieur)","Cover stretta /\nTondo Svizzero /\ncon override meccanico ( lato interno )","smal schild /\nSwiss Round (binnenzijde) /\nmet Mechanical Override"]
["SH.CS.X",{"$f":"HLOOKUP('SmartHandle Cover'!$E$3,$D$1:$I$38,21)","v":"schmales Cover / \nEuro-PZ / \nmit Mechanical Override"},null,"SH.CS.X","schmales Cover / \nEuro-PZ / \nmit Mechanical Override","narrow cover / \nEuro profile / \nwith mechanical override","plaque étroite /profil européen / avec verrouillage mécanique","Cover stretta /\nProfilo Europeo /\ncon override meccanico","smal schild /\nEuro profiel /\nmet Mechanical Override"]
["SH.CSP",{"$f":"HLOOKUP('SmartHandle Cover'!$E$3,$D$1:$I$38,22)","v":"schmales Cover / \nEuro-PZ / \nmit Kartenausschnitt"},null,"SH.CSP","schmales Cover / \nEuro-PZ / \nmit Kartenausschnitt","narrow cover / \nEuro profile / \nwith card reader insert","plaque étroite / profil européen / pour lecture carte","Cover stretta /\nProfilo Europeo /\ncon inserto per lettura tessere","smal schild / \nEuro profiel / \nmet opbouw kaartlezer"]
["SH.CSP.SO",{"$f":"HLOOKUP('SmartHandle Cover'!$E$3,$D$1:$I$38,23)","v":"schmales Cover / \nScandinavian Oval / \nmit Kartenausschnitt"},null,"SH.CSP.SO","schmales Cover / \nScandinavian Oval / \nmit Kartenausschnitt","narrow cover / \nScandinavian Oval / \nwith card reader insert","plaque étroite / ovale scandinave / pour lecture carte","Cover stretta /\nOvale Scandinavo /\ncon inserto per lettura tessere","smal schild / \nScandinavian Oval / \nmet opbouw kaartlezer"]
["SH.CSP.SO.105",{"$f":"HLOOKUP('SmartHandle Cover'!$E$3,$D$1:$I$38,24)","v":"schmales Cover / \nScandinavian Oval / \nmit Kartenausschnitt / \nmit Mechanical Override"},null,"SH.CSP.SO.105","schmales Cover / \nScandinavian Oval / \nmit Kartenausschnitt / \nmit Mechanical Override","narrow cover / \nScandinavian Oval / \nwith card reader insert / \nwith mechanical override","plaque étroite / ovale scandinave / pour lecture carte / avec verrouillage mécanique","Cover stretta /\nOvale Scandinavo /\ncon inserto per lettura tessere /\ncon override meccanico","smal schild / \nScandinavian Oval / \nmet opbouw kaartlezer / \nmet mechanical override"]
["SH.CSP.SR",{"$f":"HLOOKUP('SmartHandle Cover'!$E$3,$D$1:$I$38,25)","v":"schmales Cover / \nSwiss Round / \nmit Kartenausschnitt"},null,"SH.CSP.SR","schmales Cover / \nSwiss Round / \nmit Kartenausschnitt","narrow cover / \nSwiss Round / \nwith card reader insert","plaque étroite / suisse rond / pour lecture carte","Cover stretta /\nTondo Svizzero /\ncon inserto per lettura carte","smal schild / \nSwiss Round / \nmet opbouw kaartlezer"]
["SH.CSP.SR.A78",{"$f":"HLOOKUP('SmartHandle Cover'!$E$3,$D$1:$I$38,26)","v":"schmales Cover / \nSwiss Round (Außenseite) /\nmit Kartenausschnitt /\nmit Mechanical Override"},null,"SH.CSP.SR.A78","schmales Cover / \nSwiss Round (Außenseite) /\nmit Kartenausschnitt /\nmit Mechanical Override","narrow cover / \nSwiss Round / \nwith card reader insert / \nwith mechanical override (outside)","plaque étroite / suisse rond / pour lecture carte / avec  verrouillage mécanique (extérieur)","Cover stretta /\nTondo Svizzero /\ncon inserto per lettura carte /\ncon override meccanico ( lato esterno )","smal schild / \nSwiss Round / \nmet opbouw kaartlezer / \nmet mechanical override (buitenzijde)"]
["SH.CSP.X",{"$f":"HLOOKUP('SmartHandle Cover'!$E$3,$D$1:$I$38,27)","v":"schmales Cover / \nEuro-PZ / \nmit Kartenausschnitt / \nmit Mechanical Override"},null,"SH.CSP.X","schmales Cover / \nEuro-PZ / \nmit Kartenausschnitt / \nmit Mechanical Override","narrow cover / \nEuro profile / \nwith card reader insert / \nwith mechanical override","plaque étroite / profil européen / pour lecture carte / avec verrouillage mécanique","Cover stretta / \nProfilo Europeo /\ncon inserto per lettura tessere /\ncon override meccanico","smal schild / \nEuro profiel / \nmet opbouw kaartlezer / \nmet mechanical override"]
["SH2.CBP",{"$f":"HLOOKUP('SmartHandle Cover'!$E$3,$D$1:$I$38,28)","v":"breites Cover / \nEuro-PZ / \nmit Kartenausschnitt (reichweitenoptimiert)"},null,"SH2.CBP","breites Cover / \nEuro-PZ / \nmit Kartenausschnitt (reichweitenoptimiert)","wide cover / \nEuro profile / \nwith card reader insert (Improved card reading distance)","plaque large /  profil européen / pour lecture carte (lecture optimisée)","Cover larga /\nProfilo Europeo /\ncon inserto per lettura tessere ( distanza di lettura estesa )","breed schild / \nEuro profiel / \nmet opbouw kaartlezer (verbeterde lees afstand)"]
["SH2.CBP.SO",{"$f":"HLOOKUP('SmartHandle Cover'!$E$3,$D$1:$I$38,29)","v":"breites Cover / \nScandinavian Oval / \nmit Kartenausschnitt (reichweitenoptimiert)"},null,"SH2.CBP.SO","breites Cover / \nScandinavian Oval / \nmit Kartenausschnitt (reichweitenoptimiert)","wide cover / \nScandinavian Oval / \nwith card reader insert (Improved card reading distance)","plaque large / ovale scandinave / pour lecture carte (lecture optimisée)","Cover larga /\nOvale Scandinavo /\ncon inserto per lettura tessere ( distanza di lettura estesa )","breed schild / \nScandinavian Oval / \nmet opbouw kaartlezer (verbeterde lees afstand)"]
["SH2.CBP.SO.105",{"$f":"HLOOKUP('SmartHandle Cover'!$E$3,$D$1:$I$38,30)","v":"breites Cover / \nScandinavian Oval / \nmit Kartenausschnitt (reichweitenoptimiert) / \nmit Mechanical Override"},null,"SH2.CBP.SO.105","breites Cover / \nScandinavian Oval / \nmit Kartenausschnitt (reichweitenoptimiert) / \nmit Mechanical Override","wide cover / \nScandinavian Oval / \nwith card reader insert (Improved card reading distance) / \nwith mechanical override","plaque large / ovale scandinave / pour lecture carte (lecture optimisée)  avec verrouillage mécanique","Cover larga /\nOvale Scandinavo /\ncon inserto per lettura tessere ( distanza di lettura estesa ) /\ncon override meccanico","breed schild / \nScandinavian Oval / \nmet opbouw kaartlezer (verbeterde lees afstand) / \nmet mechanical override"]
["SH2.CBP.SR",{"$f":"HLOOKUP('SmartHandle Cover'!$E$3,$D$1:$I$38,31)","v":"breites Cover / \nSwiss Round / \nmit Kartenausschnitt (reichweitenoptimiert)"},null,"SH2.CBP.SR","breites Cover / \nSwiss Round / \nmit Kartenausschnitt (reichweitenoptimiert)","wide cover / \nSwiss Round / \nwith card reader insert (Improved card reading distance)","plaque large / suisse rond / pour lecture carte (lecture optimisée)","Cover larga /\nTondo Svizzero /\ncon inserto per lettura tessere ( distanza di lettura estesa ) /\ncon override meccanico","breed schild / \nSwiss Round / \nmet opbouw kaartlezer (verbeterde lees afstand)"]
["SH2.CBP.SR.A78",{"$f":"HLOOKUP('SmartHandle Cover'!$E$3,$D$1:$I$38,32)","v":"breites Cover / \nSwiss Round (Außenseite) /\nmit Kartenausschnitt (reichweitenoptimiert) /\nmit Mechanical Override"},null,"SH2.CBP.SR.A78","breites Cover / \nSwiss Round (Außenseite) /\nmit Kartenausschnitt (reichweitenoptimiert) /\nmit Mechanical Override","wide cover / \nSwiss Round (outside) / \nwith card reader insert ( improved card reading distance) / \nwith mechanical override","plaque large / suisse rond (extérieur) avec verouillage mécanique","Cover larga /\nTondo Svizzero ( esterno ) /\ncon inserto per lettura tessere ( distanza di lettura estesa ) /\ncon override meccanico","breed schild / \nSwiss Round (buitenzijde) / \nmet opbouw kaartlezer (verbeterde lees afstand) / \nmet mechanical override"]
["SH2.CBP.X",{"$f":"HLOOKUP('SmartHandle Cover'!$E$3,$D$1:$I$38,33)","v":"breites Cover / \nEuro-PZ / \nmit Kartenausschnitt (reichweitenoptimiert) / \nmit Mechanical Override"},null,"SH2.CBP.X","breites Cover / \nEuro-PZ / \nmit Kartenausschnitt (reichweitenoptimiert) / \nmit Mechanical Override","wide cover / \nEuro profile / \nwith card reader insert (Improved card reading distance) / \nwith mechanical override ","plaque large / profil européen / pour lecture carte (lecture optimisée)","Cover larga /\nProfilo Europeo /\ncon inserto per lettura tessere ( distanza di lettura estesa ) /\ncon override meccanico","breed schild / \nEuro profiel / \nmet opbouw kaartlezer (verbeterde lees afstand) / \nmet mechanical override "]
["SH2.CSP",{"$f":"HLOOKUP('SmartHandle Cover'!$E$3,$D$1:$I$38,34)","v":"schmales Cover / \nEuro-PZ / \nmit Kartenausschnitt (reichweitenoptimiert)"},null,"SH2.CSP","schmales Cover / \nEuro-PZ / \nmit Kartenausschnitt (reichweitenoptimiert)","narrow cover / \nEuro profile / \nwith card reader insert (Improved card reading distance)","plaque étroite / profil européen / pour lecture carte (lecture optimisée)","Cover stretta /\nProfilo Europeo /\ncon inserto per lettura di tessere ( distanza di lettura estesa )","smal schild / \nEuro profiel / \nmet opbouw kaartlezer (verbeterde lees afstand)"]
["SH2.CSP.SO",{"$f":"HLOOKUP('SmartHandle Cover'!$E$3,$D$1:$I$38,35)","v":"schmales Cover / \nScandinavian Oval / \nmit Kartenausschnitt (reichweitenoptimiert)"},null,"SH2.CSP.SO","schmales Cover / \nScandinavian Oval / \nmit Kartenausschnitt (reichweitenoptimiert)","narrow cover / \nScandinavian Oval / \nwith card reader insert (Improved card reading distance)","plaque étroite / ovale scandinave / pour lecture carte (lecture optimisée)","Cover stretta /\nOvale Scandinavo /\ncon inserto per lettura di tessere ( distanza di lettura estesa )","smal schild / \nScandinavian Oval / \nmet opbouw kaartlezer (verbeterde lees afstand)"]
["SH2.CSP.SO.105",{"$f":"HLOOKUP('SmartHandle Cover'!$E$3,$D$1:$I$38,36)","v":"schmales Cover / \nScandinavian Oval / \nmit Kartenausschnitt (reichweitenoptimiert) / \nmit Mechanical Override"},null,"SH2.CSP.SO.105","schmales Cover / \nScandinavian Oval / \nmit Kartenausschnitt (reichweitenoptimiert) / \nmit Mechanical Override","narrow cover / \nScandinavian Oval / \nwith card reader insert (Improved card reading distance) / \nwith mechanical override ","plaque étroite / ovale scandinave / pour lecture carte (lecture optimisée) avec verrouillage mécanique","Cover stretta /\nOvale Scandinavo /\ncon inserto per lettura tessere ( distanza di lettura estesa ) /\ncon override meccanico","smal schild / \nScandinavian Oval / \nmet opbouw kaartlezer (verbeterde lees afstand) / \nmet mechanical override "]
["SH2.CSP.SR",{"$f":"HLOOKUP('SmartHandle Cover'!$E$3,$D$1:$I$38,37)","v":"schmales Cover / \nSwiss Round / \nmit Kartenausschnitt (reichweitenoptimiert) "},null,"SH2.CSP.SR","schmales Cover / \nSwiss Round / \nmit Kartenausschnitt (reichweitenoptimiert) ","narrow cover / \nSwiss Round / \nwith card reader insert (Improved card reading distance)","plaque étroite / suisse rond / pour lecture carte (lecture optimisée)","Cover stretta /\nTondo Svizzero /\ncon inserto per lettura tessere ( distanza di lettura estesa )","smal schild / \nSwiss Round / \nmet opbouw kaartlezer (verbeterde lees afstand)"]
["SH2.CSP.SR.A78",{"$f":"HLOOKUP('SmartHandle Cover'!$E$3,$D$1:$I$38,38)","v":"schmales Cover / \nSwiss Round (Außenseite) /\nmit Kartenausschnitt (reichweitenoptimiert)  /\nmit Mechanical Override"},null,"SH2.CSP.SR.A78","schmales Cover / \nSwiss Round (Außenseite) /\nmit Kartenausschnitt (reichweitenoptimiert)  /\nmit Mechanical Override","narrow cover / \nSwiss Round (outside) / \nwith card reader insert (improved card reading distance) / \nwith mechanical override","plaque étroite / suisse rond (extérieur) pour lecture carte (lecture optimisée) avec verrouillage mécanique","Cover stretta /\nTondo Svizzero ( lato esterno ) /\ncon inserto per lettura tessere ( distanza di lettura estesa ) /\ncon override meccanico","smal schild / \nSwiss Round (buitenzijde) / \nmet opbouw kaartlezer (verbeterde lees afstand) / \nmet mechanical override"]
["SH2.CSP.X",{"$f":"HLOOKUP('SmartHandle Cover'!$E$3,$D$1:$I$39,39)","v":"schmales Cover / \nEuro-PZ / \nmit Kartenausschnitt (reichweitenoptimiert) / \nmit Mechanical Override"},null,"SH2.CSP.X","schmales Cover / \nEuro-PZ / \nmit Kartenausschnitt (reichweitenoptimiert) / \nmit Mechanical Override","narrow cover / \nEuro profile / \nwith card reader insert (Improved card reading distance) / \nwith mechanical override","plaque étroite / profil européen / pour lecture carte (lecture optimisée) avec verrouillage mécanique","Cover stretta /\nProfilo Europeo /\ncon inserto per lettura tessere ( distanza di lettura estesa ) /\ncon override meccanico","smal schild / \nEuro profiel / \nmet opbouw kaartlezer (verbeterde lees afstand) / \nmet mechanical override"]
[null,"XXX"]

{"sheet":"Bilder für Rückw.suche","index":10,"n_rows":40,"n_cols":1,"rows_kept":40,"cut":false,"hidden":true,"merged":[]}
["Artikelnummer"]
["SH.CB"]
["SH.CB.SO"]
["SH.CB.SO.105"]
["SH.CB.SR"]
["SH.CB.SR.A78"]
["SH.CB.SR.I78"]
["SH.CB.X"]
["SH.CBP"]
["SH.CBP.SO"]
["SH.CBP.SO.105"]
["SH.CBP.SR"]
["SH.CBP.SR.A78"]
["SH.CBP.X"]
["SH.CS"]
["SH.CS.SO"]
["SH.CS.SO.105"]
["SH.CS.SR"]
["SH.CS.SR.A78"]
["SH.CS.SR.I78"]
["SH.CS.X"]
["SH.CSP"]
["SH.CSP.SO"]
["SH.CSP.SO.105"]
["SH.CSP.SR"]
["SH.CSP.SR.A78"]
["SH.CSP.X"]
["SH2.CBP"]
["SH2.CBP.SO"]
["SH2.CBP.SO.105"]
["SH2.CBP.SR"]
["SH2.CBP.SR.A78"]
["SH2.CBP.X"]
["SH2.CSP"]
["SH2.CSP.SO"]
["SH2.CSP.SO.105"]
["SH2.CSP.SR"]
["SH2.CSP.SR.A78"]
["SH2.CSP.X"]
["XXX"]

{"sheet":"Tabelle1","index":11,"n_rows":0,"n_cols":0,"rows_kept":0,"cut":false,"hidden":true,"merged":[]}